{"text_format":"1","workbook":"xlsx","n_sheets":3,"sheets":["Статистика","Расписание","Реальные"],"not_rendered":{"charts":0,"images":0,"macros":1,"external_links":0,"defined_names":1,"comments":0,"pivot_tables":0},"unopened":[],"bounds":{"document_bytes":16777216,"sheet_cells":100000,"rows_first":2000,"rows_last":500,"rows_between":2000,"halvings":0,"cell_chars":16384,"cell_head_chars":4096},"cells_cut":0,"cells_raw":0,"read":"whole","date_system":"1900"}

{"sheet":"Статистика","index":0,"n_rows":478,"n_cols":16,"rows_kept":478,"cut":false,"hidden":false,"merged":[[0,0,0,5],[0,10,0,12]]}
["СНХЛ 2022-2023, 29 тур",null,null,null,null,null,null,null,null,null,"за матч"]
["ИГРОК","Реал","СКХЛ","А","№","Пк","Г","П","От","М","Г","П","От"]
["Kaapo Kahkonen","San Jose Sharks","ANA","в",1,1,null,null,null,null,{"$f":"SUM(G3:G9)","v":0},{"$f":"SUM(H3:H9)","v":0},{"$f":"SUM(I3:I9)","v":0},"пятерка №1","https://sports.yahoo.com/nhl/players/6477","K.Kahkonen (San) [K.Kahkonen (San)]; M.Reilly (Bos) - N.Dobson (New 0+0+0); A.Copp (Det * ) - K.Yamamoto (Edm 0+0+0) - N.Kadri (Cal 0+0+0); "]
["Kaapo Kahkonen","San Jose Sharks","ANA","в",2,1,null,null,null,null,null,null,null,null,"https://sports.yahoo.com/nhl/players/6477"]
["Mike Reilly","Boston Bruins","ANA","з",3,1,null,null,null,null,null,null,null,null,"https://sports.yahoo.com/nhl/players/5464"]
["Noah Dobson","New York Islanders","ANA","з",4,1,0,0,0,null,null,null,null,null,"https://sports.yahoo.com/nhl/players/7910"]
["Andrew Copp","Detroit Red Wings","ANA","л",5,1,null,null,null,"*",null,null,null,null,"https://sports.yahoo.com/nhl/players/6083"]
["Kailer Yamamoto","Edmonton Oilers","ANA","п",6,1,0,0,0,null,null,null,null,null,"https://sports.yahoo.com/nhl/players/7537"]
["Nazem Kadri","Calgary Flames","ANA","ц",7,1,0,0,0,null,null,null,null,null,"https://sports.yahoo.com/nhl/players/4687"]
["Jonas Brodin","Minnesota Wild","ANA","з",8,2,null,null,null,"*",{"$f":"SUM(G10:G14)","v":2},{"$f":"SUM(H10:H14)","v":1},{"$f":"SUM(I10:I14,I3:I4)","v":0},"пятерка №2","https://sports.yahoo.com/nhl/players/5371","J.Brodin (Min * ) - J.Brown (Ari 0+0+0); O.Tippett (Phi 0+0+0) - N.Roy (Veg 2+0+0) -A.Kerfoot (Tor 0+1+0); "]
["Josh Brown","Arizona Coyotes","ANA","з",9,2,0,0,0,null,null,null,null,null,"https://sports.yahoo.com/nhl/players/6132"]
["Owen Tippett","Philadelphia Flyers","ANA","п",10,2,0,0,0,null,null,null,null,null,"https://sports.yahoo.com/nhl/players/7525"]
["Nicolas Roy","Vegas Golden Knights","ANA","ц",11,2,2,0,0,null,null,null,null,null,"https://sports.yahoo.com/nhl/players/6838"]
["Alexander Kerfoot","Toronto Maple Leafs","ANA","ц",12,2,0,1,0,null,null,null,null,null,"https://sports.yahoo.com/nhl/players/5840"]
["Matt Roy","Los Angeles Kings","ANA","з",13,3,0,0,0,null,{"$f":"SUM(G15:G19)","v":4},{"$f":"SUM(H15:H19)","v":4},{"$f":"SUM(I15:I19,I3:I4)","v":0},"пятерка №3","https://sports.yahoo.com/nhl/players/6936","M.Roy (Los 0+0+0) - E.Gudbranson (Col 0+0+0); T.Teravainen (Car 0+1+0) - A.Tuch (Buf 1+2+0) - T.Thompson (Buf 3+1+0); "]
["Erik Gudbranson","Columbus Blue Jackets","ANA","з",14,3,0,0,0,null,null,null,null,null,"https://sports.yahoo.com/nhl/players/4963"]
["Teuvo Teravainen","Carolina Hurricanes","ANA","л",15,3,0,1,0,null,null,null,null,null,"https://sports.yahoo.com/nhl/players/5698"]
["Alex Tuch","Buffalo Sabres","ANA","п",16,3,1,2,0,null,null,null,null,null,"https://sports.yahoo.com/nhl/players/6384"]
["Tage Thompson","Buffalo Sabres","ANA","ц",17,3,3,1,0,null,null,null,null,null,"https://sports.yahoo.com/nhl/players/7134"]
["Ilya Samsonov","Toronto Maple Leafs","ARI","в",1,1,0,0,0,null,{"$f":"SUM(G20:G26)","v":0},{"$f":"SUM(H20:H26)","v":1},{"$f":"SUM(I20:I26)","v":1},"пятерка №1","https://sports.yahoo.com/nhl/players/6764","I.Samsonov (Tor 0+0+0) [S.Bobrovsky (Flo)]; R.Lindgren (New 0+1+0) - A.Zub (Ott 0+0+1); C.Jarnkrok (Tor 0+0+0) - R.Smith (Veg 0+0+0) - A.Henrique (Ana *  0+0+0); "]
["Sergei Bobrovsky","Florida Panthers","ARI","в",2,1,null,null,null,null,null,null,null,null,"https://sports.yahoo.com/nhl/players/4901"]
["Ryan Lindgren","New York Rangers","ARI","з",3,1,0,1,0,null,null,null,null,null,"https://sports.yahoo.com/nhl/players/7157"]
["Artem Zub","Ottawa Senators","ARI","з",4,1,0,0,1,null,null,null,null,null,"https://sports.yahoo.com/nhl/players/8614"]
["Calle Jarnkrok","Toronto Maple Leafs","ARI","л",5,1,0,0,0,null,null,null,null,null,"https://sports.yahoo.com/nhl/players/5024"]
["Reilly Smith","Vegas Golden Knights","ARI","п",6,1,0,0,0,null,null,null,null,null,"https://sports.yahoo.com/nhl/players/5639"]
["Adam Henrique","Anaheim Ducks","ARI","ц",7,1,0,0,0,"*",null,null,null,null,"https://sports.yahoo.com/nhl/players/5238"]
["Trevor van Riemsdyk","Washington Capitals","ARI","з",8,2,0,0,0,null,{"$f":"SUM(G27:G31)","v":0},{"$f":"SUM(H27:H31)","v":0},{"$f":"SUM(I27:I31,I20:I21)","v":0},"пятерка №2","https://sports.yahoo.com/nhl/players/6340","T.van Riemsdyk (Was 0+0+0) - S.Benoit (Ana *  0+0+0); C.Stephenson (Veg 0+0+0) - Z.Aston-Reese (Tor 0+0+0) -N.Suzuki (Mon 0+0+0); "]
["Simon Benoit","Anaheim Ducks","ARI","з",9,2,0,0,0,"*",null,null,null,null,"https://sports.yahoo.com/nhl/players/8157"]
["Chandler Stephenson","Vegas Golden Knights","ARI","л",10,2,0,0,0,null,null,null,null,null,"https://sports.yahoo.com/nhl/players/5768"]
["Zach Aston-Reese","Toronto Maple Leafs","ARI","п",11,2,0,0,0,null,null,null,null,null,"https://sports.yahoo.com/nhl/players/7473"]
["Nick Suzuki","Montreal Canadiens","ARI","ц",12,2,0,0,0,null,null,null,null,null,"https://sports.yahoo.com/nhl/players/7528"]
["Jeremy Lauzon","Nashville Predators","ARI","з",13,3,0,0,0,null,{"$f":"SUM(G32:G36)","v":0},{"$f":"SUM(H32:H36)","v":1},{"$f":"SUM(I32:I36,I20:I21)","v":0},"пятерка №3","https://sports.yahoo.com/nhl/players/6794","J.Lauzon (Nas 0+0+0) - M.Staal (Flo 0+0+0); J.Eriksson Ek (Min * ) - M.Stone (Veg 0+1+0) - D.Joshua (Van 0+0+0); "]
["Marc Staal","Florida Panthers","ARI","з",14,3,0,0,0,null,null,null,null,null,"https://sports.yahoo.com/nhl/players/3789"]
["Joel Eriksson Ek","Minnesota Wild","ARI","ц",15,3,null,null,null,"*",null,null,null,null,"https://sports.yahoo.com/nhl/players/6762"]
["Mark Stone","Vegas Golden Knights","ARI","п",16,3,0,1,0,null,null,null,null,null,"https://sports.yahoo.com/nhl/players/5152"]
["Dakota Joshua","Vancouver Canucks","ARI","л",17,3,0,0,0,null,null,null,null,null,"https://sports.yahoo.com/nhl/players/6496"]
["Marc-Andre Fleury","Minnesota Wild","BOS","в",1,1,null,null,null,"*",{"$f":"SUM(G37:G43)","v":2},{"$f":"SUM(H37:H43)","v":3},{"$f":"SUM(I37:I43)","v":0},"пятерка №1","https://sports.yahoo.com/nhl/players/3341","M.Fleury (Min * ) [S.Montembeault (Mon 0+0+0)]; J.Spurgeon (Min * ) - R.Dahlin (Buf 0+1+0); E.Lindholm (Cal 0+1+0) - S.Stamkos (Tam *  0+1+0) - A.Ovechkin (Was 2+0+0); "]
["Sam Montembeault","Montreal Canadiens","BOS","в",2,1,0,0,0,null,null,null,null,null,"https://sports.yahoo.com/nhl/players/6819"]
["Jared Spurgeon","Minnesota Wild","BOS","з",3,1,null,null,null,"*",null,null,null,null,"https://sports.yahoo.com/nhl/players/5232"]
["Rasmus Dahlin","Buffalo Sabres","BOS","з",4,1,0,1,0,null,null,null,null,null,"https://sports.yahoo.com/nhl/players/7899"]
["Elias Lindholm","Calgary Flames","BOS","п",5,1,0,1,0,null,null,null,null,null,"https://sports.yahoo.com/nhl/players/5984"]
["Steven Stamkos","Tampa Bay Lightning","BOS","ц",6,1,0,1,0,"*",null,null,null,null,"https://sports.yahoo.com/nhl/players/4471"]
["Alex Ovechkin","Washington Capitals","BOS","л",7,1,2,0,0,null,null,null,null,null,"https://sports.yahoo.com/nhl/players/3637"]
["Josh Mahura","Florida Panthers","BOS","з",8,2,0,1,0,null,{"$f":"SUM(G44:G48)","v":0},{"$f":"SUM(H44:H48)","v":1},{"$f":"SUM(I44:I48,I37:I38)","v":1},"пятерка №2","https://sports.yahoo.com/nhl/players/7193","J.Mahura (Flo 0+1+0) - D.Forbort (Bos 0+0+1); S.Bennett (Flo 0+0+0) - A.Burakovsky (Sea 0+0+0) -A.Newhook (Col 0+0+0); "]
["Derek Forbort","Boston Bruins","BOS","з",9,2,0,0,1,null,null,null,null,null,"https://sports.yahoo.com/nhl/players/4975"]
["Sam Bennett","Florida Panthers","BOS","л",10,2,0,0,0,null,null,null,null,null,"https://sports.yahoo.com/nhl/players/6370"]
["Andre Burakovsky","Seattle Kraken","BOS","п",11,2,0,0,0,null,null,null,null,null,"https://sports.yahoo.com/nhl/players/6002"]
["Alex Newhook","Colorado Avalanche","BOS","ц",12,2,0,0,0,null,null,null,null,null,"https://sports.yahoo.com/nhl/players/8294"]
["Connor Clifton","Boston Bruins","BOS","з",13,3,0,0,1,null,{"$f":"SUM(G49:G53)","v":0},{"$f":"SUM(H49:H53)","v":1},{"$f":"SUM(I49:I53,I37:I38)","v":1},"пятерка №3","https://sports.yahoo.com/nhl/players/6113","C.Clifton (Bos 0+0+1) - S.Durzi (Los 0+0+0); D.Dube (Cal 0+0+0) - M.Rasmussen (Det * ) - G.Vilardi (Los 0+1+0); "]
["Sean Durzi","Los Angeles Kings","BOS","з",14,3,0,0,0,null,null,null,null,null,"https://sports.yahoo.com/nhl/players/7950"]
["Dillon Dube","Calgary Flames","BOS","л",15,3,0,0,0,null,null,null,null,null,"https://sports.yahoo.com/nhl/players/7164"]
["Michael Rasmussen","Detroit Red Wings","BOS","п",16,3,null,null,null,"*",null,null,null,null,"https://sports.yahoo.com/nhl/players/7524"]
["Gabriel Vilardi","Los Angeles Kings","BOS","л",17,3,0,1,0,null,null,null,null,null,"https://sports.yahoo.com/nhl/players/7526"]
["Jonathan Quick","Los Angeles Kings","BUF","в",1,1,null,null,null,null,{"$f":"SUM(G54:G60)","v":0},{"$f":"SUM(H54:H60)","v":4},{"$f":"SUM(I54:I60)","v":2},"пятерка №1","https://sports.yahoo.com/nhl/players/4147","J.Quick (Los) [C.Lindgren (Was)]; T.Sanheim (Phi 0+0+1) - J.Sanderson (Ott 0+1+1); N.Acciari (St. 0+2+0) - Z.Hyman (Edm 0+1+0) - T.Tatar (New * ); "]
["Charlie Lindgren","Washington Capitals","BUF","в",2,1,null,null,null,null,null,null,null,null,"https://sports.yahoo.com/nhl/players/7084"]
["Travis Sanheim","Philadelphia Flyers","BUF","з",3,1,0,0,1,null,null,null,null,null,"https://sports.yahoo.com/nhl/players/6383"]
["Jake Sanderson","Ottawa Senators","BUF","з",4,1,0,1,1,null,null,null,null,null,"https://sports.yahoo.com/nhl/players/8645"]
["Noel Acciari","St. Louis Blues","BUF","л",5,1,0,2,0,null,null,null,null,null,"https://sports.yahoo.com/nhl/players/6739"]
["Zach Hyman","Edmonton Oilers","BUF","п",6,1,0,1,0,null,null,null,null,null,"https://sports.yahoo.com/nhl/players/5096"]
["Tomas Tatar","New Jersey Devils","BUF","ц",7,1,null,null,null,"*",null,null,null,null,"https://sports.yahoo.com/nhl/players/4792"]
["Alexandre Carrier","Nashville Predators","BUF","з",8,2,0,0,0,null,{"$f":"SUM(G61:G65)","v":1},{"$f":"SUM(H61:H65)","v":2},{"$f":"SUM(I61:I65,I54:I55)","v":1},"пятерка №2","https://sports.yahoo.com/nhl/players/6857","A.Carrier (Nas 0+0+0) - R.Ristolainen (Phi 0+0+1); M.Domi (Chi 0+1+0) - J.Peterka (Buf 0+0+0) -C.Cizikas (New 1+1+0); "]
["Rasmus Ristolainen","Philadelphia Flyers","BUF","з",9,2,0,0,1,null,null,null,null,null,"https://sports.yahoo.com/nhl/players/5987"]
["Max Domi","Chicago Blackhawks","BUF","л",10,2,0,1,0,null,null,null,null,null,"https://sports.yahoo.com/nhl/players/5991"]
["John-Jason Peterka","Buffalo Sabres","BUF","п",11,2,0,0,0,null,null,null,null,null,"https://sports.yahoo.com/nhl/players/8674"]
["Casey Cizikas","New York Islanders","BUF","ц",12,2,1,1,0,null,null,null,null,null,"https://sports.yahoo.com/nhl/players/4773"]
["Brandon Carlo","Boston Bruins","BUF","з",13,3,0,0,1,null,{"$f":"SUM(G66:G70)","v":2},{"$f":"SUM(H66:H70)","v":2},{"$f":"SUM(I66:I70,I54:I55)","v":1},"пятерка №3","https://sports.yahoo.com/nhl/players/6779","B.Carlo (Bos 0+0+1) - C.Murphy (Chi 0+0+0); A.Wennberg (Sea 1+1+0) - V.Olofsson (Buf 0+0+0) - M.Beniers (Sea 1+1+0); "]
["Connor Murphy","Chicago Blackhawks","BUF","з",14,3,0,0,0,null,null,null,null,null,"https://sports.yahoo.com/nhl/players/5381"]
["Alex Wennberg","Seattle Kraken","BUF","ц",15,3,1,1,0,null,null,null,null,null,"https://sports.yahoo.com/nhl/players/5993"]
["Victor Olofsson","Buffalo Sabres","BUF","л",16,3,0,0,0,null,null,null,null,null,"https://sports.yahoo.com/nhl/players/6549"]
["Matty Beniers","Seattle Kraken","BUF","ц",17,3,1,1,0,null,null,null,null,null,"https://sports.yahoo.com/nhl/players/8878"]
["Casey DeSmith","Pittsburgh Penguins","CAR","в",1,1,0,0,0,null,{"$f":"SUM(G71:G77)","v":0},{"$f":"SUM(H71:H77)","v":0},{"$f":"SUM(I71:I77)","v":0},"пятерка №1","https://sports.yahoo.com/nhl/players/7429","C.DeSmith (Pit 0+0+0) [S.Varlamov (New)]; M.Bjork (Col 0+0+0) - M.Fehervary (Was 0+0+0); J.Bratt (New * ) - Y.Sharangovich (New * ) - R.Colton (Tam *  0+0+0); "]
["Semyon Varlamov","New York Islanders","CAR","в",2,1,null,null,null,null,null,null,null,null,"https://sports.yahoo.com/nhl/players/4003"]
["Marcus Bjork","Columbus Blue Jackets","CAR","з",3,1,0,0,0,null,null,null,null,null,"https://sports.yahoo.com/nhl/players/9262"]
["Martin Fehervary","Washington Capitals","CAR","з",4,1,0,0,0,null,null,null,null,null,"https://sports.yahoo.com/nhl/players/7944"]
["Jesper Bratt","New Jersey Devils","CAR","л",5,1,null,null,null,"*",null,null,null,null,"https://sports.yahoo.com/nhl/players/7267"]
["Yegor Sharangovich","New Jersey Devils","CAR","п",6,1,null,null,null,"*",null,null,null,null,"https://sports.yahoo.com/nhl/players/8069"]
["Ross Colton","Tampa Bay Lightning","CAR","ц",7,1,0,0,0,"*",null,null,null,null,"https://sports.yahoo.com/nhl/players/7224"]
["Chris Wideman","Montreal Canadiens","CAR","з",8,2,0,0,0,null,{"$f":"SUM(G78:G82)","v":1},{"$f":"SUM(H78:H82)","v":0},{"$f":"SUM(I78:I82,I71:I72)","v":0},"пятерка №2","https://sports.yahoo.com/nhl/players/5638","C.Wideman (Mon 0+0+0) - M.Seider (Det * ); L.Crouse (Ari 0+0+0) - C.Fischer (Ari 0+0+0) -J.Anderson (Mon 1+0+0); "]
["Moritz Seider","Detroit Red Wings","CAR","з",9,2,null,null,null,"*",null,null,null,null,"https://sports.yahoo.com/nhl/players/8284"]
["Lawson Crouse","Arizona Coyotes","CAR","л",10,2,0,0,0,null,null,null,null,null,"https://sports.yahoo.com/nhl/players/6753"]
["Christian Fischer","Arizona Coyotes","CAR","п",11,2,0,0,0,null,null,null,null,null,"https://sports.yahoo.com/nhl/players/6774"]
["Josh Anderson","Montreal Canadiens","CAR","п",12,2,1,0,0,null,null,null,null,null,"https://sports.yahoo.com/nhl/players/5785"]
["Owen Power","Buffalo Sabres","CAR","з",13,3,0,1,0,null,{"$f":"SUM(G83:G87)","v":0},{"$f":"SUM(H83:H87)","v":4},{"$f":"SUM(I83:I87,I71:I72)","v":0},"пятерка №3","https://sports.yahoo.com/nhl/players/8877","O.Power (Buf 0+1+0) - E.Lindell (Dal *  0+0+0); C.Giroux (Ott 0+2+0) - T.Jeannot (Nas 0+1+0) - R.Johansen (Nas 0+0+0); "]
["Esa Lindell","Dallas Stars","CAR","з",14,3,0,0,0,"*",null,null,null,null,"https://sports.yahoo.com/nhl/players/5765"]
["Claude Giroux","Ottawa Senators","CAR","л",15,3,0,2,0,null,null,null,null,null,"https://sports.yahoo.com/nhl/players/4002"]
["Tanner Jeannot","Nashville Predators","CAR","п",16,3,0,1,0,null,null,null,null,null,"https://sports.yahoo.com/nhl/players/7365"]
["Ryan Johansen","Nashville Predators","CAR","ц",17,3,0,0,0,null,null,null,null,null,"https://sports.yahoo.com/nhl/players/4964"]
["Carter Hart","Philadelphia Flyers","CGY","в",1,1,null,null,null,null,{"$f":"SUM(G88:G94)","v":0},{"$f":"SUM(H88:H94)","v":0},{"$f":"SUM(I88:I94)","v":1},"пятерка №1","https://sports.yahoo.com/nhl/players/7156","C.Hart (Phi) [F.Sandstrom (Phi)]; E.Brannstrom (Ott 0+0+1) - L.Pilut (Buf); F.Vatrano (Ana *  0+0+0) - P.Laine (Col 0+0+0) - S.Crosby (Pit 0+0+0); "]
["Felix Sandstrom","Philadelphia Flyers","CGY","в",2,1,null,null,null,null,null,null,null,null,"https://sports.yahoo.com/nhl/players/6812"]
["Erik Brannstrom","Ottawa Senators","CGY","з",3,1,0,0,1,null,null,null,null,null,"https://sports.yahoo.com/nhl/players/7530"]
["Lawrence Pilut","Buffalo Sabres","CGY","з",4,1,null,null,null,null,null,null,null,null,"https://sports.yahoo.com/nhl/players/7881"]
["Frank Vatrano","Anaheim Ducks","CGY","л",5,1,0,0,0,"*",null,null,null,null,"https://sports.yahoo.com/nhl/players/6707"]
["Patrik Laine","Columbus Blue Jackets","CGY","п",6,1,0,0,0,null,null,null,null,null,"https://sports.yahoo.com/nhl/players/7110"]
["Sidney Crosby","Pittsburgh Penguins","CGY","ц",7,1,0,0,0,null,null,null,null,null,"https://sports.yahoo.com/nhl/players/3737"]
["Tony DeAngelo","Philadelphia Flyers","CGY","з",8,2,0,0,1,null,{"$f":"SUM(G95:G99)","v":1},{"$f":"SUM(H95:H99)","v":1},{"$f":"SUM(I95:I99,I88:I89)","v":1},"пятерка №2","https://sports.yahoo.com/nhl/players/6385","T.DeAngelo (Phi 0+0+1) - J.Slavin (Car 0+1+0); R.Nugent-Hopkins (Edm 1+0+0) - P.Kessel (Veg 0+0+0) -J.Tavares (Tor 0+0+0); "]
["Jaccob Slavin","Carolina Hurricanes","CGY","з",9,2,0,1,0,null,null,null,null,null,"https://sports.yahoo.com/nhl/players/5810"]
["Ryan Nugent-Hopkins","Edmonton Oilers","CGY","л",10,2,1,0,0,null,null,null,null,null,"https://sports.yahoo.com/nhl/players/5362"]
["Phil Kessel","Vegas Golden Knights","CGY","п",11,2,0,0,0,null,null,null,null,null,"https://sports.yahoo.com/nhl/players/3983"]
["John Tavares","Toronto Maple Leafs","CGY","ц",12,2,0,0,0,null,null,null,null,null,"https://sports.yahoo.com/nhl/players/4681"]
["Jacob Trouba","New York Rangers","CGY","з",13,3,1,1,0,null,{"$f":"SUM(G100:G104)","v":2},{"$f":"SUM(H100:H104)","v":4},{"$f":"SUM(I100:I104,I88:I89)","v":0},"пятерка №3","https://sports.yahoo.com/nhl/players/5689","J.Trouba (New 1+1+0) - Q.Hughes (Van 0+1+0); F.Chytil (New 1+1+0) - M.Hoffman (Mon 0+1+0) - M.Shaw (Min * ); "]
["Quinn Hughes","Vancouver Canucks","CGY","з",14,3,0,1,0,null,null,null,null,null,"https://sports.yahoo.com/nhl/players/7905"]
["Filip Chytil","New York Rangers","CGY","ц",15,3,1,1,0,null,null,null,null,null,"https://sports.yahoo.com/nhl/players/7536"]
["Mike Hoffman","Montreal Canadiens","CGY","л",16,3,0,1,0,null,null,null,null,null,"https://sports.yahoo.com/nhl/players/4805"]
["Mason Shaw","Minnesota Wild","CGY","п",17,3,null,null,null,"*",null,null,null,null,"https://sports.yahoo.com/nhl/players/7612"]
["Darcy Kuemper","Washington Capitals","CHI","в",1,1,0,0,0,null,{"$f":"SUM(G105:G111)","v":0},{"$f":"SUM(H105:H111)","v":1},{"$f":"SUM(I105:I111)","v":0},"пятерка №1","https://sports.yahoo.com/nhl/players/5336","D.Kuemper (Was 0+0+0) [C.Talbot (Ott)]; S.Girard (Col 0+0+0) - M.Pettersson (Pit 0+0+0); Z.Parise (New 0+0+0) - J.Staal (Car 0+0+0) - C.Sheary (Was 0+1+0); "]
["Cam Talbot","Ottawa Senators","CHI","в",2,1,null,null,null,null,null,null,null,null,"https://sports.yahoo.com/nhl/players/4854"]
["Samuel Girard","Colorado Avalanche","CHI","з",3,1,0,0,0,null,null,null,null,null,"https://sports.yahoo.com/nhl/players/7155"]
["Marcus Pettersson","Pittsburgh Penguins","CHI","з",4,1,0,0,0,null,null,null,null,null,"https://sports.yahoo.com/nhl/players/6407"]
["Zach Parise","New York Islanders","CHI","л",5,1,0,0,0,null,null,null,null,null,"https://sports.yahoo.com/nhl/players/3355"]
["Jordan Staal","Carolina Hurricanes","CHI","ц",6,1,0,0,0,null,null,null,null,null,"https://sports.yahoo.com/nhl/players/3980"]
["Conor Sheary","Washington Capitals","CHI","п",7,1,0,1,0,null,null,null,null,null,"https://sports.yahoo.com/nhl/players/6585"]
["Jani Hakanpaa","Dallas Stars","CHI","з",8,2,0,0,0,"*",{"$f":"SUM(G112:G116)","v":0},{"$f":"SUM(H112:H116)","v":1},{"$f":"SUM(I112:I116,I105:I106)","v":0},"пятерка №2","https://sports.yahoo.com/nhl/players/5077","J.Hakanpaa (Dal *  0+0+0) - A.Larsson (Sea 0+1+0); D.Kubalik (Det * ) - K.Dach (Mon 0+0+0) -A.Kuzmenko (Van 0+0+0); "]
["Adam Larsson","Seattle Kraken","CHI","з",9,2,0,1,0,null,null,null,null,null,"https://sports.yahoo.com/nhl/players/5365"]
["Dominik Kubalik","Detroit Red Wings","CHI","л",10,2,null,null,null,"*",null,null,null,null,"https://sports.yahoo.com/nhl/players/6169"]
["Kirby Dach","Montreal Canadiens","CHI","ц",11,2,0,0,0,null,null,null,null,null,"https://sports.yahoo.com/nhl/players/8281"]
["Andrei Kuzmenko","Vancouver Canucks","CHI","л",12,2,0,0,0,null,null,null,null,null,"https://sports.yahoo.com/nhl/players/9268"]
["Tyson Barrie","Edmonton Oilers","CHI","з",13,3,0,0,0,null,{"$f":"SUM(G117:G121)","v":1},{"$f":"SUM(H117:H121)","v":2},{"$f":"SUM(I117:I121,I105:I106)","v":1},"пятерка №3","https://sports.yahoo.com/nhl/players/5281","T.Barrie (Edm 0+0+0) - C.McAvoy (Bos 0+0+1); B.Hagel (Tam *  1+1+0) - E.Kuznetsov (Was 0+1+0) - D.Pastrnak (Bos 0+0+0); "]
["Charlie McAvoy","Boston Bruins","CHI","з",14,3,0,0,1,null,null,null,null,null,"https://sports.yahoo.com/nhl/players/7122"]
["Brandon Hagel","Tampa Bay Lightning","CHI","л",15,3,1,1,0,"*",null,null,null,null,"https://sports.yahoo.com/nhl/players/7264"]
["Evgeny Kuznetsov","Washington Capitals","CHI","ц",16,3,0,1,0,null,null,null,null,null,"https://sports.yahoo.com/nhl/players/4986"]
["David Pastrnak","Boston Bruins","CHI","п",17,3,0,0,0,null,null,null,null,null,"https://sports.yahoo.com/nhl/players/6391"]
["Juuse Saros","Nashville Predators","COL","в",1,1,0,0,0,null,{"$f":"SUM(G122:G128)","v":1},{"$f":"SUM(H122:H128)","v":1},{"$f":"SUM(I122:I128)","v":0},"пятерка №1","https://sports.yahoo.com/nhl/players/6078","J.Saros (Nas 0+0+0) [K.Lankinen (Nas)]; M.Rielly (Tor 0+0+0) - A.Pietrangelo (Veg 0+1+0); A.Lee (New 1+0+0) - C.White (Flo 0+0+0) - S.Jarvis (Car 0+0+0); "]
["Kevin Lankinen","Nashville Predators","COL","в",2,1,null,null,null,null,null,null,null,null,"https://sports.yahoo.com/nhl/players/7886"]
["Morgan Rielly","Toronto Maple Leafs","COL","з",3,1,0,0,0,null,null,null,null,null,"https://sports.yahoo.com/nhl/players/5685"]
["Alex Pietrangelo","Vegas Golden Knights","COL","з",4,1,0,1,0,null,null,null,null,null,"https://sports.yahoo.com/nhl/players/4474"]
["Anders Lee","New York Islanders","COL","л",5,1,1,0,0,null,null,null,null,null,"https://sports.yahoo.com/nhl/players/5928"]
["Colin White","Florida Panthers","COL","ц",6,1,0,0,0,null,null,null,null,null,"https://sports.yahoo.com/nhl/players/6763"]
["Seth Jarvis","Carolina Hurricanes","COL","п",7,1,0,0,0,null,null,null,null,null,"https://sports.yahoo.com/nhl/players/8653"]
["Travis Hamonic","Ottawa Senators","COL","з",8,2,0,1,1,null,{"$f":"SUM(G129:G133)","v":3},{"$f":"SUM(H129:H133)","v":3},{"$f":"SUM(I129:I133,I122:I123)","v":1},"пятерка №2","https://sports.yahoo.com/nhl/players/4771","T.Hamonic (Ott 0+1+1) - J.Johnson (Chi 0+0+0); M.Tkachuk (Flo 3+1+0) - R.Faksa (Dal *  0+0+0) -P.Buchnevich (St. 0+1+0); "]
["Jack Johnson","Chicago Blackhawks","COL","з",9,2,0,0,0,null,null,null,null,null,"https://sports.yahoo.com/nhl/players/3777"]
["Matthew Tkachuk","Florida Panthers","COL","л",10,2,3,1,0,null,null,null,null,null,"https://sports.yahoo.com/nhl/players/7114"]
["Radek Faksa","Dallas Stars","COL","ц",11,2,0,0,0,"*",null,null,null,null,"https://sports.yahoo.com/nhl/players/5693"]
["Pavel Buchnevich","St. Louis Blues","COL","п",12,2,0,1,0,null,null,null,null,null,"https://sports.yahoo.com/nhl/players/6055"]
["Conor Timmins","Toronto Maple Leafs","COL","з",13,3,null,null,null,null,{"$f":"SUM(G134:G138)","v":0},{"$f":"SUM(H134:H138)","v":3},{"$f":"SUM(I134:I138,I122:I123)","v":0},"пятерка №3","https://sports.yahoo.com/nhl/players/7547","C.Timmins (Tor) - R.Suter (Dal *  0+0+0); K.Fiala (Los 0+2+0) - R.Lomberg (Flo 0+1+0) - O.Bjorkstrand (Sea 0+0+0); "]
["Ryan Suter","Dallas Stars","COL","з",14,3,0,0,0,"*",null,null,null,null,"https://sports.yahoo.com/nhl/players/3345"]
["Kevin Fiala","Los Angeles Kings","COL","л",15,3,0,2,0,null,null,null,null,null,"https://sports.yahoo.com/nhl/players/6377"]
["Ryan Lomberg","Florida Panthers","COL","л",16,3,0,1,0,null,null,null,null,null,"https://sports.yahoo.com/nhl/players/7044"]
["Oliver Bjorkstrand","Seattle Kraken","COL","п",17,3,0,0,0,null,null,null,null,null,"https://sports.yahoo.com/nhl/players/6068"]
["Igor Shesterkin","New York Rangers","DAL","в",1,1,0,0,0,null,{"$f":"SUM(G139:G145)","v":2},{"$f":"SUM(H139:H145)","v":3},{"$f":"SUM(I139:I145)","v":1},"пятерка №1","https://sports.yahoo.com/nhl/players/6486","I.Shesterkin (New 0+0+0) [A.Nedeljkovic (Det * )]; R.Josi (Nas 1+1+0) - M.Sergachev (Tam *  0+0+1); C.McDavid (Edm 1+0+0) - A.Holtz (New * ) - N.Cates (Phi 0+2+0); "]
["Alex Nedeljkovic","Detroit Red Wings","DAL","в",2,1,null,null,null,"*",null,null,null,null,"https://sports.yahoo.com/nhl/players/6406"]
["Roman Josi","Nashville Predators","DAL","з",3,1,1,1,0,null,null,null,null,null,"https://sports.yahoo.com/nhl/players/4930"]
["Mikhail Sergachev","Tampa Bay Lightning","DAL","з",4,1,0,0,1,"*",null,null,null,null,"https://sports.yahoo.com/nhl/players/7117"]
["Connor McDavid","Edmonton Oilers","DAL","ц",5,1,1,0,0,null,null,null,null,null,"https://sports.yahoo.com/nhl/players/6743"]
["Alexander Holtz","New Jersey Devils","DAL","п",6,1,null,null,null,"*",null,null,null,null,"https://sports.yahoo.com/nhl/players/8647"]
["Noah Cates","Philadelphia Flyers","DAL","л",7,1,0,2,0,null,null,null,null,null,"https://sports.yahoo.com/nhl/players/7652"]
["Gustav Forsling","Florida Panthers","DAL","з",8,2,0,1,0,null,{"$f":"SUM(G146:G150)","v":0},{"$f":"SUM(H146:H150)","v":2},{"$f":"SUM(I146:I150,I139:I140)","v":0},"пятерка №2","https://sports.yahoo.com/nhl/players/6494","G.Forsling (Flo 0+1+0) - D.Samberg (Win 0+1+0); C.Grundstrom (Los 0+0+0) - P.Suter (Det * ) -D.Perron (Det * ); "]
["Dylan Samberg","Winnipeg Jets","DAL","з",9,2,0,1,0,null,null,null,null,null,"https://sports.yahoo.com/nhl/players/7558"]
["Carl Grundstrom","Los Angeles Kings","DAL","л",10,2,0,0,0,null,null,null,null,null,"https://sports.yahoo.com/nhl/players/7165"]
["Pius Suter","Detroit Red Wings","DAL","ц",11,2,null,null,null,"*",null,null,null,null,"https://sports.yahoo.com/nhl/players/7829"]
["David Perron","Detroit Red Wings","DAL","п",12,2,null,null,null,"*",null,null,null,null,"https://sports.yahoo.com/nhl/players/4265"]
["Miro Heiskanen","Dallas Stars","DAL","з",13,3,1,0,0,"*",{"$f":"SUM(G151:G155)","v":4},{"$f":"SUM(H151:H155)","v":2},{"$f":"SUM(I151:I155,I139:I140)","v":0},"пятерка №3","https://sports.yahoo.com/nhl/players/7518","M.Heiskanen (Dal *  1+0+0) - M.Giordano (Tor 0+0+0); N.MacKinnon (Col 1+1+0) - J.McCann (Sea 1+0+0) - B.Schenn (St. 1+1+0); "]
["Mark Giordano","Toronto Maple Leafs","DAL","з",14,3,0,0,0,null,null,null,null,null,"https://sports.yahoo.com/nhl/players/3614"]
["Nathan MacKinnon","Colorado Avalanche","DAL","ц",15,3,1,1,0,null,null,null,null,null,"https://sports.yahoo.com/nhl/players/5980"]
["Jared McCann","Seattle Kraken","DAL","л",16,3,1,0,0,null,null,null,null,null,"https://sports.yahoo.com/nhl/players/6390"]
["Brayden Schenn","St. Louis Blues","DAL","ц",17,3,1,1,0,null,null,null,null,null,"https://sports.yahoo.com/nhl/players/4685"]
["Linus Ullmark","Boston Bruins","DET","в",1,1,0,0,1,null,{"$f":"SUM(G156:G162)","v":1},{"$f":"SUM(H156:H162)","v":0},{"$f":"SUM(I156:I162)","v":1},"пятерка №1","https://sports.yahoo.com/nhl/players/5853","L.Ullmark (Bos 0+0+1) [P.Grubauer (Sea)]; N.Pionk (Win 0+0+0) - J.Siegenthaler (New * ); K.Kapanen (Pit 1+0+0) - J.Toews (Chi 0+0+0) - J.Veleno (Det * ); "]
["Philipp Grubauer","Seattle Kraken","DET","в",2,1,null,null,null,null,null,null,null,null,"https://sports.yahoo.com/nhl/players/5085"]
["Neal Pionk","Winnipeg Jets","DET","з",3,1,0,0,0,null,null,null,null,null,"https://sports.yahoo.com/nhl/players/7498"]
["Jonas Siegenthaler","New Jersey Devils","DET","з",4,1,null,null,null,"*",null,null,null,null,"https://sports.yahoo.com/nhl/players/6799"]
["Kasperi Kapanen","Pittsburgh Penguins","DET","п",5,1,1,0,0,null,null,null,null,null,"https://sports.yahoo.com/nhl/players/6388"]
["Jonathan Toews","Chicago Blackhawks","DET","ц",6,1,0,0,0,null,null,null,null,null,"https://sports.yahoo.com/nhl/players/3981"]
["Joe Veleno","Detroit Red Wings","DET","ц",7,1,null,null,null,"*",null,null,null,null,"https://sports.yahoo.com/nhl/players/7928"]
["Ty Smith","New Jersey Devils","DET","з",8,2,0,0,0,"*",{"$f":"SUM(G163:G167)","v":2},{"$f":"SUM(H163:H167)","v":1},{"$f":"SUM(I163:I167,I156:I157)","v":1},"пятерка №2","https://sports.yahoo.com/nhl/players/7915","T.Smith (New *  0+0+0) - A.Fox (New 0+1+0); M.Backlund (Cal 1+0+0) - D.Malgin (Tor 0+0+0) -A.Panarin (New 1+0+0); "]
["Adam Fox","New York Rangers","DET","з",9,2,0,1,0,null,null,null,null,null,"https://sports.yahoo.com/nhl/players/7174"]
["Mikael Backlund","Calgary Flames","DET","ц",10,2,1,0,0,null,null,null,null,null,"https://sports.yahoo.com/nhl/players/4263"]
["Denis Malgin","Toronto Maple Leafs","DET","п",11,2,0,0,0,null,null,null,null,null,"https://sports.yahoo.com/nhl/players/6844"]
["Artemi Panarin","New York Rangers","DET","л",12,2,1,0,0,null,null,null,null,null,"https://sports.yahoo.com/nhl/players/6728"]
["Matt Grzelcyk","Boston Bruins","DET","з",13,3,0,1,1,null,{"$f":"SUM(G168:G172)","v":0},{"$f":"SUM(H168:H172)","v":3},{"$f":"SUM(I168:I172,I156:I157)","v":2},"пятерка №3","https://sports.yahoo.com/nhl/players/5776","M.Grzelcyk (Bos 0+1+1) - P.Joseph (Pit 0+0+0); A.Lehkonen (Col 0+2+0) - E.Rodrigues (Col) - T.Boyd (Ari 0+0+0); "]
["Pierre-Olivier Joseph","Pittsburgh Penguins","DET","з",14,3,0,0,0,null,null,null,null,null,"https://sports.yahoo.com/nhl/players/7538"]
["Artturi Lehkonen","Colorado Avalanche","DET","л",15,3,0,2,0,null,null,null,null,null,"https://sports.yahoo.com/nhl/players/6035"]
["Evan Rodrigues","Colorado Avalanche","DET","п",16,3,null,null,null,null,null,null,null,null,"https://sports.yahoo.com/nhl/players/6726"]
["Travis Boyd","Arizona Coyotes","DET","ц",17,3,0,0,0,null,null,null,null,null,"https://sports.yahoo.com/nhl/players/5542"]
["Alexandar Georgiev","Colorado Avalanche","EDM","в",1,1,0,0,0,null,{"$f":"SUM(G173:G179)","v":1},{"$f":"SUM(H173:H179)","v":1},{"$f":"SUM(I173:I179)","v":0},"пятерка №1","https://sports.yahoo.com/nhl/players/7736","A.Georgiev (Col 0+0+0) [A.Georgiev (New)]; B.Dillon (Win 1+0+0) - C.Fowler (Ana *  0+0+0); J.Benn (Dal *  0+0+0) - T.Raddysh (Chi 0+1+0) - T.Seguin (Dal *  0+0+0); "]
["Alexandar Georgiev","New York Rangers","EDM","в",2,1,null,null,null,null,null,null,null,null,"https://sports.yahoo.com/nhl/players/7736"]
["Brenden Dillon","Winnipeg Jets","EDM","з",3,1,1,0,0,null,null,null,null,null,"https://sports.yahoo.com/nhl/players/5251"]
["Cam Fowler","Anaheim Ducks","EDM","з",4,1,0,0,0,"*",null,null,null,null,"https://sports.yahoo.com/nhl/players/4972"]
["Jamie Benn","Dallas Stars","EDM","л",5,1,0,0,0,"*",null,null,null,null,"https://sports.yahoo.com/nhl/players/4519"]
["Taylor Raddysh","Chicago Blackhawks","EDM","п",6,1,0,1,0,null,null,null,null,null,"https://sports.yahoo.com/nhl/players/7166"]
["Tyler Seguin","Dallas Stars","EDM","ц",7,1,0,0,0,"*",null,null,null,null,"https://sports.yahoo.com/nhl/players/4962"]
["Nick Jensen","Washington Capitals","EDM","з",8,2,0,1,0,null,{"$f":"SUM(G180:G184)","v":1},{"$f":"SUM(H180:H184)","v":3},{"$f":"SUM(I180:I184,I173:I174)","v":0},"пятерка №2","https://sports.yahoo.com/nhl/players/5958","N.Jensen (Was 0+1+0) - M.Dumba (Min * ); W.Carrier (Veg 0+1+0) - T.Konecny (Phi 1+1+0) -D.Mercer (New * ); "]
["Matt Dumba","Minnesota Wild","EDM","з",9,2,null,null,null,"*",null,null,null,null,"https://sports.yahoo.com/nhl/players/5687"]
["William Carrier","Vegas Golden Knights","EDM","л",10,2,0,1,0,null,null,null,null,null,"https://sports.yahoo.com/nhl/players/6037"]
["Travis Konecny","Philadelphia Flyers","EDM","п",11,2,1,1,0,null,null,null,null,null,"https://sports.yahoo.com/nhl/players/6766"]
["Dawson Mercer","New Jersey Devils","EDM","ц",12,2,null,null,null,"*",null,null,null,null,"https://sports.yahoo.com/nhl/players/8658"]
["Josh Morrissey","Winnipeg Jets","EDM","з",13,3,1,0,0,null,{"$f":"SUM(G185:G189)","v":1},{"$f":"SUM(H185:H189)","v":0},{"$f":"SUM(I185:I189,I173:I174)","v":0},"пятерка №3","https://sports.yahoo.com/nhl/players/5992","J.Morrissey (Win 1+0+0) - K.Letang (Pit); K.Kaprizov (Min * ) - N.Kucherov (Tam *  0+0+0) - P.Bergeron (Bos 0+0+0); "]
["Kris Letang","Pittsburgh Penguins","EDM","з",14,3,null,null,null,null,null,null,null,null,"https://sports.yahoo.com/nhl/players/4064"]
["Kirill Kaprizov","Minnesota Wild","EDM","л",15,3,null,null,null,"*",null,null,null,null,"https://sports.yahoo.com/nhl/players/6877"]
["Nikita Kucherov","Tampa Bay Lightning","EDM","п",16,3,0,0,0,"*",null,null,null,null,"https://sports.yahoo.com/nhl/players/5425"]
["Patrice Bergeron","Boston Bruins","EDM","ц",17,3,0,0,0,null,null,null,null,null,"https://sports.yahoo.com/nhl/players/3383"]
["Connor Hellebuyck","Winnipeg Jets","FLA","в",1,1,0,0,0,null,{"$f":"SUM(G190:G196)","v":2},{"$f":"SUM(H190:H196)","v":3},{"$f":"SUM(I190:I196)","v":0},"пятерка №1","https://sports.yahoo.com/nhl/players/5820","C.Hellebuyck (Win 0+0+0) [J.Swayman (Bos)]; R.Pulock (New 0+1+0) - B.Burns (Car 1+0+0); S.Aho (Car 0+0+0) - A.Matthews (Tor 1+1+0) - L.Draisaitl (Edm 0+1+0); "]
["Jeremy Swayman","Boston Bruins","FLA","в",2,1,null,null,null,null,null,null,null,null,"https://sports.yahoo.com/nhl/players/7626"]
["Ryan Pulock","New York Islanders","FLA","з",3,1,0,1,0,null,null,null,null,null,"https://sports.yahoo.com/nhl/players/5994"]
["Brent Burns","Carolina Hurricanes","FLA","з",4,1,1,0,0,null,null,null,null,null,"https://sports.yahoo.com/nhl/players/3358"]
["Sebastian Aho","Carolina Hurricanes","FLA","п",5,1,0,0,0,null,null,null,null,null,"https://sports.yahoo.com/nhl/players/6777"]
["Auston Matthews","Toronto Maple Leafs","FLA","ц",6,1,1,1,0,null,null,null,null,null,"https://sports.yahoo.com/nhl/players/7109"]
["Leon Draisaitl","Edmonton Oilers","FLA","л",7,1,0,1,0,null,null,null,null,null,"https://sports.yahoo.com/nhl/players/6369"]
["Seth Jones","Chicago Blackhawks","FLA","з",8,2,1,0,0,null,{"$f":"SUM(G197:G201)","v":2},{"$f":"SUM(H197:H201)","v":4},{"$f":"SUM(I197:I201,I190:I191)","v":0},"пятерка №2","https://sports.yahoo.com/nhl/players/5983","S.Jones (Chi 1+0+0) - D.Doughty (Los 0+1+0); P.Dubois (Win 0+1+0) - C.Keller (Ari 1+1+0) -A.Barkov (Flo 0+1+0); "]
["Drew Doughty","Los Angeles Kings","FLA","з",9,2,0,1,0,null,null,null,null,null,"https://sports.yahoo.com/nhl/players/4472"]
["Pierre-Luc Dubois","Winnipeg Jets","FLA","л",10,2,0,1,0,null,null,null,null,null,"https://sports.yahoo.com/nhl/players/7111"]
["Clayton Keller","Arizona Coyotes","FLA","п",11,2,1,1,0,null,null,null,null,null,"https://sports.yahoo.com/nhl/players/7115"]
["Aleksander Barkov","Florida Panthers","FLA","ц",12,2,0,1,0,null,null,null,null,null,"https://sports.yahoo.com/nhl/players/5981"]
["Nick Seeler","Philadelphia Flyers","FLA","з",13,3,null,null,null,null,{"$f":"SUM(G202:G206)","v":0},{"$f":"SUM(H202:H206)","v":0},{"$f":"SUM(I202:I206,I190:I191)","v":0},"пятерка №3","https://sports.yahoo.com/nhl/players/5496","N.Seeler (Phi) - K.Guhle (Mon); N.Aube-Kubel (Was) - A.Lundell (Flo 0+0+0) - C.Smith (Nas); "]
["Kaiden Guhle","Montreal Canadiens","FLA","з",14,3,null,null,null,null,null,null,null,null,"https://sports.yahoo.com/nhl/players/8656"]
["Nicolas Aube-Kubel","Washington Capitals","FLA","п",15,3,null,null,null,null,null,null,null,null,"https://sports.yahoo.com/nhl/players/6417"]
["Anton Lundell","Florida Panthers","FLA","ц",16,3,0,0,0,null,null,null,null,null,"https://sports.yahoo.com/nhl/players/8652"]
["Cole Smith","Nashville Predators","FLA","л",17,3,null,null,null,null,null,null,null,null,"https://sports.yahoo.com/nhl/players/8595"]
["Pyotr Kochetkov","Carolina Hurricanes","LAK","в",1,1,0,0,0,null,{"$f":"SUM(G207:G213)","v":4},{"$f":"SUM(H207:H213)","v":1},{"$f":"SUM(I207:I213)","v":0},"пятерка №1","https://sports.yahoo.com/nhl/players/8314","P.Kochetkov (Car 0+0+0) [J.Binnington (St.)]; J.Chatfield (Car 1+0+0) - R.McDonagh (Nas 0+0+0); J.Pavelski (Dal *  0+1+0) - M.Duchene (Nas 1+0+0) - B.Saad (St. 2+0+0); "]
["Jordan Binnington","St. Louis Blues","LAK","в",2,1,null,null,null,null,null,null,null,null,"https://sports.yahoo.com/nhl/players/5454"]
["Jalen Chatfield","Carolina Hurricanes","LAK","з",3,1,1,0,0,null,null,null,null,null,"https://sports.yahoo.com/nhl/players/6984"]
["Ryan McDonagh","Nashville Predators","LAK","з",4,1,0,0,0,null,null,null,null,null,"https://sports.yahoo.com/nhl/players/4251"]
["Joe Pavelski","Dallas Stars","LAK","п",5,1,0,1,0,"*",null,null,null,null,"https://sports.yahoo.com/nhl/players/3985"]
["Matt Duchene","Nashville Predators","LAK","ц",6,1,1,0,0,null,null,null,null,null,"https://sports.yahoo.com/nhl/players/4683"]
["Brandon Saad","St. Louis Blues","LAK","л",7,1,2,0,0,null,null,null,null,null,"https://sports.yahoo.com/nhl/players/5411"]
["Kevin Shattenkirk","Anaheim Ducks","LAK","з",8,2,0,0,0,"*",{"$f":"SUM(G214:G218)","v":0},{"$f":"SUM(H214:H218)","v":1},{"$f":"SUM(I214:I218,I207:I208)","v":0},"пятерка №2","https://sports.yahoo.com/nhl/players/4253","K.Shattenkirk (Ana *  0+0+0) - J.Merrill (Min * ); J.Parssinen (Nas 0+0+0) - J.Skinner (Buf 0+1+0) -V.Arvidsson (Los 0+0+0); "]
["Jon Merrill","Minnesota Wild","LAK","з",9,2,null,null,null,"*",null,null,null,null,"https://sports.yahoo.com/nhl/players/5011"]
["Juuso Parssinen","Nashville Predators","LAK","ц",10,2,0,0,0,null,null,null,null,null,"https://sports.yahoo.com/nhl/players/8485"]
["Jeff Skinner","Buffalo Sabres","LAK","л",11,2,0,1,0,null,null,null,null,null,"https://sports.yahoo.com/nhl/players/4967"]
["Viktor Arvidsson","Los Angeles Kings","LAK","п",12,2,0,0,0,null,null,null,null,null,"https://sports.yahoo.com/nhl/players/6480"]
["Tyler Myers","Vancouver Canucks","LAK","з",13,3,0,0,0,null,{"$f":"SUM(G219:G223)","v":1},{"$f":"SUM(H219:H223)","v":4},{"$f":"SUM(I219:I223,I207:I208)","v":0},"пятерка №3","https://sports.yahoo.com/nhl/players/4485","T.Myers (Van 0+0+0) - M.Ekholm (Nas 1+1+0); D.Krejci (Bos 0+1+0) - B.Marchand (Bos 0+1+0) - T.Hall (Bos 0+1+0); "]
["Mattias Ekholm","Nashville Predators","LAK","з",14,3,1,1,0,null,null,null,null,null,"https://sports.yahoo.com/nhl/players/5329"]
["David Krejci","Boston Bruins","LAK","ц",15,3,0,1,0,null,null,null,null,null,"https://sports.yahoo.com/nhl/players/3898"]
["Brad Marchand","Boston Bruins","LAK","л",16,3,0,1,0,null,null,null,null,null,"https://sports.yahoo.com/nhl/players/4351"]
["Taylor Hall","Boston Bruins","LAK","л",17,3,0,1,0,null,null,null,null,null,"https://sports.yahoo.com/nhl/players/4961"]
["Logan Thompson","Vegas Golden Knights","MIN","в",1,1,0,0,0,null,{"$f":"SUM(G224:G230)","v":2},{"$f":"SUM(H224:H230)","v":2},{"$f":"SUM(I224:I230)","v":0},"пятерка №1","https://sports.yahoo.com/nhl/players/8155","L.Thompson (Veg 0+0+0) [M.Blackwood (New * )]; B.Skjei (Car 0+0+0) - M.Weegar (Cal 0+0+0); J.Farabee (Phi 1+1+0) - D.Batherson (Ott 1+0+0) - R.Thomas (St. 0+1+0); "]
["MacKenzie Blackwood","New Jersey Devils","MIN","в",2,1,null,null,null,"*",null,null,null,null,"https://sports.yahoo.com/nhl/players/6784"]
["Brady Skjei","Carolina Hurricanes","MIN","з",3,1,0,0,0,null,null,null,null,null,"https://sports.yahoo.com/nhl/players/5708"]
["MacKenzie Weegar","Calgary Flames","MIN","з",4,1,0,0,0,null,null,null,null,null,"https://sports.yahoo.com/nhl/players/6184"]
["Joel Farabee","Philadelphia Flyers","MIN","л",5,1,1,1,0,null,null,null,null,null,"https://sports.yahoo.com/nhl/players/7912"]
["Drake Batherson","Ottawa Senators","MIN","п",6,1,1,0,0,null,null,null,null,null,"https://sports.yahoo.com/nhl/players/7636"]
["Robert Thomas","St. Louis Blues","MIN","ц",7,1,0,1,0,null,null,null,null,null,"https://sports.yahoo.com/nhl/players/7535"]
["Luke Schenn","Vancouver Canucks","MIN","з",8,2,0,0,0,null,{"$f":"SUM(G231:G235)","v":2},{"$f":"SUM(H231:H235)","v":1},{"$f":"SUM(I231:I235,I224:I225)","v":0},"пятерка №2","https://sports.yahoo.com/nhl/players/4475","L.Schenn (Van 0+0+0) - B.McNabb (Veg 0+0+0); T.Jost (Buf 1+0+0) - E.Tolvanen (Sea 0+1+0) -M.Frost (Phi 1+0+0); "]
["Brayden McNabb","Vegas Golden Knights","MIN","з",9,2,0,0,0,null,null,null,null,null,"https://sports.yahoo.com/nhl/players/5227"]
["Tyson Jost","Buffalo Sabres","MIN","л",10,2,1,0,0,null,null,null,null,null,"https://sports.yahoo.com/nhl/players/7118"]
["Eeli Tolvanen","Seattle Kraken","MIN","п",11,2,0,1,0,null,null,null,null,null,"https://sports.yahoo.com/nhl/players/7545"]
["Morgan Frost","Philadelphia Flyers","MIN","ц",12,2,1,0,0,null,null,null,null,null,"https://sports.yahoo.com/nhl/players/7542"]
["Erik Cernak","Tampa Bay Lightning","MIN","з",13,3,0,0,1,"*",{"$f":"SUM(G236:G240)","v":0},{"$f":"SUM(H236:H240)","v":0},{"$f":"SUM(I236:I240,I224:I225)","v":1},"пятерка №3","https://sports.yahoo.com/nhl/players/6785","E.Cernak (Tam *  0+0+1) - M.Samuelsson (Buf 0+0+0); E.Bemstrom (Col 0+0+0) - S.Steel (Min * ) - S.Pinto (Ott 0+0+0); "]
["Mattias Samuelsson","Buffalo Sabres","MIN","з",14,3,0,0,0,null,null,null,null,null,"https://sports.yahoo.com/nhl/players/7930"]
["Emil Bemstrom","Columbus Blue Jackets","MIN","п",15,3,0,0,0,null,null,null,null,null,"https://sports.yahoo.com/nhl/players/7632"]
["Sam Steel","Minnesota Wild","MIN","ц",16,3,null,null,null,"*",null,null,null,null,"https://sports.yahoo.com/nhl/players/7138"]
["Shane Pinto","Ottawa Senators","MIN","ц",17,3,0,0,0,null,null,null,null,null,"https://sports.yahoo.com/nhl/players/8310"]
["Andrei Vasilevskiy","Tampa Bay Lightning","MTL","в",1,1,null,null,null,"*",{"$f":"SUM(G241:G247)","v":1},{"$f":"SUM(H241:H247)","v":3},{"$f":"SUM(I241:I247)","v":1},"пятерка №1","https://sports.yahoo.com/nhl/players/5699","A.Vasilevskiy (Tam * ) [B.Elliott (Tam *  0+0+1)]; C.Parayko (St. 0+2+0) - B.Montour (Flo 0+0+0); J.Hughes (New * ) - K.Connor (Win 0+1+0) - C.Caufield (Mon 1+0+0); "]
["Brian Elliott","Tampa Bay Lightning","MTL","в",2,1,0,0,1,"*",null,null,null,null,"https://sports.yahoo.com/nhl/players/4136"]
["Colton Parayko","St. Louis Blues","MTL","з",3,1,0,2,0,null,null,null,null,null,"https://sports.yahoo.com/nhl/players/5777"]
["Brandon Montour","Florida Panthers","MTL","з",4,1,0,0,0,null,null,null,null,null,"https://sports.yahoo.com/nhl/players/6424"]
["Jack Hughes","New Jersey Devils","MTL","ц",5,1,null,null,null,"*",null,null,null,null,"https://sports.yahoo.com/nhl/players/8279"]
["Kyle Connor","Winnipeg Jets","MTL","л",6,1,0,1,0,null,null,null,null,null,"https://sports.yahoo.com/nhl/players/6759"]
["Cole Caufield","Montreal Canadiens","MTL","п",7,1,1,0,0,null,null,null,null,null,"https://sports.yahoo.com/nhl/players/8293"]
["Dylan DeMelo","Winnipeg Jets","MTL","з",8,2,0,1,0,null,{"$f":"SUM(G248:G252)","v":0},{"$f":"SUM(H248:H252)","v":2},{"$f":"SUM(I248:I252,I241:I242)","v":1},"пятерка №2","https://sports.yahoo.com/nhl/players/5544","D.DeMelo (Win 0+1+0) - B.Smith (New * ); B.Nelson (New 0+1+0) - A.Lafreniere (New 0+0+0) -A.DeBrincat (Ott 0+0+0); "]
["Brendan Smith","New Jersey Devils","MTL","з",9,2,null,null,null,"*",null,null,null,null,"https://sports.yahoo.com/nhl/players/4266"]
["Brock Nelson","New York Islanders","MTL","ц",10,2,0,1,0,null,null,null,null,null,"https://sports.yahoo.com/nhl/players/4990"]
["Alexis Lafreniere","New York Rangers","MTL","л",11,2,0,0,0,null,null,null,null,null,"https://sports.yahoo.com/nhl/players/8641"]
["Alex DeBrincat","Ottawa Senators","MTL","п",12,2,0,0,0,null,null,null,null,null,"https://sports.yahoo.com/nhl/players/7147"]
["Carson Soucy","Seattle Kraken","MTL","з",13,3,0,0,0,null,{"$f":"SUM(G253:G257)","v":0},{"$f":"SUM(H253:H257)","v":2},{"$f":"SUM(I253:I257,I241:I242)","v":1},"пятерка №3","https://sports.yahoo.com/nhl/players/6117","C.Soucy (Sea 0+0+0) - C.Addison (Min * ); D.Cozens (Buf 0+1+0) - J.Huberdeau (Cal 0+0+0) - B.Boeser (Van 0+1+0); "]
["Calen Addison","Minnesota Wild","MTL","з",14,3,null,null,null,"*",null,null,null,null,"https://sports.yahoo.com/nhl/players/7951"]
["Dylan Cozens","Buffalo Sabres","MTL","ц",15,3,0,1,0,null,null,null,null,null,"https://sports.yahoo.com/nhl/players/8285"]
["Jonathan Huberdeau","Calgary Flames","MTL","ц",16,3,0,0,0,null,null,null,null,null,"https://sports.yahoo.com/nhl/players/5364"]
["Brock Boeser","Vancouver Canucks","MTL","п",17,3,0,1,0,null,null,null,null,null,"https://sports.yahoo.com/nhl/players/6765"]
["John Gibson","Anaheim Ducks","NJD","в",1,1,0,0,0,"*",{"$f":"SUM(G258:G264)","v":0},{"$f":"SUM(H258:H264)","v":1},{"$f":"SUM(I258:I264)","v":2},"пятерка №1","https://sports.yahoo.com/nhl/players/5407","J.Gibson (Ana *  0+0+0) [K.Vejmelka (Ari)]; H.Lindholm (Bos 0+0+1) - T.Chabot (Ott 0+0+1); B.Tkachuk (Ott 0+1+0) - L.Raymond (Det * ) - N.Hischier (New * ); "]
["Karel Vejmelka","Arizona Coyotes","NJD","в",2,1,null,null,null,null,null,null,null,null,"https://sports.yahoo.com/nhl/players/6887"]
["Hampus Lindholm","Boston Bruins","NJD","з",3,1,0,0,1,null,null,null,null,null,"https://sports.yahoo.com/nhl/players/5686"]
["Thomas Chabot","Ottawa Senators","NJD","з",4,1,0,0,1,null,null,null,null,null,"https://sports.yahoo.com/nhl/players/6760"]
["Brady Tkachuk","Ottawa Senators","NJD","л",5,1,0,1,0,null,null,null,null,null,"https://sports.yahoo.com/nhl/players/7902"]
["Lucas Raymond","Detroit Red Wings","NJD","п",6,1,null,null,null,"*",null,null,null,null,"https://sports.yahoo.com/nhl/players/8644"]
["Nico Hischier","New Jersey Devils","NJD","ц",7,1,null,null,null,"*",null,null,null,null,"https://sports.yahoo.com/nhl/players/7516"]
["Nils Lundkvist","Dallas Stars","NJD","з",8,2,0,0,0,"*",{"$f":"SUM(G265:G269)","v":1},{"$f":"SUM(H265:H269)","v":2},{"$f":"SUM(I265:I269,I258:I259)","v":0},"пятерка №2","https://sports.yahoo.com/nhl/players/7926","N.Lundkvist (Dal *  0+0+0) - F.Hronek (Det * ); M.Boldy (Min * ) - J.Berggren (Det * ) -M.Barzal (New 1+2+0); "]
["Filip Hronek","Detroit Red Wings","NJD","з",9,2,null,null,null,"*",null,null,null,null,"https://sports.yahoo.com/nhl/players/7161"]
["Matthew Boldy","Minnesota Wild","NJD","л",10,2,null,null,null,"*",null,null,null,null,"https://sports.yahoo.com/nhl/players/8290"]
["Jonatan Berggren","Detroit Red Wings","NJD","п",11,2,null,null,null,"*",null,null,null,null,"https://sports.yahoo.com/nhl/players/7931"]
["Mathew Barzal","New York Islanders","NJD","ц",12,2,1,2,0,null,null,null,null,null,"https://sports.yahoo.com/nhl/players/6758"]
["Nicolas Hague","Vegas Golden Knights","NJD","з",13,3,0,1,0,null,{"$f":"SUM(G270:G274)","v":1},{"$f":"SUM(H270:H274)","v":3},{"$f":"SUM(I270:I274,I258:I259)","v":0},"пятерка №3","https://sports.yahoo.com/nhl/players/7549","N.Hague (Veg 0+1+0) - D.Severson (New * ); N.Paul (Tam *  1+0+0) - T.Zegras (Ana *  0+1+0) - A.Mangiapane (Cal 0+1+0); "]
["Damon Severson","New Jersey Devils","NJD","з",14,3,null,null,null,"*",null,null,null,null,"https://sports.yahoo.com/nhl/players/5749"]
["Nick Paul","Tampa Bay Lightning","NJD","л",15,3,1,0,0,"*",null,null,null,null,"https://sports.yahoo.com/nhl/players/6080"]
["Trevor Zegras","Anaheim Ducks","NJD","ц",16,3,0,1,0,"*",null,null,null,null,"https://sports.yahoo.com/nhl/players/8287"]
["Andrew Mangiapane","Calgary Flames","NJD","п",17,3,0,1,0,null,null,null,null,null,"https://sports.yahoo.com/nhl/players/6908"]
["Stuart Skinner","Edmonton Oilers","NYI","в",1,1,0,0,0,null,{"$f":"SUM(G275:G281)","v":2},{"$f":"SUM(H275:H281)","v":2},{"$f":"SUM(I275:I281)","v":0},"пятерка №1","https://sports.yahoo.com/nhl/players/7593","S.Skinner (Edm 0+0+0) [F.Andersen (Car)]; S.Mayfield (New 0+0+0) - J.Kovacevic (Mon); M.Bunting (Tor 2+1+0) - M.Comtois (Ana *  0+0+0) - K.Kakko (New 0+1+0); "]
["Frederik Andersen","Carolina Hurricanes","NYI","в",2,1,null,null,null,null,null,null,null,null,"https://sports.yahoo.com/nhl/players/5161"]
["Scott Mayfield","New York Islanders","NYI","з",3,1,0,0,0,null,null,null,null,null,"https://sports.yahoo.com/nhl/players/5402"]
["Johnathan Kovacevic","Montreal Canadiens","NYI","з",4,1,null,null,null,null,null,null,null,null,"https://sports.yahoo.com/nhl/players/7589"]
["Michael Bunting","Toronto Maple Leafs","NYI","л",5,1,2,1,0,null,null,null,null,null,"https://sports.yahoo.com/nhl/players/6485"]
["Max Comtois","Anaheim Ducks","NYI","л",6,1,0,0,0,"*",null,null,null,null,"https://sports.yahoo.com/nhl/players/7565"]
["Kaapo Kakko","New York Rangers","NYI","п",7,1,0,1,0,null,null,null,null,null,"https://sports.yahoo.com/nhl/players/8280"]
["Nick Leddy","St. Louis Blues","NYI","з",8,2,0,0,0,null,{"$f":"SUM(G282:G286)","v":1},{"$f":"SUM(H282:H286)","v":2},{"$f":"SUM(I282:I286,I275:I276)","v":0},"пятерка №2","https://sports.yahoo.com/nhl/players/4696","N.Leddy (St. 0+0+0) - B.Chiarot (Det * ); J.Guentzel (Pit 0+0+0) - S.Reinhart (Flo 0+1+0) -T.Stuetzle (Ott 1+1+0); "]
["Ben Chiarot","Detroit Red Wings","NYI","з",9,2,null,null,null,"*",null,null,null,null,"https://sports.yahoo.com/nhl/players/5263"]
["Jake Guentzel","Pittsburgh Penguins","NYI","л",10,2,0,0,0,null,null,null,null,null,"https://sports.yahoo.com/nhl/players/6057"]
["Sam Reinhart","Florida Panthers","NYI","п",11,2,0,1,0,null,null,null,null,null,"https://sports.yahoo.com/nhl/players/6368"]
["Tim Stuetzle","Ottawa Senators","NYI","ц",12,2,1,1,0,null,null,null,null,null,"https://sports.yahoo.com/nhl/players/8643"]
["Cale Makar","Colorado Avalanche","NYI","з",13,3,0,0,0,null,{"$f":"SUM(G287:G291)","v":3},{"$f":"SUM(H287:H291)","v":2},{"$f":"SUM(I287:I291,I275:I276)","v":0},"пятерка №3","https://sports.yahoo.com/nhl/players/7519","C.Makar (Col 0+0+0) - E.Bouchard (Edm 0+0+0); W.Nylander (Tor 1+2+0) - M.McTavish (Ana *  0+0+0) - J.DeBrusk (Bos 2+0+0); "]
["Evan Bouchard","Edmonton Oilers","NYI","з",14,3,0,0,0,null,null,null,null,null,"https://sports.yahoo.com/nhl/players/7908"]
["William Nylander","Toronto Maple Leafs","NYI","л",15,3,1,2,0,null,null,null,null,null,"https://sports.yahoo.com/nhl/players/6374"]
["Mason McTavish","Anaheim Ducks","NYI","ц",16,3,0,0,0,"*",null,null,null,null,"https://sports.yahoo.com/nhl/players/8879"]
["Jake DeBrusk","Boston Bruins","NYI","п",17,3,2,0,0,null,null,null,null,null,"https://sports.yahoo.com/nhl/players/6756"]
["Joonas Korpisalo","Columbus Blue Jackets","NYR","в",1,1,0,0,0,null,{"$f":"SUM(G292:G298)","v":0},{"$f":"SUM(H292:H298)","v":1},{"$f":"SUM(I292:I298)","v":0},"пятерка №1","https://sports.yahoo.com/nhl/players/5753","J.Korpisalo (Col 0+0+0) [A.Raanta (Car)]; A.Alexeyev (Was) - O.Ekman-Larsson (Van 0+1+0); P.Krebs (Buf 0+0+0) - G.Denisenko (Flo) - J.Slafkovsky (Mon 0+0+0); "]
["Antti Raanta","Carolina Hurricanes","NYR","в",2,1,null,null,null,null,null,null,null,null,"https://sports.yahoo.com/nhl/players/5967"]
["Alexander Alexeyev","Washington Capitals","NYR","з",3,1,null,null,null,null,null,null,null,null,"https://sports.yahoo.com/nhl/players/7929"]
["Oliver Ekman-Larsson","Vancouver Canucks","NYR","з",4,1,0,1,0,null,null,null,null,null,"https://sports.yahoo.com/nhl/players/4686"]
["Peyton Krebs","Buffalo Sabres","NYR","ц",5,1,0,0,0,null,null,null,null,null,"https://sports.yahoo.com/nhl/players/8295"]
["Grigori Denisenko","Florida Panthers","NYR","л",6,1,null,null,null,null,null,null,null,null,"https://sports.yahoo.com/nhl/players/7913"]
["Juraj Slafkovsky","Montreal Canadiens","NYR","л",7,1,0,0,0,null,null,null,null,null,"https://sports.yahoo.com/nhl/players/9269"]
["Justin Holl","Toronto Maple Leafs","NYR","з",8,2,0,0,0,null,{"$f":"SUM(G299:G303)","v":0},{"$f":"SUM(H299:H303)","v":2},{"$f":"SUM(I299:I303,I292:I293)","v":0},"пятерка №2","https://sports.yahoo.com/nhl/players/5027","J.Holl (Tor 0+0+0) - D.Hamilton (New * ); M.Marner (Tor 0+1+0) - F.Forsberg (Nas 0+1+0) -J.Puljujarvi (Edm 0+0+0); "]
["Dougie Hamilton","New Jersey Devils","NYR","з",9,2,null,null,null,"*",null,null,null,null,"https://sports.yahoo.com/nhl/players/5370"]
["Mitchell Marner","Toronto Maple Leafs","NYR","ц",10,2,0,1,0,null,null,null,null,null,"https://sports.yahoo.com/nhl/players/6746"]
["Filip Forsberg","Nashville Predators","NYR","л",11,2,0,1,0,null,null,null,null,null,"https://sports.yahoo.com/nhl/players/5691"]
["Jesse Puljujarvi","Edmonton Oilers","NYR","п",12,2,0,0,0,null,null,null,null,null,"https://sports.yahoo.com/nhl/players/7112"]
["Aaron Ekblad","Florida Panthers","NYR","з",13,3,0,0,0,null,{"$f":"SUM(G304:G308)","v":0},{"$f":"SUM(H304:H308)","v":2},{"$f":"SUM(I304:I308,I292:I293)","v":0},"пятерка №3","https://sports.yahoo.com/nhl/players/6367","A.Ekblad (Flo 0+0+0) - E.Karlsson (San); B.Point (Tam *  0+1+0) - J.Gaudreau (Col 0+0+0) - A.Svechnikov (Car 0+1+0); "]
["Erik Karlsson","San Jose Sharks","NYR","з",14,3,null,null,null,null,null,null,null,null,"https://sports.yahoo.com/nhl/players/4491"]
["Brayden Point","Tampa Bay Lightning","NYR","ц",15,3,0,1,0,"*",null,null,null,null,"https://sports.yahoo.com/nhl/players/6448"]
["Johnny Gaudreau","Columbus Blue Jackets","NYR","л",16,3,0,0,0,null,null,null,null,null,"https://sports.yahoo.com/nhl/players/5470"]
["Andrei Svechnikov","Carolina Hurricanes","NYR","п",17,3,0,1,0,null,null,null,null,null,"https://sports.yahoo.com/nhl/players/7900"]
["Filip Gustavsson","Minnesota Wild","OTT","в",1,1,null,null,null,"*",{"$f":"SUM(G309:G315)","v":0},{"$f":"SUM(H309:H315)","v":0},{"$f":"SUM(I309:I315)","v":1},"пятерка №1","https://sports.yahoo.com/nhl/players/7163","F.Gustavsson (Min * ) [C.Petersen (Los)]; J.Braun (Phi 0+0+1) - J.Bryson (Buf 0+0+0); C.Perry (Tam *  0+0+0) - J.Martinook (Car 0+0+0) - S.Noesen (Car 0+0+0); "]
["Calvin Petersen","Los Angeles Kings","OTT","в",2,1,null,null,null,null,null,null,null,null,"https://sports.yahoo.com/nhl/players/6109"]
["Justin Braun","Philadelphia Flyers","OTT","з",3,1,0,0,1,null,null,null,null,null,"https://sports.yahoo.com/nhl/players/4888"]
["Jacob Bryson","Buffalo Sabres","OTT","з",4,1,0,0,0,null,null,null,null,null,"https://sports.yahoo.com/nhl/players/7614"]
["Corey Perry","Tampa Bay Lightning","OTT","п",5,1,0,0,0,"*",null,null,null,null,"https://sports.yahoo.com/nhl/players/3365"]
["Jordan Martinook","Carolina Hurricanes","OTT","л",6,1,0,0,0,null,null,null,null,null,"https://sports.yahoo.com/nhl/players/5747"]
["Stefan Noesen","Carolina Hurricanes","OTT","п",7,1,0,0,0,null,null,null,null,null,"https://sports.yahoo.com/nhl/players/5382"]
["Will Borgen","Seattle Kraken","OTT","з",8,2,0,0,0,null,{"$f":"SUM(G316:G320)","v":1},{"$f":"SUM(H316:H320)","v":1},{"$f":"SUM(I316:I320,I309:I310)","v":0},"пятерка №2","https://sports.yahoo.com/nhl/players/6834","W.Borgen (Sea 0+0+0) - A.Peeke (Col); D.Strome (Was 0+0+0) - B.Rust (Pit 0+0+0) -S.Milano (Was 1+1+0); "]
["Andrew Peeke","Columbus Blue Jackets","OTT","з",9,2,null,null,null,null,null,null,null,null,"https://sports.yahoo.com/nhl/players/7142"]
["Dylan Strome","Washington Capitals","OTT","ц",10,2,0,0,0,null,null,null,null,null,"https://sports.yahoo.com/nhl/players/6745"]
["Bryan Rust","Pittsburgh Penguins","OTT","п",11,2,0,0,0,null,null,null,null,null,"https://sports.yahoo.com/nhl/players/5053"]
["Sonny Milano","Washington Capitals","OTT","л",12,2,1,1,0,null,null,null,null,null,"https://sports.yahoo.com/nhl/players/6382"]
["T.J. Brodie","Toronto Maple Leafs","OTT","з",13,3,0,1,0,null,{"$f":"SUM(G321:G325)","v":1},{"$f":"SUM(H321:H325)","v":2},{"$f":"SUM(I321:I325,I309:I310)","v":0},"пятерка №3","https://sports.yahoo.com/nhl/players/4732","T.Brodie (Tor 0+1+0) - M.Stone (Cal 0+0+0); J.Kyrou (St. 1+1+0) - J.Bailey (New 0+0+0) - B.Coleman (Cal 0+0+0); "]
["Michael Stone","Calgary Flames","OTT","з",14,3,0,0,0,null,null,null,null,null,"https://sports.yahoo.com/nhl/players/4568"]
["Jordan Kyrou","St. Louis Blues","OTT","ц",15,3,1,1,0,null,null,null,null,null,"https://sports.yahoo.com/nhl/players/7143"]
["Josh Bailey","New York Islanders","OTT","п",16,3,0,0,0,null,null,null,null,null,"https://sports.yahoo.com/nhl/players/4482"]
["Blake Coleman","Calgary Flames","OTT","л",17,3,0,0,0,null,null,null,null,null,"https://sports.yahoo.com/nhl/players/5441"]
["Ilya Sorokin","New York Islanders","PHI","в",1,1,0,0,0,null,{"$f":"SUM(G326:G332)","v":1},{"$f":"SUM(H326:H332)","v":0},{"$f":"SUM(I326:I332)","v":1},"пятерка №1","https://sports.yahoo.com/nhl/players/6447","I.Sorokin (New 0+0+0) [J.Campbell (Edm)]; S.Gostisbehere (Ari 0+0+0) - Z.Bogosian (Tam *  0+0+1); S.Laughton (Phi 1+0+0) - J.Evans (Mon 0+0+0) - A.Greer (Bos); "]
["Jack Campbell","Edmonton Oilers","PHI","в",2,1,null,null,null,null,null,null,null,null,"https://sports.yahoo.com/nhl/players/4971"]
["Shayne Gostisbehere","Arizona Coyotes","PHI","з",3,1,0,0,0,null,null,null,null,null,"https://sports.yahoo.com/nhl/players/5769"]
["Zach Bogosian","Tampa Bay Lightning","PHI","з",4,1,0,0,1,"*",null,null,null,null,"https://sports.yahoo.com/nhl/players/4473"]
["Scott Laughton","Philadelphia Flyers","PHI","ц",5,1,1,0,0,null,null,null,null,null,"https://sports.yahoo.com/nhl/players/5700"]
["Jake Evans","Montreal Canadiens","PHI","ц",6,1,0,0,0,null,null,null,null,null,"https://sports.yahoo.com/nhl/players/6573"]
["A.J. Greer","Boston Bruins","PHI","п",7,1,null,null,null,null,null,null,null,null,"https://sports.yahoo.com/nhl/players/6781"]
["Justin Schultz","Seattle Kraken","PHI","з",8,2,0,2,0,null,{"$f":"SUM(G333:G337)","v":0},{"$f":"SUM(H333:H337)","v":5},{"$f":"SUM(I333:I337,I326:I327)","v":0},"пятерка №2","https://sports.yahoo.com/nhl/players/5714","J.Schultz (Sea 0+2+0) - B.Hunt (Col 0+0+0); B.Lizotte (Los 0+0+0) - N.Niederreiter (Nas 0+3+0) -G.Hathaway (Was 0+0+0); "]
["Brad Hunt","Colorado Avalanche","PHI","з",9,2,0,0,0,null,null,null,null,null,"https://sports.yahoo.com/nhl/players/5979"]
["Blake Lizotte","Los Angeles Kings","PHI","ц",10,2,0,0,0,null,null,null,null,null,"https://sports.yahoo.com/nhl/players/8249"]
["Nino Niederreiter","Nashville Predators","PHI","л",11,2,0,3,0,null,null,null,null,null,"https://sports.yahoo.com/nhl/players/4965"]
["Garnet Hathaway","Washington Capitals","PHI","п",12,2,0,0,0,null,null,null,null,null,"https://sports.yahoo.com/nhl/players/6636"]
["Calle Rosen","St. Louis Blues","PHI","з",13,3,0,0,0,null,{"$f":"SUM(G338:G342)","v":1},{"$f":"SUM(H338:H342)","v":0},{"$f":"SUM(I338:I342,I326:I327)","v":0},"пятерка №3","https://sports.yahoo.com/nhl/players/7506","C.Rosen (St. 0+0+0) - D.Nurse (Edm 0+0+0); N.Dowd (Was 1+0+0) - J.Vesey (New 0+0+0) - C.Garland (Van 0+0+0); "]
["Darnell Nurse","Edmonton Oilers","PHI","з",14,3,0,0,0,null,null,null,null,null,"https://sports.yahoo.com/nhl/players/5986"]
["Nic Dowd","Washington Capitals","PHI","ц",15,3,1,0,0,null,null,null,null,null,"https://sports.yahoo.com/nhl/players/6350"]
["Jimmy Vesey","New York Rangers","PHI","л",16,3,0,0,0,null,null,null,null,null,"https://sports.yahoo.com/nhl/players/5757"]
["Conor Garland","Vancouver Canucks","PHI","п",17,3,0,0,0,null,null,null,null,null,"https://sports.yahoo.com/nhl/players/6865"]
["Anton Forsberg","Ottawa Senators","PIT","в",1,1,0,0,1,null,{"$f":"SUM(G343:G349)","v":1},{"$f":"SUM(H343:H349)","v":3},{"$f":"SUM(I343:I349)","v":2},"пятерка №1","https://sports.yahoo.com/nhl/players/5553","A.Forsberg (Ott 0+0+1) [A.Stolarz (Ana * )]; V.Hedman (Tam *  0+2+1) - J.Chychrun (Ari 1+0+0); A.Iafallo (Los 0+0+0) - N.Schmaltz (Ari 0+1+0) - T.Terry (Ana *  0+0+0); "]
["Anthony Stolarz","Anaheim Ducks","PIT","в",2,1,null,null,null,"*",null,null,null,null,"https://sports.yahoo.com/nhl/players/5734"]
["Victor Hedman","Tampa Bay Lightning","PIT","з",3,1,0,2,1,"*",null,null,null,null,"https://sports.yahoo.com/nhl/players/4682"]
["Jakob Chychrun","Arizona Coyotes","PIT","з",4,1,1,0,0,null,null,null,null,null,"https://sports.yahoo.com/nhl/players/7124"]
["Alex Iafallo","Los Angeles Kings","PIT","л",5,1,0,0,0,null,null,null,null,null,"https://sports.yahoo.com/nhl/players/7493"]
["Nick Schmaltz","Arizona Coyotes","PIT","ц",6,1,0,1,0,null,null,null,null,null,"https://sports.yahoo.com/nhl/players/6386"]
["Troy Terry","Anaheim Ducks","PIT","п",7,1,0,0,0,"*",null,null,null,null,"https://sports.yahoo.com/nhl/players/6890"]
["Jake Walman","Detroit Red Wings","PIT","з",8,2,null,null,null,"*",{"$f":"SUM(G350:G354)","v":3},{"$f":"SUM(H350:H354)","v":0},{"$f":"SUM(I350:I354,I343:I344)","v":1},"пятерка №2","https://sports.yahoo.com/nhl/players/6451","J.Walman (Det * ) - E.Johnson (Col 0+0+0); A.Kempe (Los 1+0+0) - A.Kopitar (Los 1+0+0) -R.Strome (Ana *  1+0+0); "]
["Erik Johnson","Colorado Avalanche","PIT","з",9,2,0,0,0,null,null,null,null,null,"https://sports.yahoo.com/nhl/players/3979"]
["Adrian Kempe","Los Angeles Kings","PIT","л",10,2,1,0,0,null,null,null,null,null,"https://sports.yahoo.com/nhl/players/6395"]
["Anze Kopitar","Los Angeles Kings","PIT","ц",11,2,1,0,0,null,null,null,null,null,"https://sports.yahoo.com/nhl/players/3788"]
["Ryan Strome","Anaheim Ducks","PIT","п",12,2,1,0,0,"*",null,null,null,null,"https://sports.yahoo.com/nhl/players/5366"]
["Justin Barron","Montreal Canadiens","PIT","з",13,3,0,0,0,null,{"$f":"SUM(G355:G359)","v":0},{"$f":"SUM(H355:H359)","v":1},{"$f":"SUM(I355:I359,I343:I344)","v":1},"пятерка №3","https://sports.yahoo.com/nhl/players/8665","J.Barron (Mon 0+0+0) - K.MacDermid (Col 0+0+0); D.Sprong (Sea 0+1+0) - N.Ritchie (Ari 0+0+0) - J.Greenway (Min * ); "]
["Kurtis MacDermid","Colorado Avalanche","PIT","з",14,3,0,0,0,null,null,null,null,null,"https://sports.yahoo.com/nhl/players/5904"]
["Daniel Sprong","Seattle Kraken","PIT","п",15,3,0,1,0,null,null,null,null,null,"https://sports.yahoo.com/nhl/players/6788"]
["Nick Ritchie","Arizona Coyotes","PIT","л",16,3,0,0,0,null,null,null,null,null,"https://sports.yahoo.com/nhl/players/6376"]
["Jordan Greenway","Minnesota Wild","PIT","л",17,3,null,null,null,"*",null,null,null,null,"https://sports.yahoo.com/nhl/players/6792"]
["Jaroslav Halak","New York Rangers","SJS","в",1,1,null,null,null,null,{"$f":"SUM(G360:G366)","v":1},{"$f":"SUM(H360:H366)","v":3},{"$f":"SUM(I360:I366)","v":0},"пятерка №1","https://sports.yahoo.com/nhl/players/3734","J.Halak (New) [E.Merzlikins (Col)]; B.Dumoulin (Pit 0+0+0) - I.Lyubushkin (Buf 0+1+0); J.Miller (Van 0+1+0) - F.Zetterlund (New * ) - T.Novak (Nas 1+1+0); "]
["Elvis Merzlikins","Columbus Blue Jackets","SJS","в",2,1,null,null,null,null,null,null,null,null,"https://sports.yahoo.com/nhl/players/6445"]
["Brian Dumoulin","Pittsburgh Penguins","SJS","з",3,1,0,0,0,null,null,null,null,null,"https://sports.yahoo.com/nhl/players/5659"]
["Ilya Lyubushkin","Buffalo Sabres","SJS","з",4,1,0,1,0,null,null,null,null,null,"https://sports.yahoo.com/nhl/players/7889"]
["J.T. Miller","Vancouver Canucks","SJS","л",5,1,0,1,0,null,null,null,null,null,"https://sports.yahoo.com/nhl/players/5376"]
["Fabian Zetterlund","New Jersey Devils","SJS","п",6,1,null,null,null,"*",null,null,null,null,"https://sports.yahoo.com/nhl/players/7578"]
["Thomas Novak","Nashville Predators","SJS","ц",7,1,1,1,0,null,null,null,null,null,"https://sports.yahoo.com/nhl/players/6827"]
["Alexander Edler","Los Angeles Kings","SJS","з",8,2,0,0,0,null,{"$f":"SUM(G367:G371)","v":1},{"$f":"SUM(H367:H371)","v":2},{"$f":"SUM(I367:I371,I360:I361)","v":0},"пятерка №2","https://sports.yahoo.com/nhl/players/4020","A.Edler (Los 0+0+0) - T.Liljegren (Tor 0+1+0); C.Verhaeghe (Flo 0+0+0) - M.Zibanejad (New 1+1+0) -V.Trocheck (New 0+0+0); "]
["Timothy Liljegren","Toronto Maple Leafs","SJS","з",9,2,0,1,0,null,null,null,null,null,"https://sports.yahoo.com/nhl/players/7532"]
["Carter Verhaeghe","Florida Panthers","SJS","л",10,2,0,0,0,null,null,null,null,null,"https://sports.yahoo.com/nhl/players/6062"]
["Mika Zibanejad","New York Rangers","SJS","ц",11,2,1,1,0,null,null,null,null,null,"https://sports.yahoo.com/nhl/players/5367"]
["Vincent Trocheck","New York Rangers","SJS","ц",12,2,0,0,0,null,null,null,null,null,"https://sports.yahoo.com/nhl/players/5431"]
["Josh Manson","Colorado Avalanche","SJS","з",13,3,null,null,null,null,{"$f":"SUM(G372:G376)","v":0},{"$f":"SUM(H372:H376)","v":0},{"$f":"SUM(I372:I376,I360:I361)","v":0},"пятерка №3","https://sports.yahoo.com/nhl/players/5525","J.Manson (Col) - J.Rutta (Pit 0+0+0); M.Johansson (Was 0+0+0) - J.Eberle (Sea 0+0+0) - J.Roslovic (Col 0+0+0); "]
["Jan Rutta","Pittsburgh Penguins","SJS","з",14,3,0,0,0,null,null,null,null,null,"https://sports.yahoo.com/nhl/players/7514"]
["Marcus Johansson","Washington Capitals","SJS","л",15,3,0,0,0,null,null,null,null,null,"https://sports.yahoo.com/nhl/players/4704"]
["Jordan Eberle","Seattle Kraken","SJS","п",16,3,0,0,0,null,null,null,null,null,"https://sports.yahoo.com/nhl/players/4498"]
["Jack Roslovic","Columbus Blue Jackets","SJS","ц",17,3,0,0,0,null,null,null,null,null,"https://sports.yahoo.com/nhl/players/6767"]
["Jacob Markstrom","Calgary Flames","STL","в",1,1,0,0,0,null,{"$f":"SUM(G377:G383)","v":1},{"$f":"SUM(H377:H383)","v":0},{"$f":"SUM(I377:I383)","v":1},"пятерка №1","https://sports.yahoo.com/nhl/players/4947","J.Markstrom (Cal 0+0+0) [D.Vladar (Cal)]; N.Holden (Ott 0+0+1) - B.Hutton (Veg 0+0+0); E.Soderblom (Det * ) - A.Cirelli (Tam *  0+0+0) - P.Engvall (Tor 1+0+0); "]
["Dan Vladar","Calgary Flames","STL","в",2,1,null,null,null,null,null,null,null,null,"https://sports.yahoo.com/nhl/players/6817"]
["Nick Holden","Ottawa Senators","STL","з",3,1,0,0,1,null,null,null,null,null,"https://sports.yahoo.com/nhl/players/4386"]
["Ben Hutton","Vegas Golden Knights","STL","з",4,1,0,0,0,null,null,null,null,null,"https://sports.yahoo.com/nhl/players/5837"]
["Elmer Soderblom","Detroit Red Wings","STL","л",5,1,null,null,null,"*",null,null,null,null,"https://sports.yahoo.com/nhl/players/8436"]
["Anthony Cirelli","Tampa Bay Lightning","STL","ц",6,1,0,0,0,"*",null,null,null,null,"https://sports.yahoo.com/nhl/players/6814"]
["Pierre Engvall","Toronto Maple Leafs","STL","л",7,1,1,0,0,null,null,null,null,null,"https://sports.yahoo.com/nhl/players/6555"]
["Ryan Graves","New Jersey Devils","STL","з",8,2,null,null,null,"*",{"$f":"SUM(G384:G388)","v":1},{"$f":"SUM(H384:H388)","v":1},{"$f":"SUM(I384:I388,I377:I378)","v":0},"пятерка №2","https://sports.yahoo.com/nhl/players/6089","R.Graves (New * ) - J.Moser (Ari 0+1+0); J.Zucker (Pit 0+0+0) - E.Malkin (Pit 0+0+0) -N.Bjugstad (Ari 1+0+0); "]
["Janis Moser","Arizona Coyotes","STL","з",9,2,0,1,0,null,null,null,null,null,"https://sports.yahoo.com/nhl/players/8935"]
["Jason Zucker","Pittsburgh Penguins","STL","л",10,2,0,0,0,null,null,null,null,null,"https://sports.yahoo.com/nhl/players/5032"]
["Evgeni Malkin","Pittsburgh Penguins","STL","ц",11,2,0,0,0,null,null,null,null,null,"https://sports.yahoo.com/nhl/players/3638"]
["Nick Bjugstad","Arizona Coyotes","STL","п",12,2,1,0,0,null,null,null,null,null,"https://sports.yahoo.com/nhl/players/4979"]
["Jamie Oleksiak","Seattle Kraken","STL","з",13,3,0,0,0,null,{"$f":"SUM(G389:G393)","v":0},{"$f":"SUM(H389:H393)","v":1},{"$f":"SUM(I389:I393,I377:I378)","v":0},"пятерка №3","https://sports.yahoo.com/nhl/players/5375","J.Oleksiak (Sea 0+0+0) - C.Miller (Dal *  0+0+0); G.Nyquist (Col 0+0+0) - E.Pettersson (Van 0+0+0) - T.Toffoli (Cal 0+1+0); "]
["Colin Miller","Dallas Stars","STL","з",14,3,0,0,0,"*",null,null,null,null,"https://sports.yahoo.com/nhl/players/5841"]
["Gustav Nyquist","Columbus Blue Jackets","STL","л",15,3,0,0,0,null,null,null,null,null,"https://sports.yahoo.com/nhl/players/5279"]
["Elias Pettersson","Vancouver Canucks","STL","ц",16,3,0,0,0,null,null,null,null,null,"https://sports.yahoo.com/nhl/players/7520"]
["Tyler Toffoli","Calgary Flames","STL","п",17,3,0,1,0,null,null,null,null,null,"https://sports.yahoo.com/nhl/players/5020"]
["Tristan Jarry","Pittsburgh Penguins","TBL","в",1,1,0,0,0,null,{"$f":"SUM(G394:G400)","v":0},{"$f":"SUM(H394:H400)","v":2},{"$f":"SUM(I394:I400)","v":1},"пятерка №1","https://sports.yahoo.com/nhl/players/6024","T.Jarry (Pit 0+0+0) [J.Allen (Mon)]; V.Dunn (Sea 0+0+0) - I.Provorov (Phi 0+0+1); J.Compher (Col 0+0+0) - M.Granlund (Nas 0+2+0) - A.Ruzicka (Cal 0+0+0); "]
["Jake Allen","Montreal Canadiens","TBL","в",2,1,null,null,null,null,null,null,null,null,"https://sports.yahoo.com/nhl/players/4589"]
["Vince Dunn","Seattle Kraken","TBL","з",3,1,0,0,0,null,null,null,null,null,"https://sports.yahoo.com/nhl/players/6798"]
["Ivan Provorov","Philadelphia Flyers","TBL","з",4,1,0,0,1,null,null,null,null,null,"https://sports.yahoo.com/nhl/players/6749"]
["J.T. Compher","Colorado Avalanche","TBL","п",5,1,0,0,0,null,null,null,null,null,"https://sports.yahoo.com/nhl/players/6015"]
["Mikael Granlund","Nashville Predators","TBL","ц",6,1,0,2,0,null,null,null,null,null,"https://sports.yahoo.com/nhl/players/4969"]
["Adam Ruzicka","Calgary Flames","TBL","л",7,1,0,0,0,null,null,null,null,null,"https://sports.yahoo.com/nhl/players/7624"]
["Justin Faulk","St. Louis Blues","TBL","з",8,2,0,0,0,null,{"$f":"SUM(G401:G405)","v":0},{"$f":"SUM(H401:H405)","v":1},{"$f":"SUM(I401:I405,I394:I395)","v":0},"пятерка №2","https://sports.yahoo.com/nhl/players/5010","J.Faulk (St. 0+0+0) - N.Hanifin (Cal 0+0+0); O.Wahlstrom (New) - D.Kampf (Tor 0+1+0) -A.Erne (Det * ); "]
["Noah Hanifin","Calgary Flames","TBL","з",9,2,0,0,0,null,null,null,null,null,"https://sports.yahoo.com/nhl/players/6747"]
["Oliver Wahlstrom","New York Islanders","TBL","п",10,2,null,null,null,null,null,null,null,null,"https://sports.yahoo.com/nhl/players/7909"]
["David Kampf","Toronto Maple Leafs","TBL","ц",11,2,0,1,0,null,null,null,null,null,"https://sports.yahoo.com/nhl/players/7499"]
["Adam Erne","Detroit Red Wings","TBL","л",12,2,null,null,null,"*",null,null,null,null,"https://sports.yahoo.com/nhl/players/6013"]
["Kevin Bahl","New Jersey Devils","TBL","з",13,3,null,null,null,"*",{"$f":"SUM(G406:G410)","v":2},{"$f":"SUM(H406:H410)","v":0},{"$f":"SUM(I406:I410,I394:I395)","v":0},"пятерка №3","https://sports.yahoo.com/nhl/players/7953","K.Bahl (New * ) - N.Zadorov (Cal 1+0+0); J.Kotkaniemi (Car 0+0+0) - C.Coyle (Bos 0+0+0) - M.Amadio (Veg 1+0+0); "]
["Nikita Zadorov","Calgary Flames","TBL","з",14,3,1,0,0,null,null,null,null,null,"https://sports.yahoo.com/nhl/players/5995"]
["Jesperi Kotkaniemi","Carolina Hurricanes","TBL","л",15,3,0,0,0,null,null,null,null,null,"https://sports.yahoo.com/nhl/players/7901"]
["Charlie Coyle","Boston Bruins","TBL","ц",16,3,0,0,0,null,null,null,null,null,"https://sports.yahoo.com/nhl/players/4988"]
["Michael Amadio","Vegas Golden Knights","TBL","п",17,3,1,0,0,null,null,null,null,null,"https://sports.yahoo.com/nhl/players/6458"]
["Jake Oettinger","Dallas Stars","TOR","в",1,1,0,0,0,"*",{"$f":"SUM(G411:G417)","v":0},{"$f":"SUM(H411:H417)","v":3},{"$f":"SUM(I411:I417)","v":0},"пятерка №1","https://sports.yahoo.com/nhl/players/7541","J.Oettinger (Dal *  0+0+0) [M.Murray (Tor)]; R.Sandin (Tor 0+0+0) - A.Romanov (New 0+1+0); C.Dvorak (Mon 0+1+0) - M.Scheifele (Win 0+1+0) - J.Quinn (Buf 0+0+0); "]
["Matt Murray","Toronto Maple Leafs","TOR","в",2,1,null,null,null,null,null,null,null,null,"https://sports.yahoo.com/nhl/players/5774"]
["Rasmus Sandin","Toronto Maple Leafs","TOR","з",3,1,0,0,0,null,null,null,null,null,"https://sports.yahoo.com/nhl/players/7927"]
["Alexander Romanov","New York Islanders","TOR","з",4,1,0,1,0,null,null,null,null,null,"https://sports.yahoo.com/nhl/players/7936"]
["Christian Dvorak","Montreal Canadiens","TOR","л",5,1,0,1,0,null,null,null,null,null,"https://sports.yahoo.com/nhl/players/6427"]
["Mark Scheifele","Winnipeg Jets","TOR","ц",6,1,0,1,0,null,null,null,null,null,"https://sports.yahoo.com/nhl/players/5368"]
["Jack Quinn","Buffalo Sabres","TOR","п",7,1,0,0,0,null,null,null,null,null,"https://sports.yahoo.com/nhl/players/8648"]
["Mario Ferraro","San Jose Sharks","TOR","з",8,2,null,null,null,null,{"$f":"SUM(G418:G422)","v":0},{"$f":"SUM(H418:H422)","v":1},{"$f":"SUM(I418:I422,I411:I412)","v":0},"пятерка №2","https://sports.yahoo.com/nhl/players/7564","M.Ferraro (San) - K.Korczak (Veg 0+1+0); M.Wood (New * ) - T.Hertl (San) -T.Meier (San); "]
["Kaedan Korczak","Vegas Golden Knights","TOR","з",9,2,0,1,0,null,null,null,null,null,"https://sports.yahoo.com/nhl/players/8319"]
["Miles Wood","New Jersey Devils","TOR","л",10,2,null,null,null,"*",null,null,null,null,"https://sports.yahoo.com/nhl/players/6079"]
["Tomas Hertl","San Jose Sharks","TOR","ц",11,2,null,null,null,null,null,null,null,null,"https://sports.yahoo.com/nhl/players/5697"]
["Timo Meier","San Jose Sharks","TOR","п",12,2,null,null,null,null,null,null,null,null,"https://sports.yahoo.com/nhl/players/6751"]
["K'Andre Miller","New York Rangers","TOR","з",13,3,1,1,0,null,{"$f":"SUM(G423:G427)","v":2},{"$f":"SUM(H423:H427)","v":1},{"$f":"SUM(I423:I427,I411:I412)","v":0},"пятерка №3","https://sports.yahoo.com/nhl/players/7920","K.Miller (New 1+1+0) - M.Kiersted (Flo); N.Sturm (San) - M.Necas (Car 1+0+0) - T.Dellandrea (Dal *  0+0+0); "]
["Matt Kiersted","Florida Panthers","TOR","з",14,3,null,null,null,null,null,null,null,null,"https://sports.yahoo.com/nhl/players/8863"]
["Nico Sturm","San Jose Sharks","TOR","л",15,3,null,null,null,null,null,null,null,null,"https://sports.yahoo.com/nhl/players/8245"]
["Martin Necas","Carolina Hurricanes","TOR","ц",16,3,1,0,0,null,null,null,null,null,"https://sports.yahoo.com/nhl/players/7527"]
["Ty Dellandrea","Dallas Stars","TOR","ц",17,3,0,0,0,"*",null,null,null,null,"https://sports.yahoo.com/nhl/players/7911"]
["Petr Mrazek","Chicago Blackhawks","VAN","в",1,1,null,null,null,null,{"$f":"SUM(G428:G434)","v":0},{"$f":"SUM(H428:H434)","v":0},{"$f":"SUM(I428:I434)","v":0},"пятерка №1","https://sports.yahoo.com/nhl/players/5114","P.Mrazek (Chi) [P.Mrazek (Tor)]; E.Bear (Van 0+0+0) - R.Hagg (Det * ); R.O'Reilly (St.) - E.Luostarinen (Flo 0+0+0) - P.Danault (Los 0+0+0); "]
["Petr Mrazek","Toronto Maple Leafs","VAN","в",2,1,null,null,null,null,null,null,null,null,"https://sports.yahoo.com/nhl/players/5114"]
["Ethan Bear","Vancouver Canucks","VAN","з",3,1,0,0,0,null,null,null,null,null,"https://sports.yahoo.com/nhl/players/6866"]
["Robert Hagg","Detroit Red Wings","VAN","з",4,1,null,null,null,"*",null,null,null,null,"https://sports.yahoo.com/nhl/players/6021"]
["Ryan O'Reilly","St. Louis Blues","VAN","ц",5,1,null,null,null,null,null,null,null,null,"https://sports.yahoo.com/nhl/players/4786"]
["Eetu Luostarinen","Florida Panthers","VAN","ц",6,1,0,0,0,null,null,null,null,null,"https://sports.yahoo.com/nhl/players/7557"]
["Phillip Danault","Los Angeles Kings","VAN","л",7,1,0,0,0,null,null,null,null,null,"https://sports.yahoo.com/nhl/players/5387"]
["Torey Krug","St. Louis Blues","VAN","з",8,2,null,null,null,null,{"$f":"SUM(G435:G439)","v":0},{"$f":"SUM(H435:H439)","v":2},{"$f":"SUM(I435:I439,I428:I429)","v":0},"пятерка №2","https://sports.yahoo.com/nhl/players/5632","T.Krug (St.) - E.Gustafsson (Was 0+0+0); D.Larkin (Det * ) - M.Foligno (Min * ) -K.Hayes (Phi 0+2+0); "]
["Erik Gustafsson","Washington Capitals","VAN","з",9,2,0,0,0,null,null,null,null,null,"https://sports.yahoo.com/nhl/players/5783"]
["Dylan Larkin","Detroit Red Wings","VAN","ц",10,2,null,null,null,"*",null,null,null,null,"https://sports.yahoo.com/nhl/players/6381"]
["Marcus Foligno","Minnesota Wild","VAN","л",11,2,null,null,null,"*",null,null,null,null,"https://sports.yahoo.com/nhl/players/4779"]
["Kevin Hayes","Philadelphia Flyers","VAN","п",12,2,0,2,0,null,null,null,null,null,"https://sports.yahoo.com/nhl/players/4984"]
["Dmitry Orlov","Washington Capitals","VAN","з",13,3,0,0,0,null,{"$f":"SUM(G440:G444)","v":4},{"$f":"SUM(H440:H444)","v":0},{"$f":"SUM(I440:I444,I428:I429)","v":0},"пятерка №3","https://sports.yahoo.com/nhl/players/5254","D.Orlov (Was 0+0+0) - J.Klingberg (Ana *  0+0+0); Y.Gourde (Sea 1+0+0) - B.Horvat (Van 2+0+0) - J.Robertson (Dal *  1+0+0); "]
["John Klingberg","Anaheim Ducks","VAN","з",14,3,0,0,0,"*",null,null,null,null,"https://sports.yahoo.com/nhl/players/5104"]
["Yanni Gourde","Seattle Kraken","VAN","п",15,3,1,0,0,null,null,null,null,null,"https://sports.yahoo.com/nhl/players/6330"]
["Bo Horvat","Vancouver Canucks","VAN","ц",16,3,2,0,0,null,null,null,null,null,"https://sports.yahoo.com/nhl/players/5988"]
["Jason Robertson","Dallas Stars","VAN","л",17,3,1,0,0,"*",null,null,null,null,"https://sports.yahoo.com/nhl/players/7554"]
["Ville Husso","Detroit Red Wings","WAS","в",1,1,null,null,null,"*",{"$f":"SUM(G445:G451)","v":1},{"$f":"SUM(H445:H451)","v":1},{"$f":"SUM(I445:I451)","v":0},"пятерка №1","https://sports.yahoo.com/nhl/players/6462","V.Husso (Det * ) [M.Jones (Sea 0+0+0)]; S.Theodore (Veg) - J.Oesterle (Det * ); C.Kreider (New 0+0+0) - W.Karlsson (Veg 0+0+0) - M.Rantanen (Col 1+1+0); "]
["Martin Jones","Seattle Kraken","WAS","в",2,1,0,0,0,null,null,null,null,null,"https://sports.yahoo.com/nhl/players/4581"]
["Shea Theodore","Vegas Golden Knights","WAS","з",3,1,null,null,null,null,null,null,null,null,"https://sports.yahoo.com/nhl/players/6005"]
["Jordan Oesterle","Detroit Red Wings","WAS","з",4,1,null,null,null,"*",null,null,null,null,"https://sports.yahoo.com/nhl/players/6346"]
["Chris Kreider","New York Rangers","WAS","л",5,1,0,0,0,null,null,null,null,null,"https://sports.yahoo.com/nhl/players/4699"]
["William Karlsson","Vegas Golden Knights","WAS","ц",6,1,0,0,0,null,null,null,null,null,"https://sports.yahoo.com/nhl/players/5421"]
["Mikko Rantanen","Colorado Avalanche","WAS","п",7,1,1,1,0,null,null,null,null,null,"https://sports.yahoo.com/nhl/players/6752"]
["Alex Goligoski","Minnesota Wild","WAS","з",8,2,null,null,null,"*",{"$f":"SUM(G452:G456)","v":1},{"$f":"SUM(H452:H456)","v":0},{"$f":"SUM(I452:I456,I445:I446)","v":0},"пятерка №2","https://sports.yahoo.com/nhl/players/4287","A.Goligoski (Min * ) - R.Attard (Phi); A.Killorn (Tam *  1+0+0) - P.Zacha (Bos 0+0+0) -M.Zuccarello (Min * ); "]
["Ronnie Attard","Philadelphia Flyers","WAS","з",9,2,null,null,null,null,null,null,null,null,"https://sports.yahoo.com/nhl/players/8350"]
["Alex Killorn","Tampa Bay Lightning","WAS","л",10,2,1,0,0,"*",null,null,null,null,"https://sports.yahoo.com/nhl/players/5626"]
["Pavel Zacha","Boston Bruins","WAS","ц",11,2,0,0,0,null,null,null,null,null,"https://sports.yahoo.com/nhl/players/6748"]
["Mats Zuccarello","Minnesota Wild","WAS","п",12,2,null,null,null,"*",null,null,null,null,"https://sports.yahoo.com/nhl/players/4921"]
["Rasmus Andersson","Calgary Flames","WAS","з",13,3,0,0,0,null,{"$f":"SUM(G457:G461)","v":1},{"$f":"SUM(H457:H461)","v":0},{"$f":"SUM(I457:I461,I445:I446)","v":0},"пятерка №3","https://sports.yahoo.com/nhl/players/6795","R.Andersson (Cal 0+0+0) - L.Thomson (Ott); R.Rakell (Pit 0+0+0) - J.van Riemsdyk (Phi 0+0+0) - C.Sissons (Nas 1+0+0); "]
["Lassi Thomson","Ottawa Senators","WAS","з",14,3,null,null,null,null,null,null,null,null,"https://sports.yahoo.com/nhl/players/8297"]
["Rickard Rakell","Pittsburgh Penguins","WAS","п",15,3,0,0,0,null,null,null,null,null,"https://sports.yahoo.com/nhl/players/5391"]
["James van Riemsdyk","Philadelphia Flyers","WAS","л",16,3,0,0,0,null,null,null,null,null,"https://sports.yahoo.com/nhl/players/4241"]
["Colton Sissons","Nashville Predators","WAS","ц",17,3,1,0,0,null,null,null,null,null,"https://sports.yahoo.com/nhl/players/5739"]
["Vitek Vanecek","New Jersey Devils","WIN","в",1,1,null,null,null,"*",{"$f":"SUM(G462:G468)","v":1},{"$f":"SUM(H462:H468)","v":1},{"$f":"SUM(I462:I468)","v":1},"пятерка №1","https://sports.yahoo.com/nhl/players/6408","V.Vanecek (New * ) [S.Knight (Flo 0+0+0)]; I.Cole (Tam *  0+0+1) - A.Xhekaj (Mon 0+0+0); P.Maroon (Tam *  1+0+0) - I.Mikheyev (Van 0+0+0) - C.Mittelstadt (Buf 0+1+0); "]
["Spencer Knight","Florida Panthers","WIN","в",2,1,0,0,0,null,null,null,null,null,"https://sports.yahoo.com/nhl/players/8291"]
["Ian Cole","Tampa Bay Lightning","WIN","з",3,1,0,0,1,"*",null,null,null,null,"https://sports.yahoo.com/nhl/players/4257"]
["Arber Xhekaj","Montreal Canadiens","WIN","з",4,1,0,0,0,null,null,null,null,null,"https://sports.yahoo.com/nhl/players/9154"]
["Pat Maroon","Tampa Bay Lightning","WIN","л",5,1,1,0,0,"*",null,null,null,null,"https://sports.yahoo.com/nhl/players/4352"]
["Ilya Mikheyev","Vancouver Canucks","WIN","п",6,1,0,0,0,null,null,null,null,null,"https://sports.yahoo.com/nhl/players/8262"]
["Casey Mittelstadt","Buffalo Sabres","WIN","ц",7,1,0,1,0,null,null,null,null,null,"https://sports.yahoo.com/nhl/players/7523"]
["Brett Pesce","Carolina Hurricanes","WIN","з",8,2,0,0,0,null,{"$f":"SUM(G469:G473)","v":0},{"$f":"SUM(H469:H473)","v":0},{"$f":"SUM(I469:I473,I462:I463)","v":0},"пятерка №2","https://sports.yahoo.com/nhl/players/6046","B.Pesce (Car 0+0+0) - B.Schneider (New 0+0+0); P.Kane (Chi 0+0+0) - P.Holmberg (Tor 0+0+0) -L.Eller (Was 0+0+0); "]
["Braden Schneider","New York Rangers","WIN","з",9,2,0,0,0,null,null,null,null,null,"https://sports.yahoo.com/nhl/players/8659"]
["Patrick Kane","Chicago Blackhawks","WIN","п",10,2,0,0,0,null,null,null,null,null,"https://sports.yahoo.com/nhl/players/4240"]
["Pontus Holmberg","Toronto Maple Leafs","WIN","п",11,2,0,0,0,null,null,null,null,null,"https://sports.yahoo.com/nhl/players/8053"]
["Lars Eller","Washington Capitals","WIN","ц",12,2,0,0,0,null,null,null,null,null,"https://sports.yahoo.com/nhl/players/4252"]
["Devon Toews","Colorado Avalanche","WIN","з",13,3,0,0,0,null,{"$f":"SUM(G474:G478)","v":0},{"$f":"SUM(H474:H478)","v":2},{"$f":"SUM(I474:I478,I462:I463)","v":0},"пятерка №3","https://sports.yahoo.com/nhl/players/6476","D.Toews (Col 0+0+0) - V.Gavrikov (Col 0+0+0); M.Marchment (Dal *  0+0+0) - R.Hartman (Min * ) - R.Hintz (Dal *  0+2+0); "]
["Vladislav Gavrikov","Columbus Blue Jackets","WIN","з",14,3,0,0,0,null,null,null,null,null,"https://sports.yahoo.com/nhl/players/6901"]
["Mason Marchment","Dallas Stars","WIN","л",15,3,0,0,0,"*",null,null,null,null,"https://sports.yahoo.com/nhl/players/7066"]
["Ryan Hartman","Minnesota Wild","WIN","п",16,3,null,null,null,"*",null,null,null,null,"https://sports.yahoo.com/nhl/players/6009"]
["Roope Hintz","Dallas Stars","WIN","ц",17,3,0,2,0,"*",null,null,null,null,"https://sports.yahoo.com/nhl/players/6791"]

{"sheet":"Расписание","index":1,"n_rows":82,"n_cols":13,"rows_kept":82,"cut":false,"hidden":false,"merged":[]}
["02.01.2023|22:00","Бостон","- : -","Питтсбург",1,"Pittsburgh Penguins","Boston Bruins","Защ: GA-1","29-й тур"]
["03.01.2023|05:00","Колорадо","- : -","Вегас",1,"Vegas Golden Knights","Colorado Avalanche","Защ: GA-GA","МИННЕСОТА","-","КАРОЛИНА","MIN","CAR"]
["03.01.2023|06:00","Анахайм","- : -","Филадельфия",1,"Philadelphia Flyers","Anaheim Ducks","Защ: 1-GA","АЙЛЕНДЕРС","-","ВАШИНГТОН","NYI","WAS"]
["04.01.2023|03:00","Вашингтон","- : -","Баффало",1,"Carolina Hurricanes","New York Rangers","Защ: GA-GA","ФЛОРИДА","-","НЬЮ-ДЖЕРСИ","FLA","NJD"]
["04.01.2023|03:00","Торонто","- : -","Сент-Луис",1,"Columbus Blue Jackets","Ottawa Senators","Защ: GA-1","РЕЙНДЖЕРС","-","МОНРЕАЛЬ","NYR","MTL"]
["04.01.2023|03:00","Оттава","- : -","Коламбус",1,"St. Louis Blues","Toronto Maple Leafs","Защ: GA-GA","ПИТТСБУРГ","-","ОТТАВА","PIT","OTT"]
["04.01.2023|03:00","Рейнджерс","- : -","Каролина",1,"Buffalo Sabres","Washington Capitals","Защ: GA-GA","БОСТОН","-","БАФФАЛО","BOS","BUF"]
["04.01.2023|03:00","Флорида","- : -","Аризона",1,"Arizona Coyotes","Florida Panthers","Защ: GA-GA","ФИЛАДЕЛЬФИЯ","-","ТАМПА","PHI","TBL"]
["04.01.2023|04:00","Виннипег","- : -","Калгари",1,"Montreal Canadiens","Nashville Predators","Защ: GA-GA","СЕНТ-ЛУИС","-","АРИЗОНА","STL","ARI"]
["04.01.2023|04:00","Нэшвилл","- : -","Монреаль",1,"Calgary Flames","Winnipeg Jets","Защ: GA-GA","САН-ХОСЕ","-","ЛОС-АНДЖЕЛЕС","SJS","LAK"]
["04.01.2023|04:30","Чикаго","- : -","Тампа-Бэй",1,"Tampa Bay Lightning","Chicago Blackhawks","Защ: 1-GA","ТОРОНТО","-","ВАНКУВЕР","TOR","VAN"]
["04.01.2023|05:00","Эдмонтон","- : -","Сиэтл",1,"Seattle Kraken","Edmonton Oilers","Защ: GA-GA","ЧИКАГО","-","КАЛГАРИ","CHI","CGY"]
["04.01.2023|06:00","Ванкувер","- : -","Айлендерс",1,"Dallas Stars","Los Angeles Kings","Защ: GA-GA","КОЛОРАДО","-","ЭДМОНТОН","COL","EDM"]
["04.01.2023|06:30","Лос-Анджелес","- : -","Даллас",1,"New York Islanders","Vancouver Canucks","Защ: GA-GA","ДАЛЛАС","-","ДЕТРОЙТ","DAL","DET"]
["05.01.2023|03:00","Детройт","- : -","Нью-Джерси",null,null,null,null,"АНАХАЙМ","-","ВИННИПЕГ","ANA","WIN"]
["05.01.2023|05:30","Миннесота","- : -","Тампа-Бэй"]
["05.01.2023|06:00","Анахайм","- : -","Даллас"]
[]
[]
[]
[]
[]
[]
[]
[]
[]
[]
[]
[]
[]
[]
[]
[]
[]
[]
[]
[]
[]
[]
[]
[]
[]
[]
[]
[]
[]
[]
[]
[]
[]
["Айлендерс","New York Islanders"]
["Анахайм","Anaheim Ducks","*"]
["Аризона","Arizona Coyotes"]
["Баффало","Buffalo Sabres"]
["Бостон","Boston Bruins"]
["Ванкувер","Vancouver Canucks"]
["Вашингтон","Washington Capitals"]
["Вегас","Vegas Golden Knights"]
["Виннипег","Winnipeg Jets"]
["Даллас","Dallas Stars","*"]
["Детройт","Detroit Red Wings","*"]
["Калгари","Calgary Flames"]
["Каролина","Carolina Hurricanes"]
["Коламбус","Columbus Blue Jackets"]
["Колорадо","Colorado Avalanche"]
["Лос-Анджелес","Los Angeles Kings"]
["Миннесота","Minnesota Wild","*"]
["Монреаль","Montreal Canadiens"]
["Нью-Джерси","New Jersey Devils","*"]
["Нэшвилл","Nashville Predators"]
["Оттава","Ottawa Senators"]
["Питтсбург","Pittsburgh Penguins"]
["Рейнджерс","New York Rangers"]
["Сан-Хосе","San Jose Sharks"]
["Сент-Луис","St. Louis Blues"]
["Тампа-Бэй","Tampa Bay Lightning","*"]
["Торонто","Toronto Maple Leafs"]
["Филадельфия","Philadelphia Flyers"]
["Флорида","Florida Panthers"]
["Чикаго","Chicago Blackhawks"]
["Эдмонтон","Edmonton Oilers"]
["Сиэтл","Seattle Kraken"]

{"sheet":"Реальные","index":2,"n_rows":647,"n_cols":21,"rows_kept":647,"cut":false,"hidden":false,"merged":[]}
["31 Frederik Andersen","Если команда совершила отбитие, то вместо GA ставим 1",null,null,null,null,null,null,null,null,null,null,null,null,null,null,17,18,19,"ссылка","клуб"]
["Pittsburgh Penguins",null,null,null,null,null,null,null,null,null,null,null,null,null,null,null,0,0,0,"https://sports.yahoo.com/nhl/teams/pittsburgh/"]
["Goaltenders","GA","SA","SV","SV%","TOI"]
["Casey DeSmith",2,21,19,".905",1.78125,null,null,null,null,null,null,null,null,null,null,0,0,0,"https://sports.yahoo.com/nhl/players/7429","Pittsburgh Penguins"]
["Tristan Jarry",0,8,8,"1.000","15:30:00",null,null,null,null,null,null,null,null,null,null,0,0,0,"https://sports.yahoo.com/nhl/players/6024","Pittsburgh Penguins"]
["Forwards","G","A","Pts","+/-","PIM","SOG","FW","FL","FO%","Hits","Bks","Take","Give","Shifts","TOI"]
["Bryan Rust",0,0,0,-1,0,2,0,0,0,1,0,1,1,30,1.0875000000000001,0,0,0,"https://sports.yahoo.com/nhl/players/5053","Pittsburgh Penguins"]
["Sidney Crosby",0,0,0,0,0,2,13,14,0.48,1,0,1,2,27,"23:51:00",0,0,0,"https://sports.yahoo.com/nhl/players/3737","Pittsburgh Penguins"]
["Jake Guentzel",0,0,0,0,0,1,0,0,0,1,2,2,0,29,"23:42:00",0,0,0,"https://sports.yahoo.com/nhl/players/6057","Pittsburgh Penguins"]
["Evgeni Malkin",0,0,0,-1,0,3,10,9,0.53,0,3,0,1,25,"21:51:00",0,0,0,"https://sports.yahoo.com/nhl/players/3638","Pittsburgh Penguins"]
["Rickard Rakell",0,0,0,-1,0,4,0,0,0,1,0,1,0,24,"19:09:00",0,0,0,"https://sports.yahoo.com/nhl/players/5391","Pittsburgh Penguins"]
["Jeff Carter",0,1,1,0,0,2,10,3,0.77,0,1,2,1,27,"16:25:00",0,1,0,"https://sports.yahoo.com/nhl/players/3349","Pittsburgh Penguins"]
["Jason Zucker",0,0,0,-1,0,0,0,0,0,0,0,0,0,22,"14:31:00",0,0,0,"https://sports.yahoo.com/nhl/players/5032","Pittsburgh Penguins"]
["Teddy Blueger",0,0,0,0,2,2,8,6,0.56999999999999995,1,0,1,1,22,"11:35:00",0,0,0,"https://sports.yahoo.com/nhl/players/5741","Pittsburgh Penguins"]
["Brock McGinn",0,0,0,0,0,1,0,0,0,1,0,1,0,21,"11:35:00",0,0,0,"https://sports.yahoo.com/nhl/players/5736","Pittsburgh Penguins"]
["Kasperi Kapanen",1,0,1,1,0,2,0,0,0,1,0,0,0,15,"07:21:00",1,0,0,"https://sports.yahoo.com/nhl/players/6388","Pittsburgh Penguins"]
["Danton Heinen",0,1,1,1,0,1,0,0,0,0,0,0,0,11,"05:07:00",0,1,0,"https://sports.yahoo.com/nhl/players/6484","Pittsburgh Penguins"]
["Defense","G","A","Pts","+/-","PIM","SOG","FW","FL","FO%","Hits","Bks","Take","Give","Shifts","TOI"]
["Marcus Pettersson",0,0,0,0,0,2,0,0,0,3,2,0,0,32,1.0805555555555555,0,0,0,"https://sports.yahoo.com/nhl/players/6407","Pittsburgh Penguins"]
["Jan Rutta",0,0,0,0,0,2,0,0,0,0,5,0,0,31,"22:15:00",0,0,0,"https://sports.yahoo.com/nhl/players/7514","Pittsburgh Penguins"]
["Brian Dumoulin",0,0,0,-2,2,0,0,0,0,3,1,1,0,30,"19:16:00",0,0,0,"https://sports.yahoo.com/nhl/players/5659","Pittsburgh Penguins"]
["Mark Friedman",0,0,0,0,0,0,0,0,0,4,2,0,0,23,"13:00:00",0,0,0,"https://sports.yahoo.com/nhl/players/6455","Pittsburgh Penguins"]
["Pierre-Olivier Joseph",0,0,0,0,2,2,0,0,0,0,0,1,0,20,"12:25:00",0,0,0,"https://sports.yahoo.com/nhl/players/7538","Pittsburgh Penguins"]
["Chad Ruhwedel",0,0,0,-1,0,0,0,0,0,2,1,0,0,18,"11:13:00",0,0,0,"https://sports.yahoo.com/nhl/players/5950","Pittsburgh Penguins"]
["Ty Smith",0,0,0,0,0,1,0,0,0,0,0,0,1,15,"10:27:00",0,0,0,"https://sports.yahoo.com/nhl/players/7915","Pittsburgh Penguins"]
["Boston Bruins",null,null,null,null,null,null,null,null,null,null,null,null,null,null,null,0,0,0,"https://sports.yahoo.com/nhl/teams/boston/","Pittsburgh Penguins"]
["Goaltenders",1,"SA","SV","SV%","TOI"]
["Linus Ullmark",1,27,26,".963",2.4875000000000003,null,null,null,null,null,null,null,null,null,null,0,0,1,"https://sports.yahoo.com/nhl/players/5853","Boston Bruins"]
["Forwards","G","A","Pts","+/-","PIM","SOG","FW","FL","FO%","Hits","Bks","Take","Give","Shifts","TOI"]
["Brad Marchand",0,1,1,1,0,4,0,1,0,1,1,0,2,27,"22:18:00",0,1,0,"https://sports.yahoo.com/nhl/players/4351","Boston Bruins"]
["Patrice Bergeron",0,0,0,1,0,3,15,11,0.57999999999999996,1,1,0,0,29,"21:22:00",0,0,0,"https://sports.yahoo.com/nhl/players/3383","Boston Bruins"]
["David Pastrnak",0,0,0,1,2,2,0,0,0,2,1,0,1,27,"18:31:00",0,0,0,"https://sports.yahoo.com/nhl/players/6391","Boston Bruins"]
["Jake DeBrusk",2,0,2,2,0,5,0,0,0,1,1,0,0,27,"17:31:00",2,0,0,"https://sports.yahoo.com/nhl/players/6756","Boston Bruins"]
["Pavel Zacha",0,0,0,0,0,0,0,0,0,1,1,0,0,23,"16:44:00",0,0,0,"https://sports.yahoo.com/nhl/players/6748","Boston Bruins"]
["David Krejci",0,1,1,1,0,0,10,10,0.5,2,0,0,1,26,"16:33:00",0,1,0,"https://sports.yahoo.com/nhl/players/3898","Boston Bruins"]
["Taylor Hall",0,1,1,0,0,5,0,0,0,2,0,0,0,22,"14:26:00",0,1,0,"https://sports.yahoo.com/nhl/players/4961","Boston Bruins"]
["Charlie Coyle",0,0,0,-1,0,0,7,15,0.32,1,1,0,0,24,"13:54:00",0,0,0,"https://sports.yahoo.com/nhl/players/4988","Boston Bruins"]
["Trent Frederic",0,0,0,-1,0,1,0,0,0,1,1,0,0,19,"11:25:00",0,0,0,"https://sports.yahoo.com/nhl/players/7137","Boston Bruins"]
["Nick Foligno",0,0,0,0,0,1,0,4,0,5,0,0,2,14,"10:02:00",0,0,0,"https://sports.yahoo.com/nhl/players/4008","Boston Bruins"]
["Tomas Nosek",0,0,0,0,0,1,0,0,0,2,0,0,0,16,"09:47:00",0,0,0,"https://sports.yahoo.com/nhl/players/6366","Boston Bruins"]
["Craig Smith",0,0,0,0,0,0,0,0,0,0,0,1,0,9,"05:32:00",0,0,0,"https://sports.yahoo.com/nhl/players/5396","Boston Bruins"]
["Defense","G","A","Pts","+/-","PIM","SOG","FW","FL","FO%","Hits","Bks","Take","Give","Shifts","TOI"]
["Hampus Lindholm",0,0,0,0,2,2,0,0,0,2,1,0,0,34,1.007638888888889,0,0,1,"https://sports.yahoo.com/nhl/players/5686","Boston Bruins"]
["Charlie McAvoy",0,0,0,0,0,2,0,0,0,0,2,1,1,29,"23:00:00",0,0,1,"https://sports.yahoo.com/nhl/players/7122","Boston Bruins"]
["Brandon Carlo",0,0,0,1,0,1,0,0,0,2,2,1,1,29,"19:38:00",0,0,1,"https://sports.yahoo.com/nhl/players/6779","Boston Bruins"]
["Derek Forbort",0,0,0,-1,0,0,0,0,0,3,1,0,0,28,"18:59:00",0,0,1,"https://sports.yahoo.com/nhl/players/4975","Boston Bruins"]
["Connor Clifton",0,0,0,-1,0,1,0,0,0,5,1,0,0,23,"15:25:00",0,0,1,"https://sports.yahoo.com/nhl/players/6113","Boston Bruins"]
["Matt Grzelcyk",0,1,1,2,2,1,0,0,0,0,2,0,1,28,"15:00:00",0,1,1,"https://sports.yahoo.com/nhl/players/5776","Boston Bruins"]
["Vegas Golden Knights",null,null,null,null,null,null,null,null,null,null,null,null,null,null,null,0,0,1,"https://sports.yahoo.com/nhl/teams/vegas/","Boston Bruins"]
["Goaltenders","GA","SA","SV","SV%","TOI"]
["Logan Thompson",2,29,27,".931",2.4958333333333331,null,null,null,null,null,null,null,null,null,null,0,0,0,"https://sports.yahoo.com/nhl/players/8155","Vegas Golden Knights"]
["Forwards","G","A","Pts","+/-","PIM","SOG","FW","FL","FO%","Hits","Bks","Take","Give","Shifts","TOI"]
["Chandler Stephenson",0,0,0,1,0,3,15,9,0.63,0,2,3,0,25,"21:32:00",0,0,0,"https://sports.yahoo.com/nhl/players/5768","Vegas Golden Knights"]
["Mark Stone",0,1,1,1,0,4,0,0,0,0,0,1,0,25,"20:59:00",0,1,0,"https://sports.yahoo.com/nhl/players/5152","Vegas Golden Knights"]
["William Karlsson",0,0,0,0,0,3,6,5,0.55000000000000004,1,1,1,0,24,"19:20:00",0,0,0,"https://sports.yahoo.com/nhl/players/5421","Vegas Golden Knights"]
["Reilly Smith",0,0,0,0,2,1,0,0,0,0,0,0,1,22,"17:32:00",0,0,0,"https://sports.yahoo.com/nhl/players/5639","Vegas Golden Knights"]
["Nicolas Roy",2,0,2,1,0,2,3,8,0.27,1,0,1,0,21,"15:50:00",2,0,0,"https://sports.yahoo.com/nhl/players/6838","Vegas Golden Knights"]
["Michael Amadio",1,0,1,1,0,1,0,0,0,0,0,0,0,17,"14:02:00",1,0,0,"https://sports.yahoo.com/nhl/players/6458","Vegas Golden Knights"]
["William Carrier",0,1,1,1,4,2,0,0,0,4,0,1,0,19,"12:58:00",0,1,0,"https://sports.yahoo.com/nhl/players/6037","Vegas Golden Knights"]
["Phil Kessel",0,0,0,0,2,0,0,0,0,0,1,1,1,17,"12:46:00",0,0,0,"https://sports.yahoo.com/nhl/players/3983","Vegas Golden Knights"]
["Jonas Rondbjerg",0,0,0,-1,0,1,0,0,0,0,1,0,0,14,"10:04:00",0,0,0,"https://sports.yahoo.com/nhl/players/7580","Vegas Golden Knights"]
["Keegan Kolesar",0,1,1,1,5,1,0,0,0,5,0,0,0,15,"08:56:00",0,1,0,"https://sports.yahoo.com/nhl/players/6811","Vegas Golden Knights"]
["Jake Leschyshyn",0,0,0,-1,0,0,1,0,1,0,0,0,0,12,"08:21:00",0,0,0,"https://sports.yahoo.com/nhl/players/7577","Vegas Golden Knights"]
["Byron Froese",0,0,0,-1,2,0,3,1,0.75,0,0,0,0,12,"07:22:00",0,0,0,"https://sports.yahoo.com/nhl/players/5344","Vegas Golden Knights"]
["Defense","G","A","Pts","+/-","PIM","SOG","FW","FL","FO%","Hits","Bks","Take","Give","Shifts","TOI"]
["Alex Pietrangelo",0,1,1,0,0,2,0,0,0,2,0,2,1,27,1.1868055555555557,0,1,0,"https://sports.yahoo.com/nhl/players/4474","Vegas Golden Knights"]
["Brayden McNabb",0,0,0,1,0,1,0,0,0,2,4,0,0,23,1.0201388888888889,0,0,0,"https://sports.yahoo.com/nhl/players/5227","Vegas Golden Knights"]
["Nicolas Hague",0,1,1,0,0,1,0,0,0,2,2,0,0,27,"21:44:00",0,1,0,"https://sports.yahoo.com/nhl/players/7549","Vegas Golden Knights"]
["Brayden Pachal",0,0,0,0,2,0,0,0,0,4,0,0,0,20,"15:40:00",0,0,0,"https://sports.yahoo.com/nhl/players/8199","Vegas Golden Knights"]
["Kaedan Korczak",0,1,1,1,0,3,0,0,0,3,0,0,0,16,"15:30:00",0,1,0,"https://sports.yahoo.com/nhl/players/8319","Vegas Golden Knights"]
["Ben Hutton",0,0,0,0,0,3,0,0,0,0,0,0,0,16,"12:32:00",0,0,0,"https://sports.yahoo.com/nhl/players/5837","Vegas Golden Knights"]
["Colorado Avalanche",null,null,null,null,null,null,null,null,null,null,null,null,null,null,null,0,0,0,"https://sports.yahoo.com/nhl/teams/colorado/","Vegas Golden Knights"]
["Goaltenders","GA","SA","SV","SV%","TOI"]
["Alexandar Georgiev",3,28,25,".893",2.4097222222222223,null,null,null,null,null,null,null,null,null,null,0,0,0,"https://sports.yahoo.com/nhl/players/7736","Colorado Avalanche"]
["Forwards","G","A","Pts","+/-","PIM","SOG","FW","FL","FO%","Hits","Bks","Take","Give","Shifts","TOI"]
["Mikko Rantanen",1,1,2,0,0,3,3,1,0.75,0,0,1,1,25,1.1340277777777776,1,1,0,"https://sports.yahoo.com/nhl/players/6752","Colorado Avalanche"]
["Nathan MacKinnon",1,1,2,0,0,8,7,7,0.5,1,0,0,5,26,1.1298611111111112,1,1,0,"https://sports.yahoo.com/nhl/players/5980","Colorado Avalanche"]
["Artturi Lehkonen",0,2,2,0,0,1,0,0,0,5,0,0,1,26,"23:57:00",0,2,0,"https://sports.yahoo.com/nhl/players/6035","Colorado Avalanche"]
["J.T. Compher",0,0,0,0,0,2,5,13,0.28000000000000003,0,1,1,1,23,"22:39:00",0,0,0,"https://sports.yahoo.com/nhl/players/6015","Colorado Avalanche"]
["Alex Newhook",0,0,0,0,0,1,1,0,1,1,0,0,0,19,"17:12:00",0,0,0,"https://sports.yahoo.com/nhl/players/8294","Colorado Avalanche"]
["Denis Malgin",0,0,0,0,0,2,0,0,0,1,0,1,1,18,"15:20:00",0,0,0,"https://sports.yahoo.com/nhl/players/6844","Colorado Avalanche"]
["Ben Meyers",0,0,0,-1,0,1,3,2,0.6,0,0,0,0,16,"11:53:00",0,0,0,"https://sports.yahoo.com/nhl/players/9246","Colorado Avalanche"]
["Andrew Cogliano",0,0,0,-1,2,1,0,0,0,0,0,0,0,17,"11:16:00",0,0,0,"https://sports.yahoo.com/nhl/players/3802","Colorado Avalanche"]
["Logan O'Connor",0,0,0,-1,0,0,0,0,0,0,0,0,0,16,"10:19:00",0,0,0,"https://sports.yahoo.com/nhl/players/8119","Colorado Avalanche"]
["Darren Helm",0,0,0,0,0,0,4,5,0.44,5,0,0,0,14,"08:55:00",0,0,0,"https://sports.yahoo.com/nhl/players/4065","Colorado Avalanche"]
["Martin Kaut",0,0,0,0,0,1,0,0,0,2,0,0,0,10,"07:00:00",0,0,0,"https://sports.yahoo.com/nhl/players/7914","Colorado Avalanche"]
["Defense","G","A","Pts","+/-","PIM","SOG","FW","FL","FO%","Hits","Bks","Take","Give","Shifts","TOI"]
["Devon Toews",0,0,0,1,0,1,0,0,0,0,1,1,1,25,1.1631944444444444,0,0,0,"https://sports.yahoo.com/nhl/players/6476","Colorado Avalanche"]
["Cale Makar",0,0,0,0,2,2,0,0,0,2,0,1,1,29,1.1624999999999999,0,0,0,"https://sports.yahoo.com/nhl/players/7519","Colorado Avalanche"]
["Samuel Girard",0,0,0,-1,0,1,0,0,0,2,3,0,1,27,"20:58:00",0,0,0,"https://sports.yahoo.com/nhl/players/7155","Colorado Avalanche"]
["Erik Johnson",0,0,0,-1,0,3,0,0,0,3,0,0,0,21,"17:07:00",0,0,0,"https://sports.yahoo.com/nhl/players/3979","Colorado Avalanche"]
["Brad Hunt",0,0,0,-1,0,2,0,0,0,0,0,1,0,15,"09:07:00",0,0,0,"https://sports.yahoo.com/nhl/players/5979","Colorado Avalanche"]
["Andreas Englund",0,0,0,0,5,0,0,0,0,2,1,0,0,12,"07:47:00",0,0,0,"https://sports.yahoo.com/nhl/players/6409","Colorado Avalanche"]
["Kurtis MacDermid",0,0,0,0,0,0,0,0,0,5,1,1,0,8,"04:31:00",0,0,0,"https://sports.yahoo.com/nhl/players/5904","Colorado Avalanche"]
["Philadelphia Flyers",null,null,null,null,null,null,null,null,null,null,null,null,null,null,null,0,0,0,"https://sports.yahoo.com/nhl/teams/philadelphia/","Colorado Avalanche"]
["Goaltenders",1,"SA","SV","SV%","TOI"]
["Samuel Ersson",1,29,28,".966",2.5,null,null,null,null,null,null,null,null,null,null,0,0,1,"https://sports.yahoo.com/nhl/players/8040","Philadelphia Flyers"]
["Forwards","G","A","Pts","+/-","PIM","SOG","FW","FL","FO%","Hits","Bks","Take","Give","Shifts","TOI"]
["Travis Konecny",1,1,2,2,0,2,0,0,0,1,0,1,1,25,"18:26:00",1,1,0,"https://sports.yahoo.com/nhl/players/6766","Philadelphia Flyers"]
["Scott Laughton",1,0,1,1,0,4,8,9,0.47,1,0,1,0,27,"17:24:00",1,0,0,"https://sports.yahoo.com/nhl/players/5700","Philadelphia Flyers"]
["James van Riemsdyk",0,0,0,0,2,2,0,0,0,0,0,0,0,21,"17:02:00",0,0,0,"https://sports.yahoo.com/nhl/players/4241","Philadelphia Flyers"]
["Morgan Frost",1,0,1,0,0,4,5,6,0.46,1,0,0,0,18,"16:30:00",1,0,0,"https://sports.yahoo.com/nhl/players/7542","Philadelphia Flyers"]
["Owen Tippett",0,0,0,0,0,2,0,0,0,1,0,0,0,19,"15:34:00",0,0,0,"https://sports.yahoo.com/nhl/players/7525","Philadelphia Flyers"]
["Noah Cates",0,2,2,2,0,0,4,3,0.56999999999999995,1,0,0,0,22,"14:43:00",0,2,0,"https://sports.yahoo.com/nhl/players/7652","Philadelphia Flyers"]
["Joel Farabee",1,1,2,1,0,1,0,0,0,0,1,1,0,21,"13:40:00",1,1,0,"https://sports.yahoo.com/nhl/players/7912","Philadelphia Flyers"]
["Kevin Hayes",0,2,2,2,0,3,0,0,0,0,0,1,1,17,"13:25:00",0,2,0,"https://sports.yahoo.com/nhl/players/4984","Philadelphia Flyers"]
["Patrick Brown",0,0,0,0,2,0,7,4,0.64,3,0,0,0,18,"12:49:00",0,0,0,"https://sports.yahoo.com/nhl/players/6353","Philadelphia Flyers"]
["Nicolas Deslauriers",0,0,0,0,2,1,0,0,0,4,0,0,1,17,"12:00:00",0,0,0,"https://sports.yahoo.com/nhl/players/5345","Philadelphia Flyers"]
["Zack MacEwen",0,0,0,0,0,3,1,0,1,0,1,1,1,14,"10:51:00",0,0,0,"https://sports.yahoo.com/nhl/players/7384","Philadelphia Flyers"]
["Wade Allison",0,0,0,1,0,1,0,0,0,2,1,0,0,17,"10:16:00",0,0,0,"https://sports.yahoo.com/nhl/players/7160","Philadelphia Flyers"]
["Defense","G","A","Pts","+/-","PIM","SOG","FW","FL","FO%","Hits","Bks","Take","Give","Shifts","TOI"]
["Ivan Provorov",0,0,0,0,0,4,0,0,0,1,2,0,1,29,"22:38:00",0,0,1,"https://sports.yahoo.com/nhl/players/6749","Philadelphia Flyers"]
["Tony DeAngelo",0,0,0,1,2,1,0,0,0,1,0,0,1,28,"22:16:00",0,0,1,"https://sports.yahoo.com/nhl/players/6385","Philadelphia Flyers"]
["Travis Sanheim",0,0,0,1,0,2,0,0,0,2,3,0,0,28,"20:26:00",0,0,1,"https://sports.yahoo.com/nhl/players/6383","Philadelphia Flyers"]
["Rasmus Ristolainen",0,0,0,1,0,1,0,0,0,2,3,0,1,29,"19:36:00",0,0,1,"https://sports.yahoo.com/nhl/players/5987","Philadelphia Flyers"]
["Cam York",0,1,1,2,2,1,0,0,0,0,1,0,0,25,"17:55:00",0,1,1,"https://sports.yahoo.com/nhl/players/8292","Philadelphia Flyers"]
["Justin Braun",0,0,0,1,0,1,0,0,0,1,0,0,0,22,"14:29:00",0,0,1,"https://sports.yahoo.com/nhl/players/4888","Philadelphia Flyers"]
["Anaheim Ducks",null,null,null,null,null,null,null,null,null,null,null,null,null,null,null,0,0,1,"https://sports.yahoo.com/nhl/teams/anaheim/","Philadelphia Flyers"]
["Goaltenders","GA","SA","SV","SV%","TOI"]
["John Gibson",4,33,29,".879",2.5,null,null,null,null,null,null,null,null,null,null,0,0,0,"https://sports.yahoo.com/nhl/players/5407","Anaheim Ducks"]
["Forwards","G","A","Pts","+/-","PIM","SOG","FW","FL","FO%","Hits","Bks","Take","Give","Shifts","TOI"]
["Trevor Zegras",0,1,1,-1,0,9,4,2,0.67,1,0,1,2,20,"21:56:00",0,1,0,"https://sports.yahoo.com/nhl/players/8287","Anaheim Ducks"]
["Frank Vatrano",0,0,0,0,0,3,0,0,0,1,1,0,0,24,"20:40:00",0,0,0,"https://sports.yahoo.com/nhl/players/6707","Anaheim Ducks"]
["Mason McTavish",0,0,0,-2,0,2,2,5,0.28999999999999998,0,2,0,2,22,"20:02:00",0,0,0,"https://sports.yahoo.com/nhl/players/8879","Anaheim Ducks"]
["Troy Terry",0,0,0,-2,2,2,0,0,0,0,0,0,1,20,"19:49:00",0,0,0,"https://sports.yahoo.com/nhl/players/6890","Anaheim Ducks"]
["Ryan Strome",1,0,1,0,0,2,6,6,0.5,1,0,0,0,20,"18:16:00",1,0,0,"https://sports.yahoo.com/nhl/players/5366","Anaheim Ducks"]
["Adam Henrique",0,0,0,-2,0,1,7,6,0.54,0,0,0,1,19,"17:43:00",0,0,0,"https://sports.yahoo.com/nhl/players/5238","Anaheim Ducks"]
["Jakob Silfverberg",0,0,0,-1,0,1,1,0,1,0,1,0,0,18,"15:23:00",0,0,0,"https://sports.yahoo.com/nhl/players/5343","Anaheim Ducks"]
["Max Comtois",0,0,0,-1,0,1,0,0,0,0,0,0,0,16,"13:07:00",0,0,0,"https://sports.yahoo.com/nhl/players/7565","Anaheim Ducks"]
["Brett Leason",0,0,0,-1,0,0,0,0,0,1,0,0,0,16,"13:00:00",0,0,0,"https://sports.yahoo.com/nhl/players/8334","Anaheim Ducks"]
["Jayson Megna",0,0,0,1,0,0,0,1,0,1,0,0,0,15,"11:31:00",0,0,0,"https://sports.yahoo.com/nhl/players/5902","Anaheim Ducks"]
["Sam Carrick",0,0,0,0,2,1,2,5,0.28999999999999998,3,0,1,0,14,"10:44:00",0,0,0,"https://sports.yahoo.com/nhl/players/5117","Anaheim Ducks"]
["Defense","G","A","Pts","+/-","PIM","SOG","FW","FL","FO%","Hits","Bks","Take","Give","Shifts","TOI"]
["Cam Fowler",0,0,0,-1,0,1,0,0,0,0,0,0,0,18,"18:58:00",0,0,0,"https://sports.yahoo.com/nhl/players/4972","Anaheim Ducks"]
["Dmitry Kulikov",0,0,0,-2,0,2,0,0,0,5,0,0,1,17,"16:42:00",0,0,0,"https://sports.yahoo.com/nhl/players/4694","Anaheim Ducks"]
["Urho Vaakanainen",0,0,0,0,0,0,0,0,0,0,1,0,1,17,"16:00:00",0,0,0,"https://sports.yahoo.com/nhl/players/7533","Anaheim Ducks"]
["Kevin Shattenkirk",0,0,0,0,0,1,0,0,0,1,1,0,1,18,"15:59:00",0,0,0,"https://sports.yahoo.com/nhl/players/4253","Anaheim Ducks"]
["Simon Benoit",0,0,0,-1,0,2,0,0,0,2,2,0,0,19,"15:57:00",0,0,0,"https://sports.yahoo.com/nhl/players/8157","Anaheim Ducks"]
["John Klingberg",0,0,0,-1,0,1,0,0,0,2,2,0,2,17,"15:20:00",0,0,0,"https://sports.yahoo.com/nhl/players/5104","Anaheim Ducks"]
["Nathan Beaulieu",0,0,0,-1,0,0,0,0,0,2,0,0,0,15,"14:53:00",0,0,0,"https://sports.yahoo.com/nhl/players/5378","Anaheim Ducks"]
["Carolina Hurricanes",null,null,null,null,null,null,null,null,null,null,null,null,null,null,null,0,0,0,"https://sports.yahoo.com/nhl/teams/carolina/","Anaheim Ducks"]
["Goaltenders","GA","SA","SV","SV%","TOI"]
["Pyotr Kochetkov",4,30,26,".867",2.4812499999999997,null,null,null,null,null,null,null,null,null,null,0,0,0,"https://sports.yahoo.com/nhl/players/8314","Carolina Hurricanes"]
["Forwards","G","A","Pts","+/-","PIM","SOG","FW","FL","FO%","Hits","Bks","Take","Give","Shifts","TOI"]
["Andrei Svechnikov",0,1,1,1,2,2,0,0,0,2,1,0,1,22,"21:35:00",0,1,0,"https://sports.yahoo.com/nhl/players/7900","Carolina Hurricanes"]
["Martin Necas",1,0,1,1,0,5,6,1,0.86,0,1,1,1,22,"21:14:00",1,0,0,"https://sports.yahoo.com/nhl/players/7527","Carolina Hurricanes"]
["Sebastian Aho",0,0,0,1,2,2,4,10,0.28999999999999998,1,0,0,1,18,"19:34:00",0,0,0,"https://sports.yahoo.com/nhl/players/6777","Carolina Hurricanes"]
["Teuvo Teravainen",0,1,1,1,0,2,0,0,0,0,0,0,0,21,"17:16:00",0,1,0,"https://sports.yahoo.com/nhl/players/5698","Carolina Hurricanes"]
["Paul Stastny",0,2,2,1,0,0,5,3,0.63,0,1,0,0,20,"17:09:00",0,2,0,"https://sports.yahoo.com/nhl/players/4023","Carolina Hurricanes"]
["Jordan Martinook",0,0,0,-1,2,1,0,0,0,0,0,0,2,20,"16:50:00",0,0,0,"https://sports.yahoo.com/nhl/players/5747","Carolina Hurricanes"]
["Seth Jarvis",0,0,0,1,0,4,1,0,1,0,0,0,0,16,"16:12:00",0,0,0,"https://sports.yahoo.com/nhl/players/8653","Carolina Hurricanes"]
["Jordan Staal",0,0,0,-1,0,0,8,11,0.42,0,0,0,1,20,"15:40:00",0,0,0,"https://sports.yahoo.com/nhl/players/3980","Carolina Hurricanes"]
["Jesper Fast",0,0,0,-1,0,0,0,0,0,2,0,1,0,18,"13:46:00",0,0,0,"https://sports.yahoo.com/nhl/players/5130","Carolina Hurricanes"]
["Derek Stepan",0,0,0,0,0,1,1,1,0.5,0,0,0,0,11,"09:08:00",0,0,0,"https://sports.yahoo.com/nhl/players/4992","Carolina Hurricanes"]
["Jesperi Kotkaniemi",0,0,0,0,0,2,0,2,0,2,0,0,0,11,"08:08:00",0,0,0,"https://sports.yahoo.com/nhl/players/7901","Carolina Hurricanes"]
["Stefan Noesen",0,0,0,0,0,1,0,0,0,0,0,0,0,2,"01:18:00",0,0,0,"https://sports.yahoo.com/nhl/players/5382","Carolina Hurricanes"]
["Defense","G","A","Pts","+/-","PIM","SOG","FW","FL","FO%","Hits","Bks","Take","Give","Shifts","TOI"]
["Brett Pesce",0,0,0,0,0,0,0,0,0,1,4,1,0,28,1.0152777777777777,0,0,0,"https://sports.yahoo.com/nhl/players/6046","Carolina Hurricanes"]
["Brady Skjei",0,0,0,0,0,0,0,0,0,0,0,0,2,26,"22:08:00",0,0,0,"https://sports.yahoo.com/nhl/players/5708","Carolina Hurricanes"]
["Brent Burns",1,0,1,-1,4,1,0,0,0,1,2,0,1,26,"21:51:00",1,0,0,"https://sports.yahoo.com/nhl/players/3358","Carolina Hurricanes"]
["Jaccob Slavin",0,1,1,-1,0,1,0,0,0,0,1,0,0,25,"19:59:00",0,1,0,"https://sports.yahoo.com/nhl/players/5810","Carolina Hurricanes"]
["Calvin de Haan",0,0,0,2,0,0,0,0,0,2,1,0,0,17,"13:34:00",0,0,0,"https://sports.yahoo.com/nhl/players/4692","Carolina Hurricanes"]
["Jalen Chatfield",1,0,1,2,2,1,0,0,0,3,1,0,0,16,"12:35:00",1,0,0,"https://sports.yahoo.com/nhl/players/6984","Carolina Hurricanes"]
["New York Rangers",null,null,null,null,null,null,null,null,null,null,null,null,null,null,null,0,0,0,"https://sports.yahoo.com/nhl/teams/ny-rangers/","Carolina Hurricanes"]
["Goaltenders","GA","SA","SV","SV%","TOI"]
["Igor Shesterkin",3,23,20,".870",2.4583333333333335,null,null,null,null,null,null,null,null,null,null,0,0,0,"https://sports.yahoo.com/nhl/players/6486","New York Rangers"]
["Forwards","G","A","Pts","+/-","PIM","SOG","FW","FL","FO%","Hits","Bks","Take","Give","Shifts","TOI"]
["Vincent Trocheck",0,0,0,0,2,2,10,9,0.53,0,2,0,2,22,1.0125,0,0,0,"https://sports.yahoo.com/nhl/players/5431","New York Rangers"]
["Artemi Panarin",1,0,1,0,2,3,0,1,0,0,0,0,1,19,"23:41:00",1,0,0,"https://sports.yahoo.com/nhl/players/6728","New York Rangers"]
["Mika Zibanejad",1,1,2,1,0,1,6,7,0.46,0,0,1,4,23,"20:47:00",1,1,0,"https://sports.yahoo.com/nhl/players/5367","New York Rangers"]
["Chris Kreider",0,0,0,1,2,3,2,1,0.67,2,2,2,1,22,"19:31:00",0,0,0,"https://sports.yahoo.com/nhl/players/4699","New York Rangers"]
["Kaapo Kakko",0,1,1,1,0,1,0,0,0,1,0,0,0,21,"16:20:00",0,1,0,"https://sports.yahoo.com/nhl/players/8280","New York Rangers"]
["Barclay Goodrow",0,0,0,0,0,1,8,2,0.8,1,1,0,1,17,"14:31:00",0,0,0,"https://sports.yahoo.com/nhl/players/6290","New York Rangers"]
["Jimmy Vesey",0,0,0,-2,0,3,0,0,0,0,0,1,1,19,"14:17:00",0,0,0,"https://sports.yahoo.com/nhl/players/5757","New York Rangers"]
["Vitali Kravtsov",0,1,1,0,0,2,0,0,0,0,1,0,0,18,"13:58:00",0,1,0,"https://sports.yahoo.com/nhl/players/7907","New York Rangers"]
["Alexis Lafreniere",0,0,0,-2,0,3,0,0,0,0,0,0,1,18,"13:05:00",0,0,0,"https://sports.yahoo.com/nhl/players/8641","New York Rangers"]
["Filip Chytil",1,1,2,-2,0,1,2,5,0.28999999999999998,1,0,0,0,13,"08:44:00",1,1,0,"https://sports.yahoo.com/nhl/players/7536","New York Rangers"]
["Julien Gauthier",0,0,0,0,0,1,0,0,0,1,0,0,1,8,"06:31:00",0,0,0,"https://sports.yahoo.com/nhl/players/7129","New York Rangers"]
["Sammy Blais",0,0,0,0,0,0,0,0,0,1,0,0,0,7,"06:11:00",0,0,0,"https://sports.yahoo.com/nhl/players/6544","New York Rangers"]
["Defense","G","A","Pts","+/-","PIM","SOG","FW","FL","FO%","Hits","Bks","Take","Give","Shifts","TOI"]
["Adam Fox",0,1,1,1,0,4,0,0,0,0,1,1,1,26,1.0423611111111111,0,1,0,"https://sports.yahoo.com/nhl/players/7174","New York Rangers"]
["Ryan Lindgren",0,1,1,1,0,2,0,0,0,2,2,0,0,25,"21:08:00",0,1,0,"https://sports.yahoo.com/nhl/players/7157","New York Rangers"]
["Jacob Trouba",1,1,2,-3,0,1,0,0,0,3,0,0,0,25,"20:30:00",1,1,0,"https://sports.yahoo.com/nhl/players/5689","New York Rangers"]
["K'Andre Miller",1,1,2,-2,2,1,0,0,0,2,1,0,0,27,"20:09:00",1,1,0,"https://sports.yahoo.com/nhl/players/7920","New York Rangers"]
["Braden Schneider",0,0,0,0,0,1,0,0,0,0,2,1,2,21,"14:12:00",0,0,0,"https://sports.yahoo.com/nhl/players/8659","New York Rangers"]
["Ben Harpur",0,0,0,1,0,1,0,0,0,3,1,0,2,18,"12:06:00",0,0,0,"https://sports.yahoo.com/nhl/players/6087","New York Rangers"]
["Columbus Blue Jackets",null,null,null,null,null,null,null,null,null,null,null,null,null,null,null,0,0,0,"https://sports.yahoo.com/nhl/teams/columbus/","New York Rangers"]
["Goaltenders","GA","SA","SV","SV%","TOI"]
["Joonas Korpisalo",3,33,30,".909",2.4840277777777779,null,null,null,null,null,null,null,null,null,null,0,0,0,"https://sports.yahoo.com/nhl/players/5753","Columbus Blue Jackets"]
["Forwards","G","A","Pts","+/-","PIM","SOG","FW","FL","FO%","Hits","Bks","Take","Give","Shifts","TOI"]
["Gustav Nyquist",0,0,0,-1,2,2,0,0,0,1,0,1,0,26,"20:02:00",0,0,0,"https://sports.yahoo.com/nhl/players/5279","Columbus Blue Jackets"]
["Jack Roslovic",0,0,0,-1,0,1,10,10,0.5,1,1,0,0,25,"19:44:00",0,0,0,"https://sports.yahoo.com/nhl/players/6767","Columbus Blue Jackets"]
["Johnny Gaudreau",0,0,0,-1,0,0,0,0,0,0,0,1,0,18,"16:20:00",0,0,0,"https://sports.yahoo.com/nhl/players/5470","Columbus Blue Jackets"]
["Patrik Laine",0,0,0,-1,0,2,0,0,0,2,0,0,0,18,"16:12:00",0,0,0,"https://sports.yahoo.com/nhl/players/7110","Columbus Blue Jackets"]
["Sean Kuraly",0,0,0,-1,0,3,8,10,0.44,2,0,0,0,22,"15:58:00",0,0,0,"https://sports.yahoo.com/nhl/players/5498","Columbus Blue Jackets"]
["Cole Sillinger",0,0,0,0,0,1,5,8,0.39,4,3,0,0,19,"14:54:00",0,0,0,"https://sports.yahoo.com/nhl/players/8887","Columbus Blue Jackets"]
["Emil Bemstrom",0,0,0,0,0,2,1,0,1,0,0,0,0,18,"13:58:00",0,0,0,"https://sports.yahoo.com/nhl/players/7632","Columbus Blue Jackets"]
["Kent Johnson",0,0,0,-1,2,1,5,4,0.56000000000000005,0,0,2,3,17,"13:20:00",0,0,0,"https://sports.yahoo.com/nhl/players/8881","Columbus Blue Jackets"]
["Liam Foudy",0,0,0,-1,0,1,0,0,0,1,1,0,1,18,"12:37:00",0,0,0,"https://sports.yahoo.com/nhl/players/7916","Columbus Blue Jackets"]
["Kirill Marchenko",0,0,0,0,0,1,0,0,0,1,3,0,0,15,"11:55:00",0,0,0,"https://sports.yahoo.com/nhl/players/7947","Columbus Blue Jackets"]
["Mathieu Olivier",0,0,0,-1,0,0,0,0,0,6,1,0,0,15,"10:08:00",0,0,0,"https://sports.yahoo.com/nhl/players/7332","Columbus Blue Jackets"]
["Eric Robinson",0,0,0,0,0,2,0,0,0,4,1,2,0,13,"09:45:00",0,0,0,"https://sports.yahoo.com/nhl/players/7859","Columbus Blue Jackets"]
["Defense","G","A","Pts","+/-","PIM","SOG","FW","FL","FO%","Hits","Bks","Take","Give","Shifts","TOI"]
["Erik Gudbranson",0,0,0,-1,2,2,0,0,0,2,0,0,1,28,"22:21:00",0,0,0,"https://sports.yahoo.com/nhl/players/4963","Columbus Blue Jackets"]
["Vladislav Gavrikov",0,0,0,0,0,0,0,0,0,2,1,0,0,24,"22:13:00",0,0,0,"https://sports.yahoo.com/nhl/players/6901","Columbus Blue Jackets"]
["Tim Berni",0,0,0,-1,2,2,0,0,0,5,1,0,3,29,"20:50:00",0,0,0,"https://sports.yahoo.com/nhl/players/8056","Columbus Blue Jackets"]
["Gavin Bayreuther",0,0,0,0,0,2,0,0,0,0,2,0,1,25,"20:13:00",0,0,0,"https://sports.yahoo.com/nhl/players/7474","Columbus Blue Jackets"]
["Marcus Bjork",0,0,0,-1,4,0,0,0,0,1,1,0,0,23,"16:08:00",0,0,0,"https://sports.yahoo.com/nhl/players/9262","Columbus Blue Jackets"]
["Adam Boqvist",0,0,0,0,0,0,0,0,0,0,0,0,2,16,"13:13:00",0,0,0,"https://sports.yahoo.com/nhl/players/7906","Columbus Blue Jackets"]
["Ottawa Senators",null,null,null,null,null,null,null,null,null,null,null,null,null,null,null,0,0,0,"https://sports.yahoo.com/nhl/teams/ottawa/","Columbus Blue Jackets"]
["Goaltenders",1,"SA","SV","SV%","TOI"]
["Anton Forsberg",0,22,22,"1.000",2.5,null,null,null,null,null,null,null,null,null,null,0,0,1,"https://sports.yahoo.com/nhl/players/5553","Ottawa Senators"]
["Forwards","G","A","Pts","+/-","PIM","SOG","FW","FL","FO%","Hits","Bks","Take","Give","Shifts","TOI"]
["Tim Stutzle",1,1,2,1,0,3,2,1,0.67,0,1,1,0,24,"21:39:00",1,1,0,"https://sports.yahoo.com/nhl/players/8643","Ottawa Senators"]
["Alex DeBrincat",0,0,0,0,0,3,0,0,0,2,1,1,0,24,"21:10:00",0,0,0,"https://sports.yahoo.com/nhl/players/7147","Ottawa Senators"]
["Drake Batherson",1,0,1,0,0,4,0,0,0,0,2,1,1,25,"20:48:00",1,0,0,"https://sports.yahoo.com/nhl/players/7636","Ottawa Senators"]
["Brady Tkachuk",0,1,1,1,0,5,10,5,0.67,4,0,0,1,23,"18:22:00",0,1,0,"https://sports.yahoo.com/nhl/players/7902","Ottawa Senators"]
["Shane Pinto",0,0,0,0,0,2,7,9,0.44,2,0,0,0,23,"17:13:00",0,0,0,"https://sports.yahoo.com/nhl/players/8310","Ottawa Senators"]
["Claude Giroux",0,2,2,1,2,2,5,2,0.71,0,0,2,3,27,"16:41:00",0,2,0,"https://sports.yahoo.com/nhl/players/4002","Ottawa Senators"]
["Austin Watson",1,0,1,1,0,4,0,0,0,1,0,1,1,19,"13:49:00",1,0,0,"https://sports.yahoo.com/nhl/players/4978","Ottawa Senators"]
["Parker Kelly",0,0,0,1,0,1,1,0,1,4,2,2,0,21,"12:46:00",0,0,0,"https://sports.yahoo.com/nhl/players/7828","Ottawa Senators"]
["Jake Lucchini",0,0,0,0,0,1,0,1,0,1,0,0,0,21,"12:39:00",0,0,0,"https://sports.yahoo.com/nhl/players/8230","Ottawa Senators"]
["Derick Brassard",1,0,1,0,0,1,2,2,0.5,0,0,1,0,17,"11:04:00",1,0,0,"https://sports.yahoo.com/nhl/players/3987","Ottawa Senators"]
["Dylan Gambrell",0,0,0,0,0,0,2,8,0.2,1,0,2,0,18,"09:42:00",0,0,0,"https://sports.yahoo.com/nhl/players/7168","Ottawa Senators"]
["Mark Kastelic",0,0,0,0,0,0,3,1,0.75,3,1,0,0,13,"07:53:00",0,0,0,"https://sports.yahoo.com/nhl/players/7832","Ottawa Senators"]
["Defense","G","A","Pts","+/-","PIM","SOG","FW","FL","FO%","Hits","Bks","Take","Give","Shifts","TOI"]
["Thomas Chabot",0,0,0,1,2,5,0,0,0,1,2,0,3,26,1.0986111111111112,0,0,1,"https://sports.yahoo.com/nhl/players/6760","Ottawa Senators"]
["Jake Sanderson",0,1,1,1,0,0,0,0,0,0,3,2,1,25,"19:21:00",0,1,1,"https://sports.yahoo.com/nhl/players/8645","Ottawa Senators"]
["Artem Zub",0,0,0,1,0,1,0,0,0,2,1,1,1,23,"18:42:00",0,0,1,"https://sports.yahoo.com/nhl/players/8614","Ottawa Senators"]
["Travis Hamonic",0,1,1,1,0,1,0,0,0,0,3,1,0,21,"16:27:00",0,1,1,"https://sports.yahoo.com/nhl/players/4771","Ottawa Senators"]
["Nick Holden",0,0,0,0,2,1,0,0,0,0,0,0,1,20,"15:28:00",0,0,1,"https://sports.yahoo.com/nhl/players/4386","Ottawa Senators"]
["Erik Brannstrom",0,0,0,0,0,0,0,0,0,0,1,0,0,18,"13:54:00",0,0,1,"https://sports.yahoo.com/nhl/players/7530","Ottawa Senators"]
["St. Louis Blues",null,null,null,null,null,null,null,null,null,null,null,null,null,null,null,0,0,1,"https://sports.yahoo.com/nhl/teams/st-louis/","Ottawa Senators"]
["Goaltenders","GA","SA","SV","SV%","TOI"]
["Jordan Binnington",5,25,20,".800",2.7083333333333335,null,null,null,null,null,null,null,null,null,null,0,0,0,"https://sports.yahoo.com/nhl/players/5454","St. Louis Blues"]
["Forwards","G","A","Pts","+/-","PIM","SOG","FW","FL","FO%","Hits","Bks","Take","Give","Shifts","TOI"]
["Brayden Schenn",1,1,2,-1,0,4,4,11,0.27,8,1,1,0,26,"22:49:00",1,1,0,"https://sports.yahoo.com/nhl/players/4685","St. Louis Blues"]
["Jordan Kyrou",1,1,2,-1,0,2,0,0,0,2,0,1,0,26,"22:38:00",1,1,0,"https://sports.yahoo.com/nhl/players/7143","St. Louis Blues"]
["Pavel Buchnevich",0,1,1,-1,0,3,0,0,0,4,0,1,0,27,"22:07:00",0,1,0,"https://sports.yahoo.com/nhl/players/6055","St. Louis Blues"]
["Robert Thomas",0,1,1,0,2,2,10,12,0.46,3,0,1,1,28,"22:03:00",0,1,0,"https://sports.yahoo.com/nhl/players/7535","St. Louis Blues"]
["Brandon Saad",2,0,2,0,0,3,0,0,0,0,0,0,1,23,"18:22:00",2,0,0,"https://sports.yahoo.com/nhl/players/5411","St. Louis Blues"]
["Ivan Barbashev",0,0,0,-1,0,3,0,0,0,2,0,0,3,20,"17:13:00",0,0,0,"https://sports.yahoo.com/nhl/players/6402","St. Louis Blues"]
["Noel Acciari",0,2,2,0,0,0,6,7,0.46,7,1,1,0,19,"16:33:00",0,2,0,"https://sports.yahoo.com/nhl/players/6739","St. Louis Blues"]
["Jake Neighbours",0,1,1,0,0,2,0,0,0,5,1,0,0,15,"11:27:00",0,1,0,"https://sports.yahoo.com/nhl/players/8666","St. Louis Blues"]
["Josh Leivo",1,0,1,0,0,5,0,0,0,3,0,0,0,14,"09:59:00",1,0,0,"https://sports.yahoo.com/nhl/players/5452","St. Louis Blues"]
["Alexey Toropchenko",0,0,0,0,0,0,0,1,0,1,1,0,0,12,"09:59:00",0,0,0,"https://sports.yahoo.com/nhl/players/7628","St. Louis Blues"]
["Tyler Pitlick",0,0,0,0,2,0,0,0,0,4,1,0,0,10,"07:51:00",0,0,0,"https://sports.yahoo.com/nhl/players/5004","St. Louis Blues"]
["Nikita Alexandrov",0,0,0,0,0,1,0,2,0,0,0,0,0,8,"06:37:00",0,0,0,"https://sports.yahoo.com/nhl/players/8340","St. Louis Blues"]
["Defense","G","A","Pts","+/-","PIM","SOG","FW","FL","FO%","Hits","Bks","Take","Give","Shifts","TOI"]
["Justin Faulk",0,0,0,0,2,1,0,0,0,2,2,0,0,37,1.1965277777777776,0,0,0,"https://sports.yahoo.com/nhl/players/5010","St. Louis Blues"]
["Colton Parayko",0,2,2,-1,0,1,0,0,0,1,2,0,1,35,1.0263888888888888,0,2,0,"https://sports.yahoo.com/nhl/players/5777","St. Louis Blues"]
["Nick Leddy",0,0,0,1,0,4,0,0,0,1,3,0,1,31,"23:22:00",0,0,0,"https://sports.yahoo.com/nhl/players/4696","St. Louis Blues"]
["Niko Mikkola",0,0,0,-1,0,1,0,0,0,3,1,0,2,32,"20:16:00",0,0,0,"https://sports.yahoo.com/nhl/players/6869","St. Louis Blues"]
["Robert Bortuzzo",0,0,0,0,0,0,0,0,0,6,3,0,0,20,"13:26:00",0,0,0,"https://sports.yahoo.com/nhl/players/4758","St. Louis Blues"]
["Calle Rosen",0,0,0,-1,0,0,0,0,0,0,1,0,1,18,"11:56:00",0,0,0,"https://sports.yahoo.com/nhl/players/7506","St. Louis Blues"]
["Toronto Maple Leafs",null,null,null,null,null,null,null,null,null,null,null,null,null,null,null,0,0,0,"https://sports.yahoo.com/nhl/teams/toronto/","St. Louis Blues"]
["Goaltenders","GA","SA","SV","SV%","TOI"]
["Ilya Samsonov",5,32,27,".844",2.7083333333333335,null,null,null,null,null,null,null,null,null,null,0,0,0,"https://sports.yahoo.com/nhl/players/6764","Toronto Maple Leafs"]
["Forwards","G","A","Pts","+/-","PIM","SOG","FW","FL","FO%","Hits","Bks","Take","Give","Shifts","TOI"]
["Auston Matthews",1,1,2,2,0,3,11,6,0.65,0,1,2,2,27,"21:46:00",1,1,0,"https://sports.yahoo.com/nhl/players/7109","Toronto Maple Leafs"]
["William Nylander",1,2,3,2,0,3,0,0,0,0,1,1,1,26,"19:59:00",1,2,0,"https://sports.yahoo.com/nhl/players/6374","Toronto Maple Leafs"]
["Mitch Marner",0,1,1,-2,0,0,0,0,0,0,0,4,0,25,"19:39:00",0,1,0,"https://sports.yahoo.com/nhl/players/6746","Toronto Maple Leafs"]
["Michael Bunting",2,1,3,2,2,5,0,0,0,1,1,1,0,25,"19:02:00",2,1,0,"https://sports.yahoo.com/nhl/players/6485","Toronto Maple Leafs"]
["John Tavares",0,0,0,-2,2,3,10,4,0.71,2,0,1,1,24,"18:07:00",0,0,0,"https://sports.yahoo.com/nhl/players/4681","Toronto Maple Leafs"]
["David Kampf",0,1,1,1,0,0,9,8,0.53,3,1,1,0,22,"16:41:00",0,1,0,"https://sports.yahoo.com/nhl/players/7499","Toronto Maple Leafs"]
["Alexander Kerfoot",0,1,1,1,0,0,0,0,0,0,2,0,2,19,"15:39:00",0,1,0,"https://sports.yahoo.com/nhl/players/5840","Toronto Maple Leafs"]
["Calle Jarnkrok",0,0,0,-1,0,1,0,1,0,0,1,0,0,22,"15:03:00",0,0,0,"https://sports.yahoo.com/nhl/players/5024","Toronto Maple Leafs"]
["Pierre Engvall",1,0,1,1,0,3,0,0,0,0,0,1,0,20,"14:45:00",1,0,0,"https://sports.yahoo.com/nhl/players/6555","Toronto Maple Leafs"]
["Pontus Holmberg",0,0,0,-1,0,0,3,1,0.75,0,0,0,0,16,"11:15:00",0,0,0,"https://sports.yahoo.com/nhl/players/8053","Toronto Maple Leafs"]
["Dryden Hunt",0,0,0,-1,0,1,0,0,0,3,0,0,0,14,"10:43:00",0,0,0,"https://sports.yahoo.com/nhl/players/7071","Toronto Maple Leafs"]
["Zachary Aston-Reese",0,0,0,-1,0,1,0,0,0,3,0,0,0,15,"09:11:00",0,0,0,"https://sports.yahoo.com/nhl/players/7473","Toronto Maple Leafs"]
["Defense","G","A","Pts","+/-","PIM","SOG","FW","FL","FO%","Hits","Bks","Take","Give","Shifts","TOI"]
["Morgan Rielly",0,0,0,1,0,0,0,0,0,1,0,0,0,27,"23:53:00",0,0,0,"https://sports.yahoo.com/nhl/players/5685","Toronto Maple Leafs"]
["T.J. Brodie",0,1,1,1,0,1,0,0,0,0,4,0,0,29,"21:52:00",0,1,0,"https://sports.yahoo.com/nhl/players/4732","Toronto Maple Leafs"]
["Mark Giordano",0,0,0,0,0,2,0,0,0,0,3,0,1,27,"20:23:00",0,0,0,"https://sports.yahoo.com/nhl/players/3614","Toronto Maple Leafs"]
["Justin Holl",0,0,0,0,0,0,0,0,0,3,0,1,0,24,"18:41:00",0,0,0,"https://sports.yahoo.com/nhl/players/5027","Toronto Maple Leafs"]
["Rasmus Sandin",0,0,0,1,0,2,0,0,0,2,1,0,0,23,"18:40:00",0,0,0,"https://sports.yahoo.com/nhl/players/7927","Toronto Maple Leafs"]
["Timothy Liljegren",0,1,1,1,0,0,0,0,0,1,1,0,1,23,"16:38:00",0,1,0,"https://sports.yahoo.com/nhl/players/7532","Toronto Maple Leafs"]
["Buffalo Sabres",null,null,null,null,null,null,null,null,null,null,null,null,null,null,null,0,0,0,"https://sports.yahoo.com/nhl/teams/buffalo/","Toronto Maple Leafs"]
["Goaltenders","GA","SA","SV","SV%","TOI"]
["Ukko-Pekka Luukkonen",4,32,28,".875",2.625,null,null,null,null,null,null,null,null,null,null,0,0,0,"https://sports.yahoo.com/nhl/players/7569","Buffalo Sabres"]
["Forwards","G","A","Pts","+/-","PIM","SOG","FW","FL","FO%","Hits","Bks","Take","Give","Shifts","TOI"]
["Tage Thompson",3,1,4,2,0,5,4,13,0.24,2,0,0,1,26,"19:56:00",3,1,0,"https://sports.yahoo.com/nhl/players/7134","Buffalo Sabres"]
["Alex Tuch",1,2,3,2,0,4,0,0,0,0,1,1,0,25,"18:51:00",1,2,0,"https://sports.yahoo.com/nhl/players/6384","Buffalo Sabres"]
["Jeff Skinner",0,1,1,1,0,2,1,3,0.25,0,0,0,0,25,"18:26:00",0,1,0,"https://sports.yahoo.com/nhl/players/4967","Buffalo Sabres"]
["Dylan Cozens",0,1,1,0,0,4,5,7,0.42,3,0,0,0,19,"15:53:00",0,1,0,"https://sports.yahoo.com/nhl/players/8285","Buffalo Sabres"]
["Casey Mittelstadt",0,1,1,-1,0,1,2,4,0.33,0,0,0,1,22,"15:45:00",0,1,0,"https://sports.yahoo.com/nhl/players/7523","Buffalo Sabres"]
["Peyton Krebs",0,0,0,-1,0,0,3,6,0.33,1,0,1,0,22,"15:13:00",0,0,0,"https://sports.yahoo.com/nhl/players/8295","Buffalo Sabres"]
["Kyle Okposo",0,0,0,-1,0,2,1,3,0.25,1,0,0,0,19,"15:07:00",0,0,0,"https://sports.yahoo.com/nhl/players/3988","Buffalo Sabres"]
["Tyson Jost",1,0,1,-1,0,1,3,5,0.38,3,0,1,0,18,"15:06:00",1,0,0,"https://sports.yahoo.com/nhl/players/7118","Buffalo Sabres"]
["Jack Quinn",0,0,0,1,0,3,0,0,0,1,0,0,0,18,"14:33:00",0,0,0,"https://sports.yahoo.com/nhl/players/8648","Buffalo Sabres"]
["Zemgus Girgensons",0,0,0,-1,0,1,0,2,0,2,0,0,0,19,"13:22:00",0,0,0,"https://sports.yahoo.com/nhl/players/5694","Buffalo Sabres"]
["Victor Olofsson",0,0,0,-2,0,0,0,0,0,1,0,0,0,19,"13:06:00",0,0,0,"https://sports.yahoo.com/nhl/players/6549","Buffalo Sabres"]
["JJ Peterka",0,0,0,0,0,3,0,0,0,1,0,0,1,16,"12:38:00",0,0,0,"https://sports.yahoo.com/nhl/players/8674","Buffalo Sabres"]
["Defense","G","A","Pts","+/-","PIM","SOG","FW","FL","FO%","Hits","Bks","Take","Give","Shifts","TOI"]
["Rasmus Dahlin",0,1,1,-1,0,0,0,0,0,0,2,0,2,34,1.1652777777777776,0,1,0,"https://sports.yahoo.com/nhl/players/7899","Buffalo Sabres"]
["Mattias Samuelsson",0,0,0,-2,0,1,0,0,0,4,1,0,0,33,"22:57:00",0,0,0,"https://sports.yahoo.com/nhl/players/7930","Buffalo Sabres"]
["Owen Power",0,1,1,1,0,1,0,0,0,0,1,2,1,30,"21:44:00",0,1,0,"https://sports.yahoo.com/nhl/players/8877","Buffalo Sabres"]
["Kale Clague",0,0,0,-1,0,1,0,0,0,1,1,0,0,25,"17:20:00",0,0,0,"https://sports.yahoo.com/nhl/players/7159","Buffalo Sabres"]
["Jacob Bryson",0,0,0,1,0,0,0,0,0,1,1,0,0,24,"16:30:00",0,0,0,"https://sports.yahoo.com/nhl/players/7614","Buffalo Sabres"]
["Ilya Lyubushkin",0,1,1,1,2,0,0,0,0,0,3,0,2,24,"14:56:00",0,1,0,"https://sports.yahoo.com/nhl/players/7889","Buffalo Sabres"]
["Washington Capitals",null,null,null,null,null,null,null,null,null,null,null,null,null,null,null,0,0,0,"https://sports.yahoo.com/nhl/teams/washington/","Buffalo Sabres"]
["Goaltenders","GA","SA","SV","SV%","TOI"]
["Darcy Kuemper",5,29,24,".828",2.6222222222222222,null,null,null,null,null,null,null,null,null,null,0,0,0,"https://sports.yahoo.com/nhl/players/5336","Washington Capitals"]
["Forwards","G","A","Pts","+/-","PIM","SOG","FW","FL","FO%","Hits","Bks","Take","Give","Shifts","TOI"]
["Evgeny Kuznetsov",0,1,1,3,2,4,9,7,0.56000000000000005,2,0,0,1,24,"21:49:00",0,1,0,"https://sports.yahoo.com/nhl/players/4986","Washington Capitals"]
["Alex Ovechkin",2,0,2,2,0,7,0,0,0,4,0,0,1,25,"20:33:00",2,0,0,"https://sports.yahoo.com/nhl/players/3637","Washington Capitals"]
["Conor Sheary",0,1,1,2,0,2,0,0,0,3,0,0,2,23,"16:42:00",0,1,0,"https://sports.yahoo.com/nhl/players/6585","Washington Capitals"]
["T.J. Oshie",0,0,0,0,2,2,0,0,0,1,0,0,0,23,"15:55:00",0,0,0,"https://sports.yahoo.com/nhl/players/3801","Washington Capitals"]
["Dylan Strome",0,0,0,-1,0,1,7,4,0.64,0,0,1,2,15,"15:35:00",0,0,0,"https://sports.yahoo.com/nhl/players/6745","Washington Capitals"]
["Anthony Mantha",0,1,1,1,0,1,1,0,1,1,0,0,2,17,"15:05:00",0,1,0,"https://sports.yahoo.com/nhl/players/5999","Washington Capitals"]
["Nic Dowd",1,0,1,-1,0,1,18,4,0.82,3,0,0,0,21,"15:01:00",1,0,0,"https://sports.yahoo.com/nhl/players/6350","Washington Capitals"]
["Sonny Milano",1,1,2,2,0,4,0,0,0,0,0,1,0,18,"14:55:00",1,1,0,"https://sports.yahoo.com/nhl/players/6382","Washington Capitals"]
["Marcus Johansson",0,0,0,-1,0,2,0,0,0,1,0,1,0,17,"13:45:00",0,0,0,"https://sports.yahoo.com/nhl/players/4704","Washington Capitals"]
["Lars Eller",0,0,0,-1,2,2,8,4,0.67,1,3,0,0,22,"13:41:00",0,0,0,"https://sports.yahoo.com/nhl/players/4252","Washington Capitals"]
["Garnet Hathaway",0,0,0,-2,0,0,0,0,0,3,1,0,0,18,"11:54:00",0,0,0,"https://sports.yahoo.com/nhl/players/6636","Washington Capitals"]
["Aliaksei Protas",0,0,0,-3,0,2,0,0,0,1,0,0,1,12,"08:44:00",0,0,0,"https://sports.yahoo.com/nhl/players/8369","Washington Capitals"]
["Defense","G","A","Pts","+/-","PIM","SOG","FW","FL","FO%","Hits","Bks","Take","Give","Shifts","TOI"]
["Trevor van Riemsdyk",0,0,0,2,0,2,0,0,0,0,2,1,2,25,"23:27:00",0,0,0,"https://sports.yahoo.com/nhl/players/6340","Washington Capitals"]
["Erik Gustafsson",0,0,0,1,0,1,0,0,0,3,0,0,0,23,"22:26:00",0,0,0,"https://sports.yahoo.com/nhl/players/5783","Washington Capitals"]
["Nick Jensen",0,1,1,-1,0,0,0,0,0,0,1,0,0,26,"22:01:00",0,1,0,"https://sports.yahoo.com/nhl/players/5958","Washington Capitals"]
["Dmitry Orlov",0,0,0,-1,0,1,0,0,0,3,2,0,0,28,"21:57:00",0,0,0,"https://sports.yahoo.com/nhl/players/5254","Washington Capitals"]
["Martin Fehervary",0,0,0,0,0,0,0,0,0,6,3,0,1,20,"17:01:00",0,0,0,"https://sports.yahoo.com/nhl/players/7944","Washington Capitals"]
["Matt Irwin",0,1,1,0,0,0,0,0,0,7,3,0,0,17,"16:22:00",0,1,0,"https://sports.yahoo.com/nhl/players/4881","Washington Capitals"]
["Arizona Coyotes",null,null,null,null,null,null,null,null,null,null,null,null,null,null,null,0,0,0,"https://sports.yahoo.com/nhl/teams/arizona/","Washington Capitals"]
["Goaltenders","GA","SA","SV","SV%","TOI"]
["Karel Vejmelka",5,37,32,".865",2.4118055555555555,null,null,null,null,null,null,null,null,null,null,0,0,0,"https://sports.yahoo.com/nhl/players/6887","Arizona Coyotes"]
["Forwards","G","A","Pts","+/-","PIM","SOG","FW","FL","FO%","Hits","Bks","Take","Give","Shifts","TOI"]
["Clayton Keller",1,1,2,-1,0,4,1,2,0.33,0,0,0,2,30,1.0194444444444444,1,1,0,"https://sports.yahoo.com/nhl/players/7115","Arizona Coyotes"]
["Nick Schmaltz",0,1,1,-1,0,2,0,0,0,0,0,0,3,24,"19:23:00",0,1,0,"https://sports.yahoo.com/nhl/players/6386","Arizona Coyotes"]
["Lawson Crouse",0,0,0,0,0,3,0,0,0,3,2,0,0,27,"18:26:00",0,0,0,"https://sports.yahoo.com/nhl/players/6753","Arizona Coyotes"]
["Nick Bjugstad",1,0,1,0,2,2,8,9,0.47,2,0,0,0,25,"18:05:00",1,0,0,"https://sports.yahoo.com/nhl/players/4979","Arizona Coyotes"]
["Barrett Hayton",0,0,0,-1,0,3,10,11,0.48,0,0,0,4,26,"18:03:00",0,0,0,"https://sports.yahoo.com/nhl/players/7903","Arizona Coyotes"]
["Jack McBain",0,1,1,0,0,3,2,1,0.67,1,0,0,0,24,"16:28:00",0,1,0,"https://sports.yahoo.com/nhl/players/7961","Arizona Coyotes"]
["Travis Boyd",0,0,0,-1,0,1,3,10,0.23,0,0,0,0,22,"15:58:00",0,0,0,"https://sports.yahoo.com/nhl/players/5542","Arizona Coyotes"]
["Christian Fischer",0,0,0,-1,0,3,0,1,0,3,0,0,2,24,"15:45:00",0,0,0,"https://sports.yahoo.com/nhl/players/6774","Arizona Coyotes"]
["Nick Ritchie",0,0,0,-1,2,0,0,0,0,4,1,1,0,19,"13:32:00",0,0,0,"https://sports.yahoo.com/nhl/players/6376","Arizona Coyotes"]
["Laurent Dauphin",0,0,0,0,0,4,4,5,0.44,0,1,1,1,13,"09:50:00",0,0,0,"https://sports.yahoo.com/nhl/players/6019","Arizona Coyotes"]
["Michael Carcone",0,0,0,0,0,2,0,0,0,0,0,0,0,13,"08:46:00",0,0,0,"https://sports.yahoo.com/nhl/players/7320","Arizona Coyotes"]
["Defense","G","A","Pts","+/-","PIM","SOG","FW","FL","FO%","Hits","Bks","Take","Give","Shifts","TOI"]
["Jakob Chychrun",1,0,1,-2,0,5,0,0,0,4,1,0,1,29,1.0486111111111112,1,0,0,"https://sports.yahoo.com/nhl/players/7124","Arizona Coyotes"]
["Shayne Gostisbehere",0,0,0,-1,0,0,0,0,0,2,0,0,0,29,1.0250000000000001,0,0,0,"https://sports.yahoo.com/nhl/players/5769","Arizona Coyotes"]
["J.J. Moser",0,1,1,0,0,1,0,0,0,0,1,0,0,27,"18:34:00",0,1,0,"https://sports.yahoo.com/nhl/players/8935","Arizona Coyotes"]
["Troy Stecher",0,0,0,0,0,1,0,0,0,0,1,1,0,19,"14:50:00",0,0,0,"https://sports.yahoo.com/nhl/players/7093","Arizona Coyotes"]
["Juuso Valimaki",0,1,1,-2,0,2,0,0,0,0,0,0,1,19,"13:36:00",0,1,0,"https://sports.yahoo.com/nhl/players/7531","Arizona Coyotes"]
["Patrik Nemeth",0,0,0,0,0,0,0,0,0,1,2,0,0,16,"12:39:00",0,0,0,"https://sports.yahoo.com/nhl/players/5014","Arizona Coyotes"]
["Josh Brown",0,0,0,1,0,0,0,0,0,2,1,0,1,17,"10:48:00",0,0,0,"https://sports.yahoo.com/nhl/players/6132","Arizona Coyotes"]
["Florida Panthers",null,null,null,null,null,null,null,null,null,null,null,null,null,null,null,0,0,0,"https://sports.yahoo.com/nhl/teams/florida/","Arizona Coyotes"]
["Goaltenders","GA","SA","SV","SV%","TOI"]
["Spencer Knight",3,36,33,".917",2.4909722222222221,null,null,null,null,null,null,null,null,null,null,0,0,0,"https://sports.yahoo.com/nhl/players/8291","Florida Panthers"]
["Forwards","G","A","Pts","+/-","PIM","SOG","FW","FL","FO%","Hits","Bks","Take","Give","Shifts","TOI"]
["Aleksander Barkov",0,1,1,1,0,1,15,9,0.63,2,2,0,2,24,"21:47:00",0,1,0,"https://sports.yahoo.com/nhl/players/5981","Florida Panthers"]
["Matthew Tkachuk",3,1,4,2,2,6,0,0,0,0,0,0,1,25,"21:27:00",3,1,0,"https://sports.yahoo.com/nhl/players/7114","Florida Panthers"]
["Carter Verhaeghe",0,0,0,0,0,1,2,0,1,0,0,2,3,21,"17:59:00",0,0,0,"https://sports.yahoo.com/nhl/players/6062","Florida Panthers"]
["Sam Bennett",0,0,0,0,0,1,7,9,0.44,4,1,1,0,20,"17:39:00",0,0,0,"https://sports.yahoo.com/nhl/players/6370","Florida Panthers"]
["Eetu Luostarinen",0,0,0,1,0,1,1,0,1,3,0,0,2,20,"17:09:00",0,0,0,"https://sports.yahoo.com/nhl/players/7557","Florida Panthers"]
["Sam Reinhart",0,1,1,-1,0,2,0,1,0,0,0,0,1,20,"16:27:00",0,1,0,"https://sports.yahoo.com/nhl/players/6368","Florida Panthers"]
["Anton Lundell",0,0,0,-1,0,1,3,4,0.43,1,1,0,1,18,"13:40:00",0,0,0,"https://sports.yahoo.com/nhl/players/8652","Florida Panthers"]
["Colin White",0,0,0,0,0,1,3,0,1,1,2,0,0,16,"11:49:00",0,0,0,"https://sports.yahoo.com/nhl/players/6763","Florida Panthers"]
["Eric Staal",2,0,2,2,0,2,6,4,0.6,0,1,0,0,17,"10:23:00",2,0,0,"https://sports.yahoo.com/nhl/players/3342","Florida Panthers"]
["Ryan Lomberg",0,1,1,2,0,4,2,1,0.67,2,0,0,0,14,"10:21:00",0,1,0,"https://sports.yahoo.com/nhl/players/7044","Florida Panthers"]
["Nick Cousins",0,0,0,-1,0,1,0,0,0,1,0,0,1,13,"10:18:00",0,0,0,"https://sports.yahoo.com/nhl/players/5435","Florida Panthers"]
["Givani Smith",0,0,0,1,0,2,0,0,0,2,0,0,0,15,"09:29:00",0,0,0,"https://sports.yahoo.com/nhl/players/7154","Florida Panthers"]
["Defense","G","A","Pts","+/-","PIM","SOG","FW","FL","FO%","Hits","Bks","Take","Give","Shifts","TOI"]
["Gustav Forsling",0,1,1,0,0,2,0,0,0,3,0,0,2,27,1.0284722222222222,0,1,0,"https://sports.yahoo.com/nhl/players/6494","Florida Panthers"]
["Aaron Ekblad",0,0,0,0,2,2,0,0,0,1,2,0,2,26,1.0131944444444445,0,0,0,"https://sports.yahoo.com/nhl/players/6367","Florida Panthers"]
["Brandon Montour",0,0,0,1,0,3,0,0,0,1,0,0,1,26,"21:22:00",0,0,0,"https://sports.yahoo.com/nhl/players/6424","Florida Panthers"]
["Marc Staal",0,0,0,1,0,1,0,0,0,2,3,1,0,26,"18:34:00",0,0,0,"https://sports.yahoo.com/nhl/players/3789","Florida Panthers"]
["Radko Gudas",0,0,0,1,2,2,0,0,0,4,1,1,0,20,"16:12:00",0,0,0,"https://sports.yahoo.com/nhl/players/5039","Florida Panthers"]
["Josh Mahura",0,1,1,1,0,4,0,0,0,2,0,1,2,17,"14:00:00",0,1,0,"https://sports.yahoo.com/nhl/players/7193","Florida Panthers"]
["Montreal Canadiens",null,null,null,null,null,null,null,null,null,null,null,null,null,null,null,0,0,0,"https://sports.yahoo.com/nhl/teams/montreal/","Florida Panthers"]
["Goaltenders","GA","SA","SV","SV%","TOI"]
["Sam Montembeault",6,34,28,".824",2.5,null,null,null,null,null,null,null,null,null,null,0,0,0,"https://sports.yahoo.com/nhl/players/6819","Montreal Canadiens"]
["Forwards","G","A","Pts","+/-","PIM","SOG","FW","FL","FO%","Hits","Bks","Take","Give","Shifts","TOI"]
["Nick Suzuki",0,0,0,0,0,2,7,14,0.33,1,1,0,0,21,"22:13:00",0,0,0,"https://sports.yahoo.com/nhl/players/7528","Montreal Canadiens"]
["Kirby Dach",0,0,0,0,0,4,0,0,0,0,2,0,2,18,"19:36:00",0,0,0,"https://sports.yahoo.com/nhl/players/8281","Montreal Canadiens"]
["Christian Dvorak",0,1,1,-1,0,1,7,8,0.47,0,1,1,0,18,"19:23:00",0,1,0,"https://sports.yahoo.com/nhl/players/6427","Montreal Canadiens"]
["Cole Caufield",1,0,1,1,0,6,0,0,0,0,0,1,0,18,"19:17:00",1,0,0,"https://sports.yahoo.com/nhl/players/8293","Montreal Canadiens"]
["Josh Anderson",1,0,1,0,0,2,1,0,1,0,0,0,1,18,"15:18:00",1,0,0,"https://sports.yahoo.com/nhl/players/5785","Montreal Canadiens"]
["Brendan Gallagher",1,0,1,-1,2,1,0,0,0,0,1,0,0,16,"15:00:00",1,0,0,"https://sports.yahoo.com/nhl/players/5120","Montreal Canadiens"]
["Mike Hoffman",0,1,1,0,0,1,1,0,1,1,0,0,1,16,"13:28:00",0,1,0,"https://sports.yahoo.com/nhl/players/4805","Montreal Canadiens"]
["Jonathan Drouin",0,1,1,0,0,0,4,6,0.4,1,0,1,0,16,"12:58:00",0,1,0,"https://sports.yahoo.com/nhl/players/5982","Montreal Canadiens"]
["Jake Evans",0,0,0,-1,2,0,4,3,0.56999999999999995,1,1,0,0,18,"12:36:00",0,0,0,"https://sports.yahoo.com/nhl/players/6573","Montreal Canadiens"]
["Juraj Slafkovsky",0,0,0,-1,0,0,0,0,0,3,0,1,0,14,"11:22:00",0,0,0,"https://sports.yahoo.com/nhl/players/9269","Montreal Canadiens"]
["Anthony Richard",0,1,1,0,0,1,0,0,0,0,0,0,0,13,"11:11:00",0,1,0,"https://sports.yahoo.com/nhl/players/6842","Montreal Canadiens"]
["Michael Pezzetta",0,0,0,0,0,1,0,0,0,4,0,0,0,13,"08:55:00",0,0,0,"https://sports.yahoo.com/nhl/players/7265","Montreal Canadiens"]
["Defense","G","A","Pts","+/-","PIM","SOG","FW","FL","FO%","Hits","Bks","Take","Give","Shifts","TOI"]
["David Savard",0,0,0,1,0,2,0,0,0,0,4,0,1,23,"23:03:00",0,0,0,"https://sports.yahoo.com/nhl/players/4953","Montreal Canadiens"]
["Jordan Harris",0,0,0,1,2,1,0,0,0,0,1,0,0,22,"20:34:00",0,0,0,"https://sports.yahoo.com/nhl/players/7969","Montreal Canadiens"]
["Joel Edmundson",0,0,0,-3,2,3,0,0,0,3,1,0,1,23,"17:12:00",0,0,0,"https://sports.yahoo.com/nhl/players/5414","Montreal Canadiens"]
["Justin Barron",0,0,0,-1,0,1,0,0,0,1,1,0,0,25,"16:54:00",0,0,0,"https://sports.yahoo.com/nhl/players/8665","Montreal Canadiens"]
["Arber Xhekaj",0,0,0,0,0,1,0,0,0,2,2,1,0,22,"16:50:00",0,0,0,"https://sports.yahoo.com/nhl/players/9154","Montreal Canadiens"]
["Chris Wideman",0,0,0,0,2,0,0,0,0,1,3,0,0,20,"14:47:00",0,0,0,"https://sports.yahoo.com/nhl/players/5638","Montreal Canadiens"]
["Nashville Predators",null,null,null,null,null,null,null,null,null,null,null,null,null,null,null,0,0,0,"https://sports.yahoo.com/nhl/teams/nashville/","Montreal Canadiens"]
["Goaltenders","GA","SA","SV","SV%","TOI"]
["Juuse Saros",3,27,24,".889",2.4965277777777777,null,null,null,null,null,null,null,null,null,null,0,0,0,"https://sports.yahoo.com/nhl/players/6078","Nashville Predators"]
["Forwards","G","A","Pts","+/-","PIM","SOG","FW","FL","FO%","Hits","Bks","Take","Give","Shifts","TOI"]
["Mikael Granlund",0,2,2,1,0,1,2,1,0.67,1,1,2,0,20,"18:03:00",0,2,0,"https://sports.yahoo.com/nhl/players/4969","Nashville Predators"]
["Tanner Jeannot",0,1,1,1,0,2,0,0,0,4,1,0,1,20,"16:28:00",0,1,0,"https://sports.yahoo.com/nhl/players/7365","Nashville Predators"]
["Nino Niederreiter",0,3,3,1,0,1,0,0,0,4,0,2,1,20,"16:27:00",0,3,0,"https://sports.yahoo.com/nhl/players/4965","Nashville Predators"]
["Filip Forsberg",0,1,1,-1,0,2,0,0,0,1,0,1,1,18,"15:21:00",0,1,0,"https://sports.yahoo.com/nhl/players/5691","Nashville Predators"]
["Matt Duchene",1,0,1,0,0,3,0,0,0,2,0,0,3,18,"15:18:00",1,0,0,"https://sports.yahoo.com/nhl/players/4683","Nashville Predators"]
["Ryan Johansen",0,0,0,-1,0,0,7,7,0.5,1,0,1,0,17,"14:41:00",0,0,0,"https://sports.yahoo.com/nhl/players/4964","Nashville Predators"]
["Yakov Trenin",0,1,1,1,2,2,0,0,0,1,0,2,0,17,"14:37:00",0,1,0,"https://sports.yahoo.com/nhl/players/6797","Nashville Predators"]
["Juuso Parssinen",0,0,0,0,0,0,6,3,0.67,5,0,1,1,19,"14:30:00",0,0,0,"https://sports.yahoo.com/nhl/players/8485","Nashville Predators"]
["Colton Sissons",1,0,1,0,2,1,4,5,0.44,1,0,0,1,18,"13:42:00",1,0,0,"https://sports.yahoo.com/nhl/players/5739","Nashville Predators"]
["Cody Glass",1,0,1,0,2,2,6,3,0.67,0,1,0,2,18,"12:51:00",1,0,0,"https://sports.yahoo.com/nhl/players/7521","Nashville Predators"]
["Thomas Novak",1,1,2,2,0,4,4,4,0.5,0,0,1,0,16,"12:48:00",1,1,0,"https://sports.yahoo.com/nhl/players/6827","Nashville Predators"]
["Mark Jankowski",0,0,0,0,0,1,2,1,0.67,2,0,1,0,16,"11:16:00",0,0,0,"https://sports.yahoo.com/nhl/players/5701","Nashville Predators"]
["Defense","G","A","Pts","+/-","PIM","SOG","FW","FL","FO%","Hits","Bks","Take","Give","Shifts","TOI"]
["Roman Josi",1,1,2,1,0,7,0,0,0,1,2,0,0,22,"22:24:00",1,1,0,"https://sports.yahoo.com/nhl/players/4930","Nashville Predators"]
["Mattias Ekholm",1,1,2,0,2,2,0,0,0,1,1,0,0,26,"21:55:00",1,1,0,"https://sports.yahoo.com/nhl/players/5329","Nashville Predators"]
["Alexandre Carrier",0,0,0,-1,0,2,0,0,0,1,2,2,2,22,"20:37:00",0,0,0,"https://sports.yahoo.com/nhl/players/6857","Nashville Predators"]
["Ryan McDonagh",0,0,0,0,2,2,0,0,0,0,3,1,3,25,"18:05:00",0,0,0,"https://sports.yahoo.com/nhl/players/4251","Nashville Predators"]
["Jeremy Lauzon",0,0,0,1,0,1,0,0,0,2,0,0,0,20,"16:23:00",0,0,0,"https://sports.yahoo.com/nhl/players/6794","Nashville Predators"]
["Roland McKeown",0,0,0,0,0,1,0,0,0,3,2,0,0,19,"14:39:00",0,0,0,"https://sports.yahoo.com/nhl/players/6419","Nashville Predators"]
["Calgary Flames",null,null,null,null,null,null,null,null,null,null,null,null,null,null,null,0,0,0,"https://sports.yahoo.com/nhl/teams/calgary/","Nashville Predators"]
["Goaltenders","GA","SA","SV","SV%","TOI"]
["Jacob Markstrom",3,25,22,".880",2.4708333333333332,null,null,null,null,null,null,null,null,null,null,0,0,0,"https://sports.yahoo.com/nhl/players/4947","Calgary Flames"]
["Forwards","G","A","Pts","+/-","PIM","SOG","FW","FL","FO%","Hits","Bks","Take","Give","Shifts","TOI"]
["Mikael Backlund",1,0,1,0,0,8,10,10,0.5,0,1,1,0,25,"18:53:00",1,0,0,"https://sports.yahoo.com/nhl/players/4263","Calgary Flames"]
["Tyler Toffoli",0,1,1,0,2,4,0,0,0,0,0,2,1,22,"17:55:00",0,1,0,"https://sports.yahoo.com/nhl/players/5020","Calgary Flames"]
["Elias Lindholm",0,1,1,0,0,2,11,6,0.65,0,1,0,0,25,"17:53:00",0,1,0,"https://sports.yahoo.com/nhl/players/5984","Calgary Flames"]
["Nazem Kadri",0,0,0,0,2,1,7,5,0.57999999999999996,0,1,0,1,20,"17:00:00",0,0,0,"https://sports.yahoo.com/nhl/players/4687","Calgary Flames"]
["Andrew Mangiapane",0,1,1,0,0,1,0,1,0,0,2,0,1,20,"16:34:00",0,1,0,"https://sports.yahoo.com/nhl/players/6908","Calgary Flames"]
["Dillon Dube",0,0,0,0,0,1,0,0,0,5,1,0,1,23,"15:50:00",0,0,0,"https://sports.yahoo.com/nhl/players/7164","Calgary Flames"]
["Blake Coleman",0,0,0,0,0,1,0,0,0,0,0,0,0,19,"14:50:00",0,0,0,"https://sports.yahoo.com/nhl/players/5441","Calgary Flames"]
["Jonathan Huberdeau",0,0,0,0,0,2,0,0,0,0,0,0,0,18,"14:27:00",0,0,0,"https://sports.yahoo.com/nhl/players/5364","Calgary Flames"]
["Milan Lucic",0,0,0,0,0,1,0,0,0,2,1,0,1,17,"12:07:00",0,0,0,"https://sports.yahoo.com/nhl/players/4306","Calgary Flames"]
["Trevor Lewis",0,0,0,-1,0,3,2,2,0.5,1,0,1,0,15,"11:30:00",0,0,0,"https://sports.yahoo.com/nhl/players/3990","Calgary Flames"]
["Adam Ruzicka",0,0,0,-1,0,1,0,0,0,0,0,0,0,11,"09:47:00",0,0,0,"https://sports.yahoo.com/nhl/players/7624","Calgary Flames"]
["Radim Zohorna",0,0,0,-1,0,0,1,2,0.33,2,0,1,0,9,"07:44:00",0,0,0,"https://sports.yahoo.com/nhl/players/8613","Calgary Flames"]
["Defense","G","A","Pts","+/-","PIM","SOG","FW","FL","FO%","Hits","Bks","Take","Give","Shifts","TOI"]
["Rasmus Andersson",0,0,0,1,2,3,0,0,0,1,3,0,0,33,1.075,0,0,0,"https://sports.yahoo.com/nhl/players/6795","Calgary Flames"]
["Noah Hanifin",0,0,0,0,0,0,0,0,0,1,1,1,0,32,"22:28:00",0,0,0,"https://sports.yahoo.com/nhl/players/6747","Calgary Flames"]
["Chris Tanev",0,0,0,-1,0,2,0,0,0,1,3,0,0,31,"19:47:00",0,0,0,"https://sports.yahoo.com/nhl/players/4935","Calgary Flames"]
["MacKenzie Weegar",0,0,0,-2,2,1,0,0,0,2,3,1,2,29,"19:38:00",0,0,0,"https://sports.yahoo.com/nhl/players/6184","Calgary Flames"]
["Nikita Zadorov",1,0,1,0,0,3,0,0,0,1,0,0,1,30,"19:01:00",1,0,0,"https://sports.yahoo.com/nhl/players/5995","Calgary Flames"]
["Michael Stone",0,0,0,0,2,1,0,0,0,4,0,0,1,17,"09:30:00",0,0,0,"https://sports.yahoo.com/nhl/players/4568","Calgary Flames"]
["Winnipeg Jets",null,null,null,null,null,null,null,null,null,null,null,null,null,null,null,0,0,0,"https://sports.yahoo.com/nhl/teams/winnipeg/","Calgary Flames"]
["Goaltenders","GA","SA","SV","SV%","TOI"]
["Connor Hellebuyck",2,35,33,".943",2.5,null,null,null,null,null,null,null,null,null,null,0,0,0,"https://sports.yahoo.com/nhl/players/5820","Winnipeg Jets"]
["Forwards","G","A","Pts","+/-","PIM","SOG","FW","FL","FO%","Hits","Bks","Take","Give","Shifts","TOI"]
["Kyle Connor",0,1,1,2,0,2,0,0,0,0,0,1,1,28,1.0027777777777778,0,1,0,"https://sports.yahoo.com/nhl/players/6759","Winnipeg Jets"]
["Pierre-Luc Dubois",0,1,1,2,4,1,7,10,0.41,0,0,1,2,29,"21:22:00",0,1,0,"https://sports.yahoo.com/nhl/players/7111","Winnipeg Jets"]
["Mark Scheifele",0,1,1,-1,0,1,6,7,0.46,0,2,0,0,23,"21:15:00",0,1,0,"https://sports.yahoo.com/nhl/players/5368","Winnipeg Jets"]
["Kevin Stenlund",0,0,0,0,0,3,7,11,0.39,2,1,1,0,25,"18:24:00",0,0,0,"https://sports.yahoo.com/nhl/players/6800","Winnipeg Jets"]
["Adam Lowry",0,0,0,-1,0,2,6,2,0.75,3,1,0,0,25,"18:01:00",0,0,0,"https://sports.yahoo.com/nhl/players/5434","Winnipeg Jets"]
["Sam Gagner",1,0,1,1,0,1,0,1,0,0,0,1,0,21,"14:17:00",1,0,0,"https://sports.yahoo.com/nhl/players/4245","Winnipeg Jets"]
["Morgan Barron",0,0,0,0,0,0,0,0,0,2,0,0,0,20,"13:52:00",0,0,0,"https://sports.yahoo.com/nhl/players/7689","Winnipeg Jets"]
["Karson Kuhlman",0,0,0,1,0,0,0,0,0,0,1,1,0,17,"12:14:00",0,0,0,"https://sports.yahoo.com/nhl/players/7869","Winnipeg Jets"]
["Axel Jonsson-Fjallby",0,0,0,0,0,4,0,0,0,2,1,0,0,16,"12:05:00",0,0,0,"https://sports.yahoo.com/nhl/players/7252","Winnipeg Jets"]
["Kristian Reichel",0,0,0,-1,0,1,0,0,0,1,0,1,0,17,"09:55:00",0,0,0,"https://sports.yahoo.com/nhl/players/8208","Winnipeg Jets"]
["David Gustafsson",0,0,0,0,0,0,0,0,0,0,0,0,1,13,"07:51:00",0,0,0,"https://sports.yahoo.com/nhl/players/7958","Winnipeg Jets"]
["Defense","G","A","Pts","+/-","PIM","SOG","FW","FL","FO%","Hits","Bks","Take","Give","Shifts","TOI"]
["Josh Morrissey",1,0,1,-1,0,3,0,0,0,2,0,1,0,28,"23:57:00",1,0,0,"https://sports.yahoo.com/nhl/players/5992","Winnipeg Jets"]
["Neal Pionk",0,0,0,0,0,1,0,0,0,0,2,0,0,28,"23:41:00",0,0,0,"https://sports.yahoo.com/nhl/players/7498","Winnipeg Jets"]
["Dylan DeMelo",0,1,1,0,0,0,0,0,0,2,4,0,1,28,"22:20:00",0,1,0,"https://sports.yahoo.com/nhl/players/5544","Winnipeg Jets"]
["Brenden Dillon",1,0,1,1,2,2,0,0,0,1,1,0,2,23,"19:22:00",1,0,0,"https://sports.yahoo.com/nhl/players/5251","Winnipeg Jets"]
["Ville Heinola",0,1,1,1,0,2,0,0,0,2,2,0,3,22,"15:22:00",0,1,0,"https://sports.yahoo.com/nhl/players/8298","Winnipeg Jets"]
["Dylan Samberg",0,1,1,1,0,2,0,0,0,0,1,2,0,19,"11:54:00",0,1,0,"https://sports.yahoo.com/nhl/players/7558","Winnipeg Jets"]
["Kyle Capobianco",0,0,0,0,0,0,0,0,0,0,0,0,0,5,"04:04:00",0,0,0,"https://sports.yahoo.com/nhl/players/6805","Winnipeg Jets"]
["Tampa Bay Lightning",null,null,null,null,null,null,null,null,null,null,null,null,null,null,null,0,0,0,"https://sports.yahoo.com/nhl/teams/tampa-bay/","Winnipeg Jets"]
["Goaltenders",1,"SA","SV","SV%","TOI"]
["Brian Elliott",1,26,25,".962",2.5,null,null,null,null,null,null,null,null,null,null,0,0,1,"https://sports.yahoo.com/nhl/players/4136","Tampa Bay Lightning"]
["Forwards","G","A","Pts","+/-","PIM","SOG","FW","FL","FO%","Hits","Bks","Take","Give","Shifts","TOI"]
["Nikita Kucherov",0,0,0,0,0,1,0,0,0,1,0,0,1,19,"19:37:00",0,0,0,"https://sports.yahoo.com/nhl/players/5425","Tampa Bay Lightning"]
["Nicholas Paul",1,0,1,2,0,3,8,8,0.5,0,1,1,0,22,"18:42:00",1,0,0,"https://sports.yahoo.com/nhl/players/6080","Tampa Bay Lightning"]
["Brayden Point",0,1,1,0,0,3,8,8,0.5,0,1,0,0,19,"18:16:00",0,1,0,"https://sports.yahoo.com/nhl/players/6448","Tampa Bay Lightning"]
["Brandon Hagel",1,1,2,1,2,3,0,1,0,0,1,2,1,21,"18:13:00",1,1,0,"https://sports.yahoo.com/nhl/players/7264","Tampa Bay Lightning"]
["Anthony Cirelli",0,0,0,1,0,0,7,8,0.47,0,1,1,0,20,"15:23:00",0,0,0,"https://sports.yahoo.com/nhl/players/6814","Tampa Bay Lightning"]
["Steven Stamkos",0,1,1,0,0,1,2,4,0.33,0,0,1,1,18,"15:09:00",0,1,0,"https://sports.yahoo.com/nhl/players/4471","Tampa Bay Lightning"]
["Ross Colton",0,0,0,1,0,2,0,0,0,3,1,0,1,14,"13:02:00",0,0,0,"https://sports.yahoo.com/nhl/players/7224","Tampa Bay Lightning"]
["Alex Killorn",1,0,1,1,2,5,0,0,0,0,0,1,0,21,"12:54:00",1,0,0,"https://sports.yahoo.com/nhl/players/5626","Tampa Bay Lightning"]
["Pat Maroon",1,0,1,1,0,3,0,0,0,0,0,0,0,13,"12:15:00",1,0,0,"https://sports.yahoo.com/nhl/players/4352","Tampa Bay Lightning"]
["Pierre-Edouard Bellemare",0,1,1,1,0,2,1,5,0.17,1,2,1,0,14,"10:34:00",0,1,0,"https://sports.yahoo.com/nhl/players/6365","Tampa Bay Lightning"]
["Vladislav Namestnikov",0,0,0,0,0,0,1,0,1,0,1,0,1,14,"10:04:00",0,0,0,"https://sports.yahoo.com/nhl/players/5388","Tampa Bay Lightning"]
["Corey Perry",0,0,0,0,0,0,0,0,0,0,1,0,0,13,"08:58:00",0,0,0,"https://sports.yahoo.com/nhl/players/3365","Tampa Bay Lightning"]
["Defense","G","A","Pts","+/-","PIM","SOG","FW","FL","FO%","Hits","Bks","Take","Give","Shifts","TOI"]
["Mikhail Sergachev",0,0,0,2,0,4,0,0,0,0,3,0,0,31,1.0444444444444445,0,0,1,"https://sports.yahoo.com/nhl/players/7117","Tampa Bay Lightning"]
["Victor Hedman",0,2,2,2,0,1,0,0,0,0,3,1,0,27,"23:59:00",0,2,1,"https://sports.yahoo.com/nhl/players/4682","Tampa Bay Lightning"]
["Erik Cernak",0,0,0,0,0,0,0,0,0,2,0,0,0,26,"21:43:00",0,0,1,"https://sports.yahoo.com/nhl/players/6785","Tampa Bay Lightning"]
["Ian Cole",0,0,0,0,6,1,0,0,0,1,5,0,0,25,"20:07:00",0,0,1,"https://sports.yahoo.com/nhl/players/4257","Tampa Bay Lightning"]
["Zach Bogosian",0,0,0,2,2,0,0,0,0,2,0,0,0,16,"12:48:00",0,0,1,"https://sports.yahoo.com/nhl/players/4473","Tampa Bay Lightning"]
["Nick Perbix",0,0,0,0,0,0,0,0,0,1,0,0,0,15,"12:17:00",0,0,1,"https://sports.yahoo.com/nhl/players/7684","Tampa Bay Lightning"]
["Chicago Blackhawks",null,null,null,null,null,null,null,null,null,null,null,null,null,null,null,0,0,1,"https://sports.yahoo.com/nhl/teams/chicago/","Tampa Bay Lightning"]
["Goaltenders","GA","SA","SV","SV%","TOI"]
["Alex Stalock",3,28,25,".893",2.4499999999999997,null,null,null,null,null,null,null,null,null,null,0,0,0,"https://sports.yahoo.com/nhl/players/4642","Chicago Blackhawks"]
["Forwards","G","A","Pts","+/-","PIM","SOG","FW","FL","FO%","Hits","Bks","Take","Give","Shifts","TOI"]
["Max Domi",0,1,1,-1,0,1,6,8,0.43,0,0,1,0,19,"19:42:00",0,1,0,"https://sports.yahoo.com/nhl/players/5991","Chicago Blackhawks"]
["Sam Lafferty",0,0,0,-2,0,1,8,3,0.73,1,1,1,1,22,"18:01:00",0,0,0,"https://sports.yahoo.com/nhl/players/6481","Chicago Blackhawks"]
["Jonathan Toews",0,0,0,-2,0,0,10,8,0.56000000000000005,0,0,0,2,20,"17:49:00",0,0,0,"https://sports.yahoo.com/nhl/players/3981","Chicago Blackhawks"]
["Philipp Kurashev",0,0,0,-3,0,2,0,0,0,0,0,2,0,20,"17:04:00",0,0,0,"https://sports.yahoo.com/nhl/players/8017","Chicago Blackhawks"]
["Taylor Raddysh",0,1,1,-1,0,2,0,0,0,1,1,1,0,18,"16:53:00",0,1,0,"https://sports.yahoo.com/nhl/players/7166","Chicago Blackhawks"]
["Andreas Athanasiou",0,0,0,-1,0,0,2,2,0.5,0,1,1,0,18,"16:23:00",0,0,0,"https://sports.yahoo.com/nhl/players/5800","Chicago Blackhawks"]
["Jason Dickinson",0,0,0,-1,0,2,4,2,0.67,3,1,2,0,17,"14:09:00",0,0,0,"https://sports.yahoo.com/nhl/players/6008","Chicago Blackhawks"]
["Patrick Kane",0,0,0,0,2,2,0,0,0,0,0,1,1,13,"12:57:00",0,0,0,"https://sports.yahoo.com/nhl/players/4240","Chicago Blackhawks"]
["Colin Blackwell",0,0,0,0,0,3,0,0,0,1,2,1,0,14,"12:01:00",0,0,0,"https://sports.yahoo.com/nhl/players/5559","Chicago Blackhawks"]
["Boris Katchouk",0,0,0,0,2,0,0,0,0,1,0,1,0,14,"11:46:00",0,0,0,"https://sports.yahoo.com/nhl/players/7152","Chicago Blackhawks"]
["Reese Johnson",0,0,0,0,2,2,4,4,0.5,0,0,1,0,14,"10:27:00",0,0,0,"https://sports.yahoo.com/nhl/players/8229","Chicago Blackhawks"]
["Defense","G","A","Pts","+/-","PIM","SOG","FW","FL","FO%","Hits","Bks","Take","Give","Shifts","TOI"]
["Seth Jones",1,0,1,-1,0,4,0,0,0,1,1,0,1,25,1.0986111111111112,1,0,0,"https://sports.yahoo.com/nhl/players/5983","Chicago Blackhawks"]
["Jake McCabe",0,0,0,0,0,1,0,0,0,1,0,2,0,24,"20:57:00",0,0,0,"https://sports.yahoo.com/nhl/players/5733","Chicago Blackhawks"]
["Connor Murphy",0,0,0,-2,2,2,0,0,0,2,3,0,1,24,"17:22:00",0,0,0,"https://sports.yahoo.com/nhl/players/5381","Chicago Blackhawks"]
["Jack Johnson",0,0,0,0,0,0,0,0,0,2,1,0,1,22,"17:07:00",0,0,0,"https://sports.yahoo.com/nhl/players/3777","Chicago Blackhawks"]
["Ian Mitchell",0,0,0,0,0,2,0,0,0,0,2,1,0,21,"15:03:00",0,0,0,"https://sports.yahoo.com/nhl/players/7572","Chicago Blackhawks"]
["Isaak Phillips",0,0,0,-2,0,1,0,0,0,3,0,2,0,20,"14:55:00",0,0,0,"https://sports.yahoo.com/nhl/players/8779","Chicago Blackhawks"]
["Caleb Jones",0,0,0,0,0,1,0,0,0,2,1,2,1,15,"13:48:00",0,0,0,"https://sports.yahoo.com/nhl/players/6859","Chicago Blackhawks"]
["Seattle Kraken",null,null,null,null,null,null,null,null,null,null,null,null,null,null,null,0,0,0,"https://sports.yahoo.com/nhl/teams/seattle/","Chicago Blackhawks"]
["Goaltenders","GA","SA","SV","SV%","TOI"]
["Martin Jones",2,32,30,".938",2.4937499999999999,null,null,null,null,null,null,null,null,null,null,0,0,0,"https://sports.yahoo.com/nhl/players/4581","Seattle Kraken"]
["Forwards","G","A","Pts","+/-","PIM","SOG","FW","FL","FO%","Hits","Bks","Take","Give","Shifts","TOI"]
["Matty Beniers",1,1,2,1,0,1,1,13,7.0000000000000007E-2,4,2,0,0,23,"19:07:00",1,1,0,"https://sports.yahoo.com/nhl/players/8878","Seattle Kraken"]
["Jordan Eberle",0,0,0,0,0,1,0,1,0,1,1,0,0,21,"18:15:00",0,0,0,"https://sports.yahoo.com/nhl/players/4498","Seattle Kraken"]
["Alexander Wennberg",1,1,2,3,0,1,9,13,0.41,0,2,0,0,25,"18:13:00",1,1,0,"https://sports.yahoo.com/nhl/players/5993","Seattle Kraken"]
["Andre Burakovsky",0,0,0,0,0,1,0,0,0,1,1,0,0,19,"18:05:00",0,0,0,"https://sports.yahoo.com/nhl/players/6002","Seattle Kraken"]
["Jaden Schwartz",1,2,3,2,0,3,0,2,0,3,0,0,0,23,"17:56:00",1,2,0,"https://sports.yahoo.com/nhl/players/4974","Seattle Kraken"]
["Yanni Gourde",1,0,1,0,0,1,11,6,0.65,1,0,0,0,22,"16:44:00",1,0,0,"https://sports.yahoo.com/nhl/players/6330","Seattle Kraken"]
["Oliver Bjorkstrand",0,0,0,0,0,2,1,1,0.5,2,0,3,0,20,"14:57:00",0,0,0,"https://sports.yahoo.com/nhl/players/6068","Seattle Kraken"]
["Eeli Tolvanen",0,1,1,1,0,2,0,0,0,2,0,1,0,19,"13:02:00",0,1,0,"https://sports.yahoo.com/nhl/players/7545","Seattle Kraken"]
["Jared McCann",1,0,1,2,0,2,0,0,0,3,1,1,0,19,"12:53:00",1,0,0,"https://sports.yahoo.com/nhl/players/6390","Seattle Kraken"]
["Brandon Tanev",0,1,1,1,0,1,0,0,0,1,1,0,1,20,"12:34:00",0,1,0,"https://sports.yahoo.com/nhl/players/7083","Seattle Kraken"]
["Daniel Sprong",0,1,1,0,2,3,0,0,0,1,2,1,1,15,"11:16:00",0,1,0,"https://sports.yahoo.com/nhl/players/6788","Seattle Kraken"]
["Ryan Donato",0,0,0,0,2,0,2,2,0.5,2,0,0,0,13,"07:31:00",0,0,0,"https://sports.yahoo.com/nhl/players/6425","Seattle Kraken"]
["Defense","G","A","Pts","+/-","PIM","SOG","FW","FL","FO%","Hits","Bks","Take","Give","Shifts","TOI"]
["Adam Larsson",0,1,1,3,0,2,0,0,0,2,4,0,0,29,1.0243055555555556,0,1,0,"https://sports.yahoo.com/nhl/players/5365","Seattle Kraken"]
["Vince Dunn",0,0,0,3,0,1,0,0,0,3,1,0,1,28,"23:05:00",0,0,0,"https://sports.yahoo.com/nhl/players/6798","Seattle Kraken"]
["Carson Soucy",0,0,0,-1,0,0,0,0,0,2,2,0,0,25,"17:57:00",0,0,0,"https://sports.yahoo.com/nhl/players/6117","Seattle Kraken"]
["Jamie Oleksiak",0,0,0,1,2,2,0,0,0,6,1,0,0,26,"17:31:00",0,0,0,"https://sports.yahoo.com/nhl/players/5375","Seattle Kraken"]
["Justin Schultz",0,2,2,1,0,1,0,0,0,1,0,0,0,26,"16:48:00",0,2,0,"https://sports.yahoo.com/nhl/players/5714","Seattle Kraken"]
["Will Borgen",0,0,0,-1,0,0,0,0,0,3,0,0,0,23,"15:25:00",0,0,0,"https://sports.yahoo.com/nhl/players/6834","Seattle Kraken"]
["Edmonton Oilers",null,null,null,null,null,null,null,null,null,null,null,null,null,null,null,0,0,0,"https://sports.yahoo.com/nhl/teams/edmonton/","Seattle Kraken"]
["Goaltenders","GA","SA","SV","SV%","TOI"]
["Jack Campbell",0,3,3,"1.000","23:00:00",null,null,null,null,null,null,null,null,null,null,0,0,0,"https://sports.yahoo.com/nhl/players/4971","Edmonton Oilers"]
["Stuart Skinner",4,20,16,".800",1.4916666666666665,null,null,null,null,null,null,null,null,null,null,0,0,0,"https://sports.yahoo.com/nhl/players/7593","Edmonton Oilers"]
["Forwards","G","A","Pts","+/-","PIM","SOG","FW","FL","FO%","Hits","Bks","Take","Give","Shifts","TOI"]
["Leon Draisaitl",0,1,1,-1,0,1,14,8,0.64,1,1,1,1,21,"23:37:00",0,1,0,"https://sports.yahoo.com/nhl/players/6369","Edmonton Oilers"]
["Connor McDavid",1,0,1,-1,0,6,7,3,0.7,2,0,0,1,25,"21:18:00",1,0,0,"https://sports.yahoo.com/nhl/players/6743","Edmonton Oilers"]
["Zach Hyman",0,1,1,0,0,3,0,1,0,1,0,0,0,25,"20:45:00",0,1,0,"https://sports.yahoo.com/nhl/players/5096","Edmonton Oilers"]
["Ryan Nugent-Hopkins",1,0,1,-2,0,2,6,6,0.5,1,0,1,0,22,"17:06:00",1,0,0,"https://sports.yahoo.com/nhl/players/5362","Edmonton Oilers"]
["Kailer Yamamoto",0,0,0,0,0,1,1,0,1,0,0,1,0,18,"14:13:00",0,0,0,"https://sports.yahoo.com/nhl/players/7537","Edmonton Oilers"]
["Ryan McLeod",0,0,0,-1,0,2,5,3,0.63,1,0,1,0,18,"13:56:00",0,0,0,"https://sports.yahoo.com/nhl/players/7938","Edmonton Oilers"]
["Mattias Janmark",0,1,1,-1,0,1,1,1,0.5,1,0,0,0,20,"13:36:00",0,1,0,"https://sports.yahoo.com/nhl/players/6059","Edmonton Oilers"]
["Warren Foegele",0,0,0,0,0,0,0,1,0,0,2,0,1,14,"12:43:00",0,0,0,"https://sports.yahoo.com/nhl/players/6436","Edmonton Oilers"]
["Jesse Puljujarvi",0,0,0,-1,0,1,0,0,0,4,1,0,0,18,"12:36:00",0,0,0,"https://sports.yahoo.com/nhl/players/7112","Edmonton Oilers"]
["Derek Ryan",0,0,0,-1,0,1,4,1,0.8,2,0,0,0,15,"11:26:00",0,0,0,"https://sports.yahoo.com/nhl/players/6741","Edmonton Oilers"]
["Dylan Holloway",0,0,0,-1,4,0,0,0,0,2,0,0,1,13,"09:40:00",0,0,0,"https://sports.yahoo.com/nhl/players/8654","Edmonton Oilers"]
["Klim Kostin",0,0,0,-1,0,2,0,0,0,5,0,1,0,14,"08:47:00",0,0,0,"https://sports.yahoo.com/nhl/players/7546","Edmonton Oilers"]
["Defense","G","A","Pts","+/-","PIM","SOG","FW","FL","FO%","Hits","Bks","Take","Give","Shifts","TOI"]
["Darnell Nurse",0,0,0,1,0,3,0,0,0,4,1,0,1,27,1.0305555555555557,0,0,0,"https://sports.yahoo.com/nhl/players/5986","Edmonton Oilers"]
["Tyson Barrie",0,0,0,-2,0,4,0,0,0,0,2,1,2,23,"20:38:00",0,0,0,"https://sports.yahoo.com/nhl/players/5281","Edmonton Oilers"]
["Evan Bouchard",0,0,0,-2,2,4,0,0,0,1,0,3,2,21,"19:22:00",0,0,0,"https://sports.yahoo.com/nhl/players/7908","Edmonton Oilers"]
["Brett Kulak",0,1,1,-2,0,0,0,0,0,1,1,0,0,24,"18:55:00",0,1,0,"https://sports.yahoo.com/nhl/players/5795","Edmonton Oilers"]
["Cody Ceci",0,0,0,0,0,0,0,0,0,4,0,0,0,24,"17:54:00",0,0,0,"https://sports.yahoo.com/nhl/players/5695","Edmonton Oilers"]
["Philip Broberg",0,0,0,-1,0,1,0,0,0,1,1,0,0,21,"15:33:00",0,0,0,"https://sports.yahoo.com/nhl/players/8286","Edmonton Oilers"]
["Dallas Stars",null,null,null,null,null,null,null,null,null,null,null,null,null,null,null,0,0,0,"https://sports.yahoo.com/nhl/teams/dallas/","Edmonton Oilers"]
["Goaltenders","GA","SA","SV","SV%","TOI"]
["Jake Oettinger",3,35,32,".914",2.4222222222222221,null,null,null,null,null,null,null,null,null,null,0,0,0,"https://sports.yahoo.com/nhl/players/7541","Dallas Stars"]
["Forwards","G","A","Pts","+/-","PIM","SOG","FW","FL","FO%","Hits","Bks","Take","Give","Shifts","TOI"]
["Jason Robertson",1,0,1,2,0,4,0,0,0,2,1,0,1,22,"19:29:00",1,0,0,"https://sports.yahoo.com/nhl/players/7554","Dallas Stars"]
["Joe Pavelski",0,1,1,2,0,1,2,6,0.25,5,1,0,0,22,"18:16:00",0,1,0,"https://sports.yahoo.com/nhl/players/3985","Dallas Stars"]
["Roope Hintz",0,2,2,2,0,2,5,4,0.56000000000000005,1,0,1,0,23,"17:12:00",0,2,0,"https://sports.yahoo.com/nhl/players/6791","Dallas Stars"]
["Mason Marchment",0,0,0,0,0,1,1,0,1,0,1,1,0,22,"17:08:00",0,0,0,"https://sports.yahoo.com/nhl/players/7066","Dallas Stars"]
["Jamie Benn",0,0,0,0,0,2,4,2,0.67,5,1,0,1,20,"17:03:00",0,0,0,"https://sports.yahoo.com/nhl/players/4519","Dallas Stars"]
["Wyatt Johnston",0,0,0,0,2,1,3,4,0.43,1,0,1,0,21,"16:46:00",0,0,0,"https://sports.yahoo.com/nhl/players/8898","Dallas Stars"]
["Tyler Seguin",0,0,0,-2,4,2,4,2,0.67,2,0,0,0,19,"13:49:00",0,0,0,"https://sports.yahoo.com/nhl/players/4962","Dallas Stars"]
["Radek Faksa",0,0,0,0,0,1,1,1,0.5,4,1,0,0,18,"13:30:00",0,0,0,"https://sports.yahoo.com/nhl/players/5693","Dallas Stars"]
["Luke Glendening",0,0,0,-1,0,1,2,9,0.18,2,1,0,0,19,"12:43:00",0,0,0,"https://sports.yahoo.com/nhl/players/5976","Dallas Stars"]
["Ty Dellandrea",0,0,0,-1,0,1,0,1,0,0,1,0,0,17,"12:31:00",0,0,0,"https://sports.yahoo.com/nhl/players/7911","Dallas Stars"]
["Fredrik Olofsson",0,0,0,-1,0,2,0,0,0,2,0,0,0,14,"11:07:00",0,0,0,"https://sports.yahoo.com/nhl/players/6466","Dallas Stars"]
["Joel Kiviranta",0,0,0,-1,0,1,0,0,0,2,1,0,0,17,"10:59:00",0,0,0,"https://sports.yahoo.com/nhl/players/8273","Dallas Stars"]
["Defense","G","A","Pts","+/-","PIM","SOG","FW","FL","FO%","Hits","Bks","Take","Give","Shifts","TOI"]
["Miro Heiskanen",1,0,1,1,0,5,0,0,0,0,2,0,0,27,1.0527777777777778,1,0,0,"https://sports.yahoo.com/nhl/players/7518","Dallas Stars"]
["Jani Hakanpaa",0,0,0,1,0,2,0,0,0,5,3,0,1,22,"21:02:00",0,0,0,"https://sports.yahoo.com/nhl/players/5077","Dallas Stars"]
["Esa Lindell",0,0,0,1,0,1,0,0,0,0,1,0,0,22,"19:58:00",0,0,0,"https://sports.yahoo.com/nhl/players/5765","Dallas Stars"]
["Nils Lundkvist",0,0,0,0,0,1,0,0,0,1,1,0,0,21,"18:14:00",0,0,0,"https://sports.yahoo.com/nhl/players/7926","Dallas Stars"]
["Ryan Suter",0,0,0,-2,0,2,0,0,0,2,0,0,0,23,"16:40:00",0,0,0,"https://sports.yahoo.com/nhl/players/3345","Dallas Stars"]
["Colin Miller",0,0,0,-1,0,0,0,0,0,5,0,0,1,20,"15:04:00",0,0,0,"https://sports.yahoo.com/nhl/players/5841","Dallas Stars"]
["Los Angeles Kings",null,null,null,null,null,null,null,null,null,null,null,null,null,null,null,0,0,0,"https://sports.yahoo.com/nhl/teams/los-angeles/","Dallas Stars"]
["Goaltenders","GA","SA","SV","SV%","TOI"]
["Pheonix Copley",2,30,28,".933",2.5,null,null,null,null,null,null,null,null,null,null,0,0,0,"https://sports.yahoo.com/nhl/players/6337","Los Angeles Kings"]
["Forwards","G","A","Pts","+/-","PIM","SOG","FW","FL","FO%","Hits","Bks","Take","Give","Shifts","TOI"]
["Alex Iafallo",0,0,0,-1,0,1,0,0,0,0,0,0,0,27,"20:16:00",0,0,0,"https://sports.yahoo.com/nhl/players/7493","Los Angeles Kings"]
["Phillip Danault",0,0,0,0,0,1,10,3,0.77,1,0,0,0,27,"20:11:00",0,0,0,"https://sports.yahoo.com/nhl/players/5387","Los Angeles Kings"]
["Anze Kopitar",1,0,1,1,0,4,10,6,0.63,2,0,1,0,24,"17:43:00",1,0,0,"https://sports.yahoo.com/nhl/players/3788","Los Angeles Kings"]
["Adrian Kempe",1,0,1,1,0,3,0,1,0,1,1,0,0,24,"17:17:00",1,0,0,"https://sports.yahoo.com/nhl/players/6395","Los Angeles Kings"]
["Viktor Arvidsson",0,0,0,0,0,3,0,2,0,1,2,0,3,23,"17:08:00",0,0,0,"https://sports.yahoo.com/nhl/players/6480","Los Angeles Kings"]
["Gabriel Vilardi",0,1,1,1,0,5,2,1,0.67,1,1,0,0,19,"15:00:00",0,1,0,"https://sports.yahoo.com/nhl/players/7526","Los Angeles Kings"]
["Quinton Byfield",0,1,1,1,0,1,0,0,0,1,0,0,0,21,"14:54:00",0,1,0,"https://sports.yahoo.com/nhl/players/8642","Los Angeles Kings"]
["Kevin Fiala",0,2,2,1,2,4,0,0,0,1,0,0,0,18,"13:35:00",0,2,0,"https://sports.yahoo.com/nhl/players/6377","Los Angeles Kings"]
["Blake Lizotte",0,0,0,-1,2,1,3,6,0.33,0,0,0,0,18,"12:50:00",0,0,0,"https://sports.yahoo.com/nhl/players/8249","Los Angeles Kings"]
["Rasmus Kupari",1,0,1,-1,0,3,4,3,0.56999999999999995,0,1,0,0,15,"11:55:00",1,0,0,"https://sports.yahoo.com/nhl/players/7918","Los Angeles Kings"]
["Jaret Anderson-Dolan",0,0,0,-1,0,2,0,0,0,1,1,0,1,12,"09:54:00",0,0,0,"https://sports.yahoo.com/nhl/players/7556","Los Angeles Kings"]
["Carl Grundstrom",0,0,0,-1,2,2,0,0,0,2,0,0,0,12,"08:17:00",0,0,0,"https://sports.yahoo.com/nhl/players/7165","Los Angeles Kings"]
["Defense","G","A","Pts","+/-","PIM","SOG","FW","FL","FO%","Hits","Bks","Take","Give","Shifts","TOI"]
["Mikey Anderson",0,0,0,0,0,0,0,0,0,3,3,0,0,24,1.0152777777777777,0,0,0,"https://sports.yahoo.com/nhl/players/7618","Los Angeles Kings"]
["Drew Doughty",0,1,1,0,0,0,0,0,0,3,1,0,0,26,1,0,1,0,"https://sports.yahoo.com/nhl/players/4472","Los Angeles Kings"]
["Sean Durzi",0,0,0,1,0,2,0,0,0,0,3,0,0,21,"19:34:00",0,0,0,"https://sports.yahoo.com/nhl/players/7950","Los Angeles Kings"]
["Matt Roy",0,0,0,1,0,1,0,0,0,5,2,0,1,22,"18:29:00",0,0,0,"https://sports.yahoo.com/nhl/players/6936","Los Angeles Kings"]
["Alexander Edler",0,0,0,-1,0,1,0,0,0,3,1,0,1,17,"14:57:00",0,0,0,"https://sports.yahoo.com/nhl/players/4020","Los Angeles Kings"]
["Sean Walker",0,0,0,-1,0,1,0,0,0,4,1,0,0,16,"13:38:00",0,0,0,"https://sports.yahoo.com/nhl/players/7751","Los Angeles Kings"]
["New York Islanders",null,null,null,null,null,null,null,null,null,null,null,null,null,null,null,0,0,0,"https://sports.yahoo.com/nhl/teams/ny-islanders/","Los Angeles Kings"]
["Goaltenders","GA","SA","SV","SV%","TOI"]
["Ilya Sorokin",2,26,24,".923",2.5,null,null,null,null,null,null,null,null,null,null,0,0,0,"https://sports.yahoo.com/nhl/players/6447","New York Islanders"]
["Forwards","G","A","Pts","+/-","PIM","SOG","FW","FL","FO%","Hits","Bks","Take","Give","Shifts","TOI"]
["Brock Nelson",0,1,1,0,0,1,5,14,0.26,0,0,0,0,23,"20:14:00",0,1,0,"https://sports.yahoo.com/nhl/players/4990","New York Islanders"]
["Mathew Barzal",1,2,3,2,0,1,1,1,0.5,0,0,0,1,22,"17:21:00",1,2,0,"https://sports.yahoo.com/nhl/players/6758","New York Islanders"]
["Casey Cizikas",1,1,2,3,0,1,7,4,0.64,0,0,0,0,24,"17:10:00",1,1,0,"https://sports.yahoo.com/nhl/players/4773","New York Islanders"]
["Hudson Fasching",0,0,0,1,0,0,0,0,0,2,1,0,0,18,"17:09:00",0,0,0,"https://sports.yahoo.com/nhl/players/6097","New York Islanders"]
["Josh Bailey",0,0,0,1,0,2,1,1,0.5,0,0,0,1,23,"16:44:00",0,0,0,"https://sports.yahoo.com/nhl/players/4482","New York Islanders"]
["Anders Lee",1,0,1,0,2,4,0,0,0,1,1,0,0,20,"16:35:00",1,0,0,"https://sports.yahoo.com/nhl/players/5928","New York Islanders"]
["Zach Parise",0,0,0,0,0,5,0,0,0,1,2,0,0,23,"16:22:00",0,0,0,"https://sports.yahoo.com/nhl/players/3355","New York Islanders"]
["Anthony Beauvillier",0,0,0,0,0,0,0,0,0,2,0,0,0,22,"15:51:00",0,0,0,"https://sports.yahoo.com/nhl/players/6770","New York Islanders"]
["Jean-Gabriel Pageau",2,0,2,1,0,2,4,7,0.36,8,1,0,0,23,"15:25:00",2,0,0,"https://sports.yahoo.com/nhl/players/5462","New York Islanders"]
["Matt Martin",0,1,1,1,2,1,0,0,0,2,0,0,0,15,"10:59:00",0,1,0,"https://sports.yahoo.com/nhl/players/4754","New York Islanders"]
["Ross Johnston",0,1,1,1,0,0,0,0,0,6,2,0,0,12,"09:09:00",0,1,0,"https://sports.yahoo.com/nhl/players/6283","New York Islanders"]
["Aatu Raty",1,0,1,1,0,2,2,2,0.5,1,0,0,0,10,"06:15:00",1,0,0,"https://sports.yahoo.com/nhl/players/8927","New York Islanders"]
["Defense","G","A","Pts","+/-","PIM","SOG","FW","FL","FO%","Hits","Bks","Take","Give","Shifts","TOI"]
["Scott Mayfield",0,0,0,2,2,4,0,0,0,1,0,0,0,26,"21:22:00",0,0,0,"https://sports.yahoo.com/nhl/players/5402","New York Islanders"]
["Noah Dobson",0,0,0,1,0,0,0,0,0,0,1,0,0,25,"20:13:00",0,0,0,"https://sports.yahoo.com/nhl/players/7910","New York Islanders"]
["Ryan Pulock",0,1,1,1,0,1,0,0,0,3,7,0,0,23,"20:10:00",0,1,0,"https://sports.yahoo.com/nhl/players/5994","New York Islanders"]
["Sebastian Aho",0,0,0,0,0,3,0,0,0,2,2,1,1,25,"19:15:00",0,0,0,"https://sports.yahoo.com/nhl/players/7654","New York Islanders"]
["Alexander Romanov",0,1,1,2,0,1,0,0,0,1,1,0,0,22,"18:35:00",0,1,0,"https://sports.yahoo.com/nhl/players/7936","New York Islanders"]
["Parker Wotherspoon",0,1,1,2,0,1,0,0,0,0,0,0,0,19,"16:46:00",0,1,0,"https://sports.yahoo.com/nhl/players/6854","New York Islanders"]
["Vancouver Canucks",null,null,null,null,null,null,null,null,null,null,null,null,null,null,null,0,0,0,"https://sports.yahoo.com/nhl/teams/vancouver/","New York Islanders"]
["Goaltenders","GA","SA","SV","SV%","TOI"]
["Spencer Martin",5,28,23,".821",2.4312499999999999,null,null,null,null,null,null,null,null,null,null,0,0,0,"https://sports.yahoo.com/nhl/players/6043","Vancouver Canucks"]
["Forwards","G","A","Pts","+/-","PIM","SOG","FW","FL","FO%","Hits","Bks","Take","Give","Shifts","TOI"]
["Bo Horvat",2,0,2,-1,0,4,10,7,0.59,1,0,0,2,23,"20:51:00",2,0,0,"https://sports.yahoo.com/nhl/players/5988","Vancouver Canucks"]
["Andrei Kuzmenko",0,0,0,-2,0,1,0,0,0,0,0,3,2,19,"18:08:00",0,0,0,"https://sports.yahoo.com/nhl/players/9268","Vancouver Canucks"]
["J.T. Miller",0,1,1,-2,2,3,10,3,0.77,1,0,0,1,21,"18:00:00",0,1,0,"https://sports.yahoo.com/nhl/players/5376","Vancouver Canucks"]
["Elias Pettersson",0,0,0,-2,0,3,3,4,0.43,2,0,0,0,22,"17:53:00",0,0,0,"https://sports.yahoo.com/nhl/players/7520","Vancouver Canucks"]
["Ilya Mikheyev",0,0,0,0,0,2,0,0,0,0,0,0,0,21,"17:25:00",0,0,0,"https://sports.yahoo.com/nhl/players/8262","Vancouver Canucks"]
["Brock Boeser",0,1,1,-1,0,1,0,1,0,0,0,0,1,20,"17:12:00",0,1,0,"https://sports.yahoo.com/nhl/players/6765","Vancouver Canucks"]
["William Lockwood",0,0,0,-1,0,0,0,0,0,4,0,1,1,17,"13:00:00",0,0,0,"https://sports.yahoo.com/nhl/players/7172","Vancouver Canucks"]
["Conor Garland",0,0,0,-1,0,1,0,0,0,1,0,0,1,18,"12:13:00",0,0,0,"https://sports.yahoo.com/nhl/players/6865","Vancouver Canucks"]
["Dakota Joshua",0,0,0,-1,0,1,0,0,0,3,0,0,0,16,"12:13:00",0,0,0,"https://sports.yahoo.com/nhl/players/6496","Vancouver Canucks"]
["Sheldon Dries",0,0,0,-1,0,2,0,4,0,3,0,1,0,18,"12:00:00",0,0,0,"https://sports.yahoo.com/nhl/players/7816","Vancouver Canucks"]
["Lane Pederson",0,0,0,-1,0,1,0,0,0,0,0,0,0,15,"11:34:00",0,0,0,"https://sports.yahoo.com/nhl/players/6974","Vancouver Canucks"]
["Curtis Lazar",0,0,0,-1,0,0,6,1,0.86,1,0,0,0,17,"11:08:00",0,0,0,"https://sports.yahoo.com/nhl/players/5996","Vancouver Canucks"]
["Defense","G","A","Pts","+/-","PIM","SOG","FW","FL","FO%","Hits","Bks","Take","Give","Shifts","TOI"]
["Quinn Hughes",0,1,1,-3,0,2,0,0,0,1,0,0,1,24,"22:43:00",0,1,0,"https://sports.yahoo.com/nhl/players/7905","Vancouver Canucks"]
["Tyler Myers",0,0,0,-1,2,0,0,0,0,0,2,0,1,25,"21:23:00",0,0,0,"https://sports.yahoo.com/nhl/players/4485","Vancouver Canucks"]
["Travis Dermott",0,0,0,-1,0,1,0,0,0,1,0,0,0,24,"19:07:00",0,0,0,"https://sports.yahoo.com/nhl/players/6776","Vancouver Canucks"]
["Luke Schenn",0,0,0,-1,0,1,0,0,0,2,1,0,0,23,"18:41:00",0,0,0,"https://sports.yahoo.com/nhl/players/4475","Vancouver Canucks"]
["Oliver Ekman-Larsson",0,1,1,0,0,0,0,0,0,0,0,0,2,22,"17:34:00",0,1,0,"https://sports.yahoo.com/nhl/players/4686","Vancouver Canucks"]
["Ethan Bear",0,0,0,-1,0,3,0,0,0,2,0,1,1,21,"16:52:00",0,0,0,"https://sports.yahoo.com/nhl/players/6866","Vancouver Canucks"]